Organisation Name,Organisation Code,Effective Date,Directorate Where Expenditure Occurred,Supplier Name,Payment Date,Transaction Number,Gross Amount,Purpose of Spend,Merchant Category,Card Transactions
WALSALL COUNCIL,http://opendatacommunities.org/id/metropolitan-district-council/walsall ,31/12/2023,ECONOMY & ENVIRONMENT,AMZNMKTPLACE,01/10/2023,H59620231003BEJYWURSR-1,38.90,RESTART-CLOTHING & LAUNDRY,MISCELLANEOUS AND SPECIALTY RETAIL STORES,GPC
WALSALL COUNCIL,http://opendatacommunities.org/id/metropolitan-district-council/walsall ,31/12/2023,CHILDRENS SERVICES,AMZNMKTPLACE,01/10/2023,H59620231003BIHZEOVIX-1,7.35,ENGLISH-LIBRARY BOOKS,MISCELLANEOUS AND SPECIALTY RETAIL STORES,GPC
WALSALL COUNCIL,http://opendatacommunities.org/id/metropolitan-district-council/walsall ,31/12/2023,CHILDRENS SERVICES,AMZNMKTPLACE,01/10/2023,H59620231003ENKVOJQJL-1,51.24,ICT LEARNING RESOURCES-MATERIALS,MISCELLANEOUS AND SPECIALTY RETAIL STORES,GPC
WALSALL COUNCIL,http://opendatacommunities.org/id/metropolitan-district-council/walsall ,31/12/2023,RESOURCES AND TRANSFORMATION,CHICKEN JOES LTD,01/10/2023,H59620231003ENQOASBKT-1,200.60,CATERING - SCHOOLS-FOOD & DRINK SUPPLIES,CATERERS,GPC
WALSALL COUNCIL,http://opendatacommunities.org/id/metropolitan-district-council/walsall ,31/12/2023,CHILDRENS SERVICES,AMZNMKTPLACE,01/10/2023,H59620231003FKKELNFIN-1,11.75,SEN-STATIONERY & GENERAL OFFICE SU,MISCELLANEOUS AND SPECIALTY RETAIL STORES,GPC
WALSALL COUNCIL,http://opendatacommunities.org/id/metropolitan-district-council/walsall ,31/12/2023,RESOURCES AND TRANSFORMATION,CHICKEN JOES LTD,01/10/2023,H59620231003GCVPHAGKU-1,159.61,CATERING - SCHOOLS-FOOD & DRINK SUPPLIES,CATERERS,GPC
WALSALL COUNCIL,http://opendatacommunities.org/id/metropolitan-district-council/walsall ,31/12/2023,CHILDRENS SERVICES,ALDI 28 772,01/10/2023,H59620231003JHEXUTGWC-1,24.19,PELSALL VILLAGE SCHOOL-FOOD & DRINK SUPPLIES,GROCERY STORES AND SUPERMARKETS,GPC
WALSALL COUNCIL,http://opendatacommunities.org/id/metropolitan-district-council/walsall ,31/12/2023,CHILDRENS SERVICES,AMZNBUSINESS*HT9XG9FB4,01/10/2023,H59620231003KWPJYEVSD-1,2.65,ADMINISTRATIVE SUPPLIES-MATERIALS,MISCELLANEOUS AND SPECIALTY RETAIL STORES,GPC
WALSALL COUNCIL,http://opendatacommunities.org/id/metropolitan-district-council/walsall ,31/12/2023,ECONOMY & ENVIRONMENT,WETRANSFER,01/10/2023,H59620231003LIISWPHUP-1,8.68,NAG - ART GALLERY MARKETING-SUBSCRIPTIONS,"COMPUTER PROGRAM, SYSTEM DESIGN",GPC
WALSALL COUNCIL,http://opendatacommunities.org/id/metropolitan-district-council/walsall ,31/12/2023,CHILDRENS SERVICES,AMZNMKTPLACE,01/10/2023,H59620231003MSYPCKYLN-1,27.98,FAMILY SAFEGUARDING - BUILDING-HEALTH & SAFETY PERSONAL PROTE,MISCELLANEOUS AND SPECIALTY RETAIL STORES,GPC
WALSALL COUNCIL,http://opendatacommunities.org/id/metropolitan-district-council/walsall ,31/12/2023,RESOURCES AND TRANSFORMATION,CHICKEN JOES LTD,01/10/2023,H59620231003ODJKPGOUV-1,186.94,CATERING - SCHOOLS-FOOD & DRINK SUPPLIES,CATERERS,GPC
WALSALL COUNCIL,http://opendatacommunities.org/id/metropolitan-district-council/walsall ,31/12/2023,CHILDRENS SERVICES,TEACHIT,01/10/2023,H59620231003ONRFKQQCL-1,35.00,SCIENCE-SUBSCRIPTIONS,OTHER SCHOOLS AND EDUCATIONAL SERVICES,GPC
WALSALL COUNCIL,http://opendatacommunities.org/id/metropolitan-district-council/walsall ,31/12/2023,CHILDRENS SERVICES,AMAZON.CO.UK*HT82B94B4,01/10/2023,H59620231003QBZCVPRGV-1,25.85,VIRTUAL SCHOOL CENTRAL PUPIL P-MATERIALS,OTHER DIRECT MARKETING-OTHER DIRECT MARKETERS,GPC
WALSALL COUNCIL,http://opendatacommunities.org/id/metropolitan-district-council/walsall ,31/12/2023,ADULT SOCIAL CARE,AMZNMKTPLACE,01/10/2023,H59620231003QZRCQBWJN-1,242.33,GOSCOTE-STATIONERY & GENERAL OFFICE SU,MISCELLANEOUS AND SPECIALTY RETAIL STORES,GPC
WALSALL COUNCIL,http://opendatacommunities.org/id/metropolitan-district-council/walsall ,31/12/2023,RESOURCES AND TRANSFORMATION,CHICKEN JOES LTD,01/10/2023,H59620231003VGCJCCOOI-1,128.20,CATERING - SCHOOLS-FOOD & DRINK SUPPLIES,CATERERS,GPC
WALSALL COUNCIL,http://opendatacommunities.org/id/metropolitan-district-council/walsall ,31/12/2023,CHILDRENS SERVICES,AMZNMKTPLACE,01/10/2023,H59620231003VTGXHHZWC-1,39.50,PSE-MATERIALS,MISCELLANEOUS AND SPECIALTY RETAIL STORES,GPC
WALSALL COUNCIL,http://opendatacommunities.org/id/metropolitan-district-council/walsall ,31/12/2023,CHILDRENS SERVICES,AMZNMKTPLACE,01/10/2023,H59620231003WLPMBKFRG-1,200.00,PSE-MATERIALS,MISCELLANEOUS AND SPECIALTY RETAIL STORES,GPC
WALSALL COUNCIL,http://opendatacommunities.org/id/metropolitan-district-council/walsall ,31/12/2023,RESOURCES AND TRANSFORMATION,CHICKEN JOES LTD,01/10/2023,H59620231003WMPNYCZQY-1,211.62,CATERING - SCHOOLS-FOOD & DRINK SUPPLIES,CATERERS,GPC
WALSALL COUNCIL,http://opendatacommunities.org/id/metropolitan-district-council/walsall ,31/12/2023,RESOURCES AND TRANSFORMATION,CHICKEN JOES LTD,01/10/2023,H59620231003WSJKKNYOI-1,83.45,CATERING - SCHOOLS-FOOD & DRINK SUPPLIES,CATERERS,GPC
WALSALL COUNCIL,http://opendatacommunities.org/id/metropolitan-district-council/walsall ,31/12/2023,RESOURCES AND TRANSFORMATION,CHICKEN JOES LTD,01/10/2023,H59620231003WUDPIKVHR-1,115.00,CATERING - SCHOOLS-FOOD & DRINK SUPPLIES,CATERERS,GPC
WALSALL COUNCIL,http://opendatacommunities.org/id/metropolitan-district-council/walsall ,31/12/2023,CHILDRENS SERVICES,TESCO STORES 3351,01/10/2023,H59620231003XGGRTGQJU-1,9.25,FOOD TECHNOLOGY/HOSPITALITY-MATERIALS,GROCERY STORES AND SUPERMARKETS,GPC
WALSALL COUNCIL,http://opendatacommunities.org/id/metropolitan-district-council/walsall ,31/12/2023,CHILDRENS SERVICES,AMAZON.CO.UK*HT6JI24R4,01/10/2023,H59620231003XINCYXKHL-1,150.00,PASTROL (REWARDS & PRIZES)-MATERIALS,OTHER DIRECT MARKETING-OTHER DIRECT MARKETERS,GPC
WALSALL COUNCIL,http://opendatacommunities.org/id/metropolitan-district-council/walsall ,31/12/2023,CHILDRENS SERVICES,ADOBE ACROPRO SUBS,01/10/2023,H59620231003ZALXRGCWU-1,16.64,ADMINISTRATIVE SUPPLIES-MATERIALS,COMPUTER SOFTWARE STORES,GPC
WALSALL COUNCIL,http://opendatacommunities.org/id/metropolitan-district-council/walsall ,31/12/2023,ECONOMY & ENVIRONMENT,FOREIGN EXCHANGE FEE,02/10/2023,H59620231003BTFUEVSFQ-1,0.24,NAG - ART GALLERY MARKETING-SUBSCRIPTIONS,,GPC
WALSALL COUNCIL,http://opendatacommunities.org/id/metropolitan-district-council/walsall ,31/12/2023,CHILDRENS SERVICES,AMZNMKTPLACE,02/10/2023,H59620231003IHKABXQOW-1,80.70,ENGLISH-LIBRARY BOOKS,MISCELLANEOUS AND SPECIALTY RETAIL STORES,GPC
WALSALL COUNCIL,http://opendatacommunities.org/id/metropolitan-district-council/walsall ,31/12/2023,CHILDRENS SERVICES,EXPEDIA 72668417205233,02/10/2023,H59620231003MQTFDNRID-1,43.00,BED & BREAKFAST PAYMENTS-BED & BREAKFAST PAYMENTS,TRAVEL AGENCIES AND TOUR OPERATORS,GPC
WALSALL COUNCIL,http://opendatacommunities.org/id/metropolitan-district-council/walsall ,31/12/2023,CHILDRENS SERVICES,AMZNMKTPLACE,02/10/2023,H59620231003OBBLHUCVI-1,63.40,ICT LEARNING RESOURCES-PURCHASE OF FURNITURE & EQUIPM,MISCELLANEOUS AND SPECIALTY RETAIL STORES,GPC
WALSALL COUNCIL,http://opendatacommunities.org/id/metropolitan-district-council/walsall ,31/12/2023,CHILDRENS SERVICES,ADOBE ACROPRO SUBS,02/10/2023,H59620231003RDNLIIPJV-1,19.97,ADMINISTRATIVE SUPPLIES-MATERIALS,COMPUTER SOFTWARE STORES,GPC
WALSALL COUNCIL,http://opendatacommunities.org/id/metropolitan-district-council/walsall ,31/12/2023,CHILDRENS SERVICES,AMZNMKTPLACE,02/10/2023,H59620231003RQLUKYTGZ-1,39.33,EYFS - RESOURCES-MATERIALS,MISCELLANEOUS AND SPECIALTY RETAIL STORES,GPC
WALSALL COUNCIL,http://opendatacommunities.org/id/metropolitan-district-council/walsall ,31/12/2023,CHILDRENS SERVICES,AMZNMKTPLACE,02/10/2023,H59620231003SQTLGFNLC-1,9.99,DT-MATERIALS,MISCELLANEOUS AND SPECIALTY RETAIL STORES,GPC
WALSALL COUNCIL,http://opendatacommunities.org/id/metropolitan-district-council/walsall ,31/12/2023,CHILDRENS SERVICES,AMZNMKTPLACE,02/10/2023,H59620231003SQTLGFNLC-2,79.44,SEN-MATERIALS,MISCELLANEOUS AND SPECIALTY RETAIL STORES,GPC
WALSALL COUNCIL,http://opendatacommunities.org/id/metropolitan-district-council/walsall ,31/12/2023,CHILDRENS SERVICES,AMZNMKTPLACE,02/10/2023,H59620231003UROLFSLOS-1,14.15,SEN-MATERIALS,MISCELLANEOUS AND SPECIALTY RETAIL STORES,GPC
WALSALL COUNCIL,http://opendatacommunities.org/id/metropolitan-district-council/walsall ,31/12/2023,RESOURCES AND TRANSFORMATION,BLAKEMORE FOODSERVICE,02/10/2023,H59620231004BDJALSWVI-1,948.49,CATERING - SCHOOLS-FOOD & DRINK SUPPLIES,CATERERS,GPC
WALSALL COUNCIL,http://opendatacommunities.org/id/metropolitan-district-council/walsall ,31/12/2023,RESOURCES AND TRANSFORMATION,BLAKEMORE FOODSERVICE,02/10/2023,H59620231004BDJALSWVI-2,32.66,CATERING - SCHOOLS-FOOD & DRINK SUPPLIES,CATERERS,GPC
WALSALL COUNCIL,http://opendatacommunities.org/id/metropolitan-district-council/walsall ,31/12/2023,ECONOMY & ENVIRONMENT,B & Q 1276,02/10/2023,H59620231004BKZECJBVE-1,8.53,INFRASTRUCTURE MAINTENANCE-GROUNDS MAINTENANCE,HOME SUPPLY WAREHOUSE STORES,GPC
WALSALL COUNCIL,http://opendatacommunities.org/id/metropolitan-district-council/walsall ,31/12/2023,CHILDRENS SERVICES,WM MORRISONS STORE PICK,02/10/2023,H59620231004BNBLGFIMM-1,26.10,SHORT HEATH FEDERATION-FOOD & DRINK SUPPLIES,GROCERY STORES AND SUPERMARKETS,GPC
WALSALL COUNCIL,http://opendatacommunities.org/id/metropolitan-district-council/walsall ,31/12/2023,CHILDRENS SERVICES,WM MORRISONS STORE PICK,02/10/2023,H59620231004BNBLGFIMM-2,28.49,SHORT HEATH FEDERATION-FOOD & DRINK SUPPLIES,GROCERY STORES AND SUPERMARKETS,GPC
WALSALL COUNCIL,http://opendatacommunities.org/id/metropolitan-district-council/walsall ,31/12/2023,ECONOMY & ENVIRONMENT,TOOLSTATION LTD,02/10/2023,H59620231004BWMOCRFQS-1,38.77,TECHNICAL/ART HANDLING-PURCHASE OF FURNITURE & EQUIPM,LUMBER & BUILDING MATERIALS STORES,GPC
WALSALL COUNCIL,http://opendatacommunities.org/id/metropolitan-district-council/walsall ,31/12/2023,ECONOMY & ENVIRONMENT,TOOLSTATION LTD,02/10/2023,H59620231004BWMOCRFQS-2,12.96,TECHNICAL/ART HANDLING-PURCHASE OF FURNITURE & EQUIPM,LUMBER & BUILDING MATERIALS STORES,GPC
WALSALL COUNCIL,http://opendatacommunities.org/id/metropolitan-district-council/walsall ,31/12/2023,RESOURCES AND TRANSFORMATION,CO-OPERATIVE FOOD,02/10/2023,H59620231004CLTXBOPJV-1,8.80,TOWN HALL RESTAURANT BISTRO-FOOD & DRINK SUPPLIES,GROCERY STORES AND SUPERMARKETS,GPC
WALSALL COUNCIL,http://opendatacommunities.org/id/metropolitan-district-council/walsall ,31/12/2023,CHILDRENS SERVICES,AMAZON.CO.UK*HT6TJ4N64,02/10/2023,H59620231004CMGPOFQTM-1,11.34,ENGLISH-LIBRARY BOOKS,OTHER DIRECT MARKETING-OTHER DIRECT MARKETERS,GPC
WALSALL COUNCIL,http://opendatacommunities.org/id/metropolitan-district-council/walsall ,31/12/2023,ECONOMY & ENVIRONMENT,AMAZON.CO.UK*HT4IT3ZN4,02/10/2023,H59620231004CMKNECDZI-1,15.30,NEW ART GALLERY VENUE INCOME-CATERING & REFRESHMENTS,OTHER DIRECT MARKETING-OTHER DIRECT MARKETERS,GPC
WALSALL COUNCIL,http://opendatacommunities.org/id/metropolitan-district-council/walsall ,31/12/2023,CHILDRENS SERVICES,AMZNMKTPLACE,02/10/2023,H59620231004CNMYNICDH-1,11.75,AWARDS AND REWARDS-MATERIALS,MISCELLANEOUS AND SPECIALTY RETAIL STORES,GPC
WALSALL COUNCIL,http://opendatacommunities.org/id/metropolitan-district-council/walsall ,31/12/2023,CHILDRENS SERVICES,AMZNMKTPLACE,02/10/2023,H59620231004CNMYNICDH-2,43.97,AWARDS AND REWARDS-MATERIALS,MISCELLANEOUS AND SPECIALTY RETAIL STORES,GPC
WALSALL COUNCIL,http://opendatacommunities.org/id/metropolitan-district-council/walsall ,31/12/2023,ECONOMY & ENVIRONMENT,YTC (RIPON),02/10/2023,H59620231004CYMTCTBNT-1,5.40,LEATHER MUSEUM-MATERIALS,MISCELLANEOUS AND SPECIALTY RETAIL STORES,GPC
WALSALL COUNCIL,http://opendatacommunities.org/id/metropolitan-district-council/walsall ,31/12/2023,RESOURCES AND TRANSFORMATION,BLAKEMORE FOODSERVICE,02/10/2023,H59620231004CYNOBHHDD-1,-17.10,CATERING - SCHOOLS-FOOD & DRINK SUPPLIES,CATERERS,GPC
WALSALL COUNCIL,http://opendatacommunities.org/id/metropolitan-district-council/walsall ,31/12/2023,RESOURCES AND TRANSFORMATION,BLAKEMORE FOODSERVICE,02/10/2023,H59620231004DDGDXJMHK-1,585.49,CATERING - SCHOOLS-FOOD & DRINK SUPPLIES,CATERERS,GPC
WALSALL COUNCIL,http://opendatacommunities.org/id/metropolitan-district-council/walsall ,31/12/2023,RESOURCES AND TRANSFORMATION,BLAKEMORE FOODSERVICE,02/10/2023,H59620231004DDGDXJMHK-2,17.37,CATERING - SCHOOLS-FOOD & DRINK SUPPLIES,CATERERS,GPC
WALSALL COUNCIL,http://opendatacommunities.org/id/metropolitan-district-council/walsall ,31/12/2023,CHILDRENS SERVICES,SUPER.COM HOTELS,02/10/2023,H59620231004DFKGAPRTV-1,86.00,BED & BREAKFAST PAYMENTS-BED & BREAKFAST PAYMENTS,"HOTELS, MOTELS, RESORTS",GPC
WALSALL COUNCIL,http://opendatacommunities.org/id/metropolitan-district-council/walsall ,31/12/2023,CHILDRENS SERVICES,SUPER.COM HOTELS,02/10/2023,H59620231004DFKGAPRTV-2,9.61,BED & BREAKFAST PAYMENTS-BED & BREAKFAST PAYMENTS,"HOTELS, MOTELS, RESORTS",GPC
WALSALL COUNCIL,http://opendatacommunities.org/id/metropolitan-district-council/walsall ,31/12/2023,RESOURCES AND TRANSFORMATION,BLAKEMORE FOODSERVICE,02/10/2023,H59620231004DSEFJKRKQ-1,363.86,CATERING - SCHOOLS-FOOD & DRINK SUPPLIES,CATERERS,GPC
WALSALL COUNCIL,http://opendatacommunities.org/id/metropolitan-district-council/walsall ,31/12/2023,RESOURCES AND TRANSFORMATION,BLAKEMORE FOODSERVICE,02/10/2023,H59620231004DSEFJKRKQ-2,17.37,CATERING - SCHOOLS-FOOD & DRINK SUPPLIES,CATERERS,GPC
WALSALL COUNCIL,http://opendatacommunities.org/id/metropolitan-district-council/walsall ,31/12/2023,RESOURCES AND TRANSFORMATION,BLAKEMORE FOODSERVICE,02/10/2023,H59620231004DTHYLBWKE-1,730.77,CATERING - SCHOOLS-FOOD & DRINK SUPPLIES,CATERERS,GPC
WALSALL COUNCIL,http://opendatacommunities.org/id/metropolitan-district-council/walsall ,31/12/2023,RESOURCES AND TRANSFORMATION,BLAKEMORE FOODSERVICE,02/10/2023,H59620231004DTHYLBWKE-2,73.39,CATERING - SCHOOLS-FOOD & DRINK SUPPLIES,CATERERS,GPC
WALSALL COUNCIL,http://opendatacommunities.org/id/metropolitan-district-council/walsall ,31/12/2023,RESOURCES AND TRANSFORMATION,SCREWFIX DIR LTD,02/10/2023,H59620231004DULTGQMJJ-1,48.74,CARETAKING - MANAGEMENT-MATERIALS,LUMBER & BUILDING MATERIALS STORES,GPC
WALSALL COUNCIL,http://opendatacommunities.org/id/metropolitan-district-council/walsall ,31/12/2023,RESOURCES AND TRANSFORMATION,BLAKEMORE FOODSERVICE,02/10/2023,H59620231004ECCFCVYVR-1,340.24,CATERING - SCHOOLS-FOOD & DRINK SUPPLIES,CATERERS,GPC
WALSALL COUNCIL,http://opendatacommunities.org/id/metropolitan-district-council/walsall ,31/12/2023,RESOURCES AND TRANSFORMATION,BLAKEMORE FOODSERVICE,02/10/2023,H59620231004ECCFCVYVR-2,24.28,CATERING - SCHOOLS-FOOD & DRINK SUPPLIES,CATERERS,GPC
WALSALL COUNCIL,http://opendatacommunities.org/id/metropolitan-district-council/walsall ,31/12/2023,CHILDRENS SERVICES,AMZNBUSINESS*HT59C4LL4,02/10/2023,H59620231004EOJOJKQKW-1,7.95,ADMINISTRATIVE SUPPLIES-MATERIALS,MISCELLANEOUS AND SPECIALTY RETAIL STORES,GPC
WALSALL COUNCIL,http://opendatacommunities.org/id/metropolitan-district-council/walsall ,31/12/2023,ECONOMY & ENVIRONMENT,ASDA,02/10/2023,H59620231004EUMAVULQC-1,120.00,MULTIPLY PROGRAMME-FOOD & DRINK SUPPLIES,GROCERY STORES AND SUPERMARKETS,GPC
WALSALL COUNCIL,http://opendatacommunities.org/id/metropolitan-district-council/walsall ,31/12/2023,CHILDRENS SERVICES,AMZNBUSINESS*HT9N443G4,02/10/2023,H59620231004EZYJENKXY-1,5.30,ADMINISTRATIVE SUPPLIES-MATERIALS,MISCELLANEOUS AND SPECIALTY RETAIL STORES,GPC
WALSALL COUNCIL,http://opendatacommunities.org/id/metropolitan-district-council/walsall ,31/12/2023,ECONOMY & ENVIRONMENT,AMZNMKTPLACE,02/10/2023,H59620231004FBNJHOSSY-1,78.84,WALSALL ARENA AND ARTS CENTRE-MATERIALS,MISCELLANEOUS AND SPECIALTY RETAIL STORES,GPC
WALSALL COUNCIL,http://opendatacommunities.org/id/metropolitan-district-council/walsall ,31/12/2023,RESOURCES AND TRANSFORMATION,WWW.BANNERUK.COM,02/10/2023,H59620231004GCRBHBBXW-1,94.90,HR ADMIN HUB-STATIONERY & GENERAL OFFICE SU,"STATIONERY, OFFICE SUPPLIES AND WRITING PAPER",GPC
WALSALL COUNCIL,http://opendatacommunities.org/id/metropolitan-district-council/walsall ,31/12/2023,ECONOMY & ENVIRONMENT,AMZNMKTPLACE,02/10/2023,H59620231004GEFWCDQEX-1,207.89,WALSALL ARENA AND ARTS CENTRE-STATIONERY & GENERAL OFFICE SU,MISCELLANEOUS AND SPECIALTY RETAIL STORES,GPC
WALSALL COUNCIL,http://opendatacommunities.org/id/metropolitan-district-council/walsall ,31/12/2023,ECONOMY & ENVIRONMENT,NOBISCO LIMITED,02/10/2023,H59620231004GJYPJVHRE-1,400.58,NAG - FRONT OF HOUSE-CLEANING MATERIALS,OTHER INDUSTRIAL SUPPLIES,GPC
WALSALL COUNCIL,http://opendatacommunities.org/id/metropolitan-district-council/walsall ,31/12/2023,CHILDRENS SERVICES,B&M 022 - WEDNESBURY,02/10/2023,H59620231004GPXNKIOCK-1,11.23,ADOPTION ALLOWANCES-FOOD & DRINK SUPPLIES,MISCELLANEOUS GENERAL MERCHANDISE,GPC
WALSALL COUNCIL,http://opendatacommunities.org/id/metropolitan-district-council/walsall ,31/12/2023,CHILDRENS SERVICES,ICELAND,02/10/2023,H59620231004HBATUUDQQ-1,11.95,REDRUTH ROAD-FOOD & DRINK SUPPLIES,GROCERY STORES AND SUPERMARKETS,GPC
WALSALL COUNCIL,http://opendatacommunities.org/id/metropolitan-district-council/walsall ,31/12/2023,CHILDRENS SERVICES,HM PASSPORT OFFICE,02/10/2023,H59620231004HDLPPKENO-1,93.00,CORPORATE PARENTING-FEES & LICENCES,GOVERNMENT SERVICES,GPC
WALSALL COUNCIL,http://opendatacommunities.org/id/metropolitan-district-council/walsall ,31/12/2023,RESOURCES AND TRANSFORMATION,BLAKEMORE FOODSERVICE,02/10/2023,H59620231004HJXHTEOJX-1,945.00,CATERING - SCHOOLS-FOOD & DRINK SUPPLIES,CATERERS,GPC
WALSALL COUNCIL,http://opendatacommunities.org/id/metropolitan-district-council/walsall ,31/12/2023,RESOURCES AND TRANSFORMATION,BLAKEMORE FOODSERVICE,02/10/2023,H59620231004HJXHTEOJX-2,49.63,CATERING - SCHOOLS-FOOD & DRINK SUPPLIES,CATERERS,GPC
WALSALL COUNCIL,http://opendatacommunities.org/id/metropolitan-district-council/walsall ,31/12/2023,RESOURCES AND TRANSFORMATION,BLAKEMORE FOODSERVICE,02/10/2023,H59620231004HLGNOOVUF-1,44.48,CATERING - SCHOOLS-FOOD & DRINK SUPPLIES,CATERERS,GPC
WALSALL COUNCIL,http://opendatacommunities.org/id/metropolitan-district-council/walsall ,31/12/2023,ECONOMY & ENVIRONMENT,AMAZON.CO.UK*HT1334Z54,02/10/2023,H59620231004HLKQNLDPE-1,15.30,NEW ART GALLERY VENUE INCOME-CATERING & REFRESHMENTS,OTHER DIRECT MARKETING-OTHER DIRECT MARKETERS,GPC
WALSALL COUNCIL,http://opendatacommunities.org/id/metropolitan-district-council/walsall ,31/12/2023,CHILDRENS SERVICES,WM MORRISONS STORE,02/10/2023,H59620231004HOIHNJMRW-1,32.00,BUTTS PRIMARY SCHOOL-OPERATIONAL MAINTENANCE,GROCERY STORES AND SUPERMARKETS,GPC
WALSALL COUNCIL,http://opendatacommunities.org/id/metropolitan-district-council/walsall ,31/12/2023,RESOURCES AND TRANSFORMATION,ASDA SUPERSTORE,02/10/2023,H59620231004IDRWVHNQH-1,3.75,CATERING - SCHOOLS-FOOD & DRINK SUPPLIES,GROCERY STORES AND SUPERMARKETS,GPC
WALSALL COUNCIL,http://opendatacommunities.org/id/metropolitan-district-council/walsall ,31/12/2023,RESOURCES AND TRANSFORMATION,NOBISCO LIMITED,02/10/2023,H59620231004IHIFMYMXY-1,46.00,CATERING - SCHOOLS-FOOD & DRINK SUPPLIES,OTHER INDUSTRIAL SUPPLIES,GPC
WALSALL COUNCIL,http://opendatacommunities.org/id/metropolitan-district-council/walsall ,31/12/2023,CHILDRENS SERVICES,DUNELM SOFTFURNISHINGS,02/10/2023,H59620231004IHPTTOGEB-1,43.95,PSE-MATERIALS,"EQUIPMENT, FURNITURE, AND HOME FURNISHINGS STORES ",GPC
WALSALL COUNCIL,http://opendatacommunities.org/id/metropolitan-district-council/walsall ,31/12/2023,ECONOMY & ENVIRONMENT,BINOTTO UK LTD,02/10/2023,H59620231004IMSQHEMUA-1,420.72,FLEET-MATERIALS,MOTOR VEHICLE SUPPLIES AND NEW PARTS,GPC
WALSALL COUNCIL,http://opendatacommunities.org/id/metropolitan-district-council/walsall ,31/12/2023,RESOURCES AND TRANSFORMATION,BLAKEMORE FOODSERVICE,02/10/2023,H59620231004JEDFBVKMB-1,240.25,CATERING - SCHOOLS-FOOD & DRINK SUPPLIES,CATERERS,GPC
WALSALL COUNCIL,http://opendatacommunities.org/id/metropolitan-district-council/walsall ,31/12/2023,ECONOMY & ENVIRONMENT,AMZNMKTPLACE,02/10/2023,H59620231004JGNLBMMUK-1,61.96,EDUCATION INFORMAL-MATERIALS,MISCELLANEOUS AND SPECIALTY RETAIL STORES,GPC
WALSALL COUNCIL,http://opendatacommunities.org/id/metropolitan-district-council/walsall ,31/12/2023,CHILDRENS SERVICES,CAN I GO AND PLAY NOW,02/10/2023,H59620231004KCUGGQVBV-1,112.50,ENGLISH-MATERIALS,"THEATRICAL PRODUCERS, TIC",GPC
WALSALL COUNCIL,http://opendatacommunities.org/id/metropolitan-district-council/walsall ,31/12/2023,ECONOMY & ENVIRONMENT,AMAZON.CO.UK*HT3II1ZG4,02/10/2023,H59620231004KDYWSFXGJ-1,15.30,NEW ART GALLERY VENUE INCOME-CATERING & REFRESHMENTS,OTHER DIRECT MARKETING-OTHER DIRECT MARKETERS,GPC
WALSALL COUNCIL,http://opendatacommunities.org/id/metropolitan-district-council/walsall ,31/12/2023,RESOURCES AND TRANSFORMATION,BLAKEMORE FOODSERVICE,02/10/2023,H59620231004KLJIKXHGA-1,988.43,CATERING - SCHOOLS-FOOD & DRINK SUPPLIES,CATERERS,GPC
WALSALL COUNCIL,http://opendatacommunities.org/id/metropolitan-district-council/walsall ,31/12/2023,ECONOMY & ENVIRONMENT,BLOXWICH HARDWARE,02/10/2023,H59620231004KLOQUBBTE-1,7.00,STREETLY LIBRARY-PURCHASE OF FURNITURE & EQUIPM,HARDWARE STORES,GPC
WALSALL COUNCIL,http://opendatacommunities.org/id/metropolitan-district-council/walsall ,31/12/2023,CHILDRENS SERVICES,TES RESOURCES,02/10/2023,H59620231004KTBOOPOQD-1,3.00,SOCIAL SCIENCE-MATERIALS,OTHER SCHOOLS AND EDUCATIONAL SERVICES,GPC
WALSALL COUNCIL,http://opendatacommunities.org/id/metropolitan-district-council/walsall ,31/12/2023,RESOURCES AND TRANSFORMATION,BLAKEMORE FOODSERVICE,02/10/2023,H59620231004MGJENMLFW-1,66.40,CATERING - SCHOOLS-FOOD & DRINK SUPPLIES,CATERERS,GPC
WALSALL COUNCIL,http://opendatacommunities.org/id/metropolitan-district-council/walsall ,31/12/2023,CHILDRENS SERVICES,ASDA GROCERIES ONLINE,02/10/2023,H59620231004MGVORWQPE-1,40.85,BREAKFAST CLUB-FOOD & DRINK SUPPLIES,GROCERY STORES AND SUPERMARKETS,GPC
WALSALL COUNCIL,http://opendatacommunities.org/id/metropolitan-district-council/walsall ,31/12/2023,RESOURCES AND TRANSFORMATION,BLAKEMORE FOODSERVICE,02/10/2023,H59620231004MHHJCTDNU-1,1555.96,CATERING - SCHOOLS-FOOD & DRINK SUPPLIES,CATERERS,GPC
WALSALL COUNCIL,http://opendatacommunities.org/id/metropolitan-district-council/walsall ,31/12/2023,ECONOMY & ENVIRONMENT,AMZNMKTPLACE,02/10/2023,H59620231004MQWTHYFTW-1,162.33,HIGHWAYS MAINTENANCE GENERAL-COMPUTER EQUIPMENT,MISCELLANEOUS AND SPECIALTY RETAIL STORES,GPC
WALSALL COUNCIL,http://opendatacommunities.org/id/metropolitan-district-council/walsall ,31/12/2023,CHILDRENS SERVICES,WALSALL COUNCIL,02/10/2023,H59620231004MZYBQXIOC-1,120.66,ST JOHNS C.E. PRIMARY SCHOOL-POLICE CHECKS,GOVERNMENT SERVICES,GPC
WALSALL COUNCIL,http://opendatacommunities.org/id/metropolitan-district-council/walsall ,31/12/2023,CHILDRENS SERVICES,BKG*HOTEL AT BOOKING.C,02/10/2023,H59620231004NMDBDGXYI-1,144.00,FAMILY SAFEGUARDING EAST LOCAL-OTHER TRAVEL ALLOWANCES,TRAVEL AGENCIES AND TOUR OPERATORS,GPC
WALSALL COUNCIL,http://opendatacommunities.org/id/metropolitan-district-council/walsall ,31/12/2023,RESOURCES AND TRANSFORMATION,BLAKEMORE FOODSERVICE,02/10/2023,H59620231004NWBPRQHCN-1,251.30,TOWN HALL RESTAURANT BISTRO-FOOD & DRINK SUPPLIES,CATERERS,GPC
WALSALL COUNCIL,http://opendatacommunities.org/id/metropolitan-district-council/walsall ,31/12/2023,RESOURCES AND TRANSFORMATION,BLAKEMORE FOODSERVICE,02/10/2023,H59620231004NWBPRQHCN-2,118.70,TOWN HALL RESTAURANT BISTRO-FOOD & DRINK SUPPLIES,CATERERS,GPC
WALSALL COUNCIL,http://opendatacommunities.org/id/metropolitan-district-council/walsall ,31/12/2023,CHILDRENS SERVICES,PARENTPAY E-COM R,02/10/2023,H59620231004NZHPRVQAU-1,26.00,PINE VIEW-EDUCATION SCHOOLS (S52) CONTIN,"COLLEGES, UNIVERSITIES, PROFESSIONAL SCHOOLS",GPC
WALSALL COUNCIL,http://opendatacommunities.org/id/metropolitan-district-council/walsall ,31/12/2023,ECONOMY & ENVIRONMENT,FINDEL EDUCATION,02/10/2023,H59620231004OKZDLPKET-1,39.50,LEATHER MUSEUM-MATERIALS,OTHER DIRECT MARKETING-OTHER DIRECT MARKETERS,GPC
WALSALL COUNCIL,http://opendatacommunities.org/id/metropolitan-district-council/walsall ,31/12/2023,ECONOMY & ENVIRONMENT,J P LENNARD LTD,02/10/2023,H59620231004OWBSENGZB-1,1033.03,DARLASTON SWIMMING AND FITNESS-PURCHASE OF FURNITURE & EQUIPM,SPORTING GOODS STORES,GPC
WALSALL COUNCIL,http://opendatacommunities.org/id/metropolitan-district-council/walsall ,31/12/2023,ECONOMY & ENVIRONMENT,AMAZON.CO.UK*HT93V9ZR4,02/10/2023,H59620231004OXCTHVRIC-1,15.31,NEW ART GALLERY VENUE INCOME-CATERING & REFRESHMENTS,OTHER DIRECT MARKETING-OTHER DIRECT MARKETERS,GPC
WALSALL COUNCIL,http://opendatacommunities.org/id/metropolitan-district-council/walsall ,31/12/2023,CHILDRENS SERVICES,B&M 022 - WEDNESBURY,02/10/2023,H59620231004PFXDKGFSK-1,22.73,ADOPTION ALLOWANCES-MATERIALS,MISCELLANEOUS GENERAL MERCHANDISE,GPC
WALSALL COUNCIL,http://opendatacommunities.org/id/metropolitan-district-council/walsall ,31/12/2023,RESOURCES AND TRANSFORMATION,BLAKEMORE FOODSERVICE,02/10/2023,H59620231004PMQNSOJXT-1,736.27,CATERING - SCHOOLS-FOOD & DRINK SUPPLIES,CATERERS,GPC
WALSALL COUNCIL,http://opendatacommunities.org/id/metropolitan-district-council/walsall ,31/12/2023,RESOURCES AND TRANSFORMATION,BLAKEMORE FOODSERVICE,02/10/2023,H59620231004PMQNSOJXT-2,73.39,CATERING - SCHOOLS-FOOD & DRINK SUPPLIES,CATERERS,GPC
WALSALL COUNCIL,http://opendatacommunities.org/id/metropolitan-district-council/walsall ,31/12/2023,CHILDRENS SERVICES,WWW.ARGOS.CO.UK,02/10/2023,H59620231004PNUEMDFMO-1,49.45,FAMILY SAFEGUARDING EAST LOCAL-PURCHASE OF FURNITURE & EQUIPM,DEPARTMENT STORES,GPC
WALSALL COUNCIL,http://opendatacommunities.org/id/metropolitan-district-council/walsall ,31/12/2023,RESOURCES AND TRANSFORMATION,BLAKEMORE FOODSERVICE,02/10/2023,H59620231004PWWCWFQPI-1,690.85,CATERING - SCHOOLS-FOOD & DRINK SUPPLIES,CATERERS,GPC
WALSALL COUNCIL,http://opendatacommunities.org/id/metropolitan-district-council/walsall ,31/12/2023,RESOURCES AND TRANSFORMATION,BLAKEMORE FOODSERVICE,02/10/2023,H59620231004PWWCWFQPI-2,81.45,CATERING - SCHOOLS-FOOD & DRINK SUPPLIES,CATERERS,GPC
WALSALL COUNCIL,http://opendatacommunities.org/id/metropolitan-district-council/walsall ,31/12/2023,CHILDRENS SERVICES,WM MORRISONS STORE PICK,02/10/2023,H59620231004PXTTFXSOX-1,21.12,"43A HILTON ROAD, WILLENHALL-FOOD & DRINK SUPPLIES",GROCERY STORES AND SUPERMARKETS,GPC
WALSALL COUNCIL,http://opendatacommunities.org/id/metropolitan-district-council/walsall ,31/12/2023,CHILDRENS SERVICES,WM MORRISONS STORE PICK,02/10/2023,H59620231004PXTTFXSOX-2,140.04,"43A HILTON ROAD, WILLENHALL-FOOD & DRINK SUPPLIES",GROCERY STORES AND SUPERMARKETS,GPC
WALSALL COUNCIL,http://opendatacommunities.org/id/metropolitan-district-council/walsall ,31/12/2023,ECONOMY & ENVIRONMENT,AMAZON.CO.UK*HT7TV2NC4,02/10/2023,H59620231004PYGFVAGOB-1,124.88,DARLASTON SWIMMING AND FITNESS-PURCHASE OF FURNITURE & EQUIPM,OTHER DIRECT MARKETING-OTHER DIRECT MARKETERS,GPC
WALSALL COUNCIL,http://opendatacommunities.org/id/metropolitan-district-council/walsall ,31/12/2023,ECONOMY & ENVIRONMENT,ASDA,02/10/2023,H59620231004QHPWXTXVS-1,17.00,RESTART-CLOTHING & LAUNDRY,GROCERY STORES AND SUPERMARKETS,GPC
WALSALL COUNCIL,http://opendatacommunities.org/id/metropolitan-district-council/walsall ,31/12/2023,CHILDRENS SERVICES,FREEPRINTS,02/10/2023,H59620231004QIGGOOXPE-1,33.49,PINE VIEW-EXTERNAL PRINTING SERVICES,"PHOTO DEVELOPING, PHOTOFINISHING LABORATORIES",GPC
WALSALL COUNCIL,http://opendatacommunities.org/id/metropolitan-district-council/walsall ,31/12/2023,CHILDRENS SERVICES,AMZNMKTPLACE,02/10/2023,H59620231004QQGTDKUAW-1,24.88,COMMUNICATION-MATERIALS,MISCELLANEOUS AND SPECIALTY RETAIL STORES,GPC
WALSALL COUNCIL,http://opendatacommunities.org/id/metropolitan-district-council/walsall ,31/12/2023,RESOURCES AND TRANSFORMATION,BLAKEMORE FOODSERVICE,02/10/2023,H59620231004RFEDBZHZY-1,488.24,CATERING - SCHOOLS-FOOD & DRINK SUPPLIES,CATERERS,GPC
WALSALL COUNCIL,http://opendatacommunities.org/id/metropolitan-district-council/walsall ,31/12/2023,RESOURCES AND TRANSFORMATION,BLAKEMORE FOODSERVICE,02/10/2023,H59620231004RFEDBZHZY-2,16.97,CATERING - SCHOOLS-FOOD & DRINK SUPPLIES,CATERERS,GPC
WALSALL COUNCIL,http://opendatacommunities.org/id/metropolitan-district-council/walsall ,31/12/2023,RESOURCES AND TRANSFORMATION,BLAKEMORE FOODSERVICE,02/10/2023,H59620231004RIXKFTIQG-1,911.94,CATERING - SCHOOLS-FOOD & DRINK SUPPLIES,CATERERS,GPC
WALSALL COUNCIL,http://opendatacommunities.org/id/metropolitan-district-council/walsall ,31/12/2023,RESOURCES AND TRANSFORMATION,BLAKEMORE FOODSERVICE,02/10/2023,H59620231004RIXKFTIQG-2,32.66,CATERING - SCHOOLS-FOOD & DRINK SUPPLIES,CATERERS,GPC
WALSALL COUNCIL,http://opendatacommunities.org/id/metropolitan-district-council/walsall ,31/12/2023,RESOURCES AND TRANSFORMATION,BLAKEMORE FOODSERVICE,02/10/2023,H59620231004RLJUGULWG-1,493.93,CATERING - SCHOOLS-FOOD & DRINK SUPPLIES,CATERERS,GPC
WALSALL COUNCIL,http://opendatacommunities.org/id/metropolitan-district-council/walsall ,31/12/2023,RESOURCES AND TRANSFORMATION,BLAKEMORE FOODSERVICE,02/10/2023,H59620231004RLJUGULWG-2,45.87,CATERING - SCHOOLS-FOOD & DRINK SUPPLIES,CATERERS,GPC
WALSALL COUNCIL,http://opendatacommunities.org/id/metropolitan-district-council/walsall ,31/12/2023,RESOURCES AND TRANSFORMATION,BLAKEMORE FOODSERVICE,02/10/2023,H59620231004RQVNCQOQD-1,335.36,CATERING - SCHOOLS-FOOD & DRINK SUPPLIES,CATERERS,GPC
WALSALL COUNCIL,http://opendatacommunities.org/id/metropolitan-district-council/walsall ,31/12/2023,ECONOMY & ENVIRONMENT,AMAZON.CO.UK*HT0IW2ZP4,02/10/2023,H59620231004RWCSFHJPY-1,15.30,NEW ART GALLERY VENUE INCOME-CATERING & REFRESHMENTS,OTHER DIRECT MARKETING-OTHER DIRECT MARKETERS,GPC
WALSALL COUNCIL,http://opendatacommunities.org/id/metropolitan-district-council/walsall ,31/12/2023,ECONOMY & ENVIRONMENT,AMZNMKTPLACE,02/10/2023,H59620231004RZYXXQHBA-1,7.12,WALSALL ARENA AND ARTS CENTRE-MATERIALS,MISCELLANEOUS AND SPECIALTY RETAIL STORES,GPC
WALSALL COUNCIL,http://opendatacommunities.org/id/metropolitan-district-council/walsall ,31/12/2023,CHILDRENS SERVICES,WATERSTONES,02/10/2023,H59620231004SJTTJWJOG-1,15.00,FAMILY PLACEMENTS-LIBRARY BOOKS,BOOK STORES,GPC
WALSALL COUNCIL,http://opendatacommunities.org/id/metropolitan-district-council/walsall ,31/12/2023,RESOURCES AND TRANSFORMATION,ASDA SUPERSTORE,02/10/2023,H59620231004SKCXFIPCI-1,1.70,CATERING - SCHOOLS-FOOD & DRINK SUPPLIES,GROCERY STORES AND SUPERMARKETS,GPC
WALSALL COUNCIL,http://opendatacommunities.org/id/metropolitan-district-council/walsall ,31/12/2023,RESOURCES AND TRANSFORMATION,BLAKEMORE FOODSERVICE,02/10/2023,H59620231004SNBOSTETB-1,37.20,CATERING - SCHOOLS-FOOD & DRINK SUPPLIES,CATERERS,GPC
WALSALL COUNCIL,http://opendatacommunities.org/id/metropolitan-district-council/walsall ,31/12/2023,RESOURCES AND TRANSFORMATION,BLAKEMORE FOODSERVICE,02/10/2023,H59620231004SOPSHKRHL-1,87.54,CATERING - SCHOOLS-FOOD & DRINK SUPPLIES,CATERERS,GPC
WALSALL COUNCIL,http://opendatacommunities.org/id/metropolitan-district-council/walsall ,31/12/2023,CHILDRENS SERVICES,WWW.BANNERUK.COM,02/10/2023,H59620231004TMHXLOKPF-1,50.12,PINE VIEW-STATIONERY & GENERAL OFFICE SU,"STATIONERY, OFFICE SUPPLIES AND WRITING PAPER",GPC
WALSALL COUNCIL,http://opendatacommunities.org/id/metropolitan-district-council/walsall ,31/12/2023,CHILDRENS SERVICES,SAINSBURYS S/MKTS,02/10/2023,H59620231004TYBMXIDXR-1,10.25,CORPORATE PARENTING-FOOD & DRINK SUPPLIES,GROCERY STORES AND SUPERMARKETS,GPC
WALSALL COUNCIL,http://opendatacommunities.org/id/metropolitan-district-council/walsall ,31/12/2023,CHILDRENS SERVICES,TESCO GIFT CARD,02/10/2023,H59620231004UCEJPQNQL-1,50.00,HOUSING & WELFARE-FOOD & DRINK SUPPLIES,GROCERY STORES AND SUPERMARKETS,GPC
WALSALL COUNCIL,http://opendatacommunities.org/id/metropolitan-district-council/walsall ,31/12/2023,RESOURCES AND TRANSFORMATION,BLAKEMORE FOODSERVICE,02/10/2023,H59620231004UCGQRZGNF-1,26.25,CATERING - SCHOOLS-FOOD & DRINK SUPPLIES,CATERERS,GPC
WALSALL COUNCIL,http://opendatacommunities.org/id/metropolitan-district-council/walsall ,31/12/2023,CHILDRENS SERVICES,SHREWSBURY PRISON,02/10/2023,H59620231004UFEZMNWSU-1,202.00,E19-MATERIALS,TOURIST ATTRACTIONS AND EXHIBITS,GPC
WALSALL COUNCIL,http://opendatacommunities.org/id/metropolitan-district-council/walsall ,31/12/2023,CHILDRENS SERVICES,PARENTASSESS,02/10/2023,H59620231004UMKCYCTVQ-1,720.00,PRACTICE DEVELOPMENT-EXTERNAL TRAINING,OTHER SCHOOLS AND EDUCATIONAL SERVICES,GPC
WALSALL COUNCIL,http://opendatacommunities.org/id/metropolitan-district-council/walsall ,31/12/2023,RESOURCES AND TRANSFORMATION,TESCO STORES 6161,02/10/2023,H59620231004UNJJSBGLF-1,44.14,TOWN HALL RESTAURANT BISTRO-FOOD & DRINK SUPPLIES,GROCERY STORES AND SUPERMARKETS,GPC
WALSALL COUNCIL,http://opendatacommunities.org/id/metropolitan-district-council/walsall ,31/12/2023,ECONOMY & ENVIRONMENT,INSTIT OF OCCPTNL SAFE,02/10/2023,H59620231004UPANOPKFT-1,163.00,FLEET-MATERIALS,"ORGANIZATIONS, MEMBERSHIP",GPC
WALSALL COUNCIL,http://opendatacommunities.org/id/metropolitan-district-council/walsall ,31/12/2023,ECONOMY & ENVIRONMENT,AMZNMKTPLACE,02/10/2023,H59620231004URSJBSFMH-1,11.89,LICHFIELD HUB-HEALTH & SAFETY PERSONAL PROTE,MISCELLANEOUS AND SPECIALTY RETAIL STORES,GPC
WALSALL COUNCIL,http://opendatacommunities.org/id/metropolitan-district-council/walsall ,31/12/2023,ECONOMY & ENVIRONMENT,WALSALL COUNCIL,02/10/2023,H59620231004UVMQYPXDN-1,17.00,RESTART-FEES & LICENCES,GOVERNMENT SERVICES,GPC
WALSALL COUNCIL,http://opendatacommunities.org/id/metropolitan-district-council/walsall ,31/12/2023,ECONOMY & ENVIRONMENT,ASDA,02/10/2023,H59620231004VEHUUEJTZ-1,95.00,MULTIPLY PROGRAMME-FOOD & DRINK SUPPLIES,GROCERY STORES AND SUPERMARKETS,GPC
WALSALL COUNCIL,http://opendatacommunities.org/id/metropolitan-district-council/walsall ,31/12/2023,CHILDRENS SERVICES,HOME BARGAINS,02/10/2023,H59620231004VYZRQABOR-1,1.29,REDRUTH ROAD-PURCHASE OF FURNITURE & EQUIPM,MISCELLANEOUS GENERAL MERCHANDISE,GPC
WALSALL COUNCIL,http://opendatacommunities.org/id/metropolitan-district-council/walsall ,31/12/2023,CHILDRENS SERVICES,SEATED FURNITURE LTD,02/10/2023,H59620231004WGYUTNPQV-1,233.86,EARLY YEARS-MATERIALS,"EQUIPMENT, FURNITURE, AND HOME FURNISHINGS STORES ",GPC
WALSALL COUNCIL,http://opendatacommunities.org/id/metropolitan-district-council/walsall ,31/12/2023,CHILDRENS SERVICES,PAYPAL *EDUSITES,02/10/2023,H59620231004WPYOPVBJT-1,95.94,SOCIAL SCIENCE-MATERIALS,COMPUTER SOFTWARE STORES,GPC
WALSALL COUNCIL,http://opendatacommunities.org/id/metropolitan-district-council/walsall ,31/12/2023,CHILDRENS SERVICES,WALSALL COUNCIL,02/10/2023,H59620231004WQNPGPUTF-1,40.22,ST FRANCIS OF ASSISI CATHOLIC -POLICE CHECKS,GOVERNMENT SERVICES,GPC
WALSALL COUNCIL,http://opendatacommunities.org/id/metropolitan-district-council/walsall ,31/12/2023,ECONOMY & ENVIRONMENT,B & Q 1276,02/10/2023,H59620231004WXFTBVTYW-1,45.00,INFRASTRUCTURE MAINTENANCE-GROUNDS MAINTENANCE,HOME SUPPLY WAREHOUSE STORES,GPC
WALSALL COUNCIL,http://opendatacommunities.org/id/metropolitan-district-council/walsall ,31/12/2023,CHILDRENS SERVICES,EASYJET AIR K66D6T3,02/10/2023,H59620231004XCEMGDDZZ-1,170.66,FAMILY SAFEGUARDING WEST LOCAL-SECTION 1/17CHILD CARE ACT 198,EASYJET,GPC
WALSALL COUNCIL,http://opendatacommunities.org/id/metropolitan-district-council/walsall ,31/12/2023,CHILDRENS SERVICES,AMZNMKTPLACE,02/10/2023,H59620231004XLHHITCKC-1,25.98,ADMINISTRATIVE SUPPLIES-STATIONERY & GENERAL OFFICE SU,MISCELLANEOUS AND SPECIALTY RETAIL STORES,GPC
WALSALL COUNCIL,http://opendatacommunities.org/id/metropolitan-district-council/walsall ,31/12/2023,CHILDRENS SERVICES,HAUS BIRMINGHAM,02/10/2023,H59620231004XROCJAETS-1,150.00,FAMILY SAFEGUARDING EAST LOCAL-OTHER TRAVEL ALLOWANCES,REAL ESTATE MANAGERS - RENTALS,GPC
WALSALL COUNCIL,http://opendatacommunities.org/id/metropolitan-district-council/walsall ,31/12/2023,CHILDRENS SERVICES,AMZNMKTPLACE,02/10/2023,H59620231004XWDCBEDYO-1,9.99,RE/CC-MATERIALS,MISCELLANEOUS AND SPECIALTY RETAIL STORES,GPC
WALSALL COUNCIL,http://opendatacommunities.org/id/metropolitan-district-council/walsall ,31/12/2023,CHILDRENS SERVICES,HOME BARGAINS,02/10/2023,H59620231004YHOTKPQNK-1,31.93,REDRUTH ROAD-CLEANING MATERIALS,MISCELLANEOUS GENERAL MERCHANDISE,GPC
WALSALL COUNCIL,http://opendatacommunities.org/id/metropolitan-district-council/walsall ,31/12/2023,ECONOMY & ENVIRONMENT,AMAZON.CO.UK*HT6VC5Z44,02/10/2023,H59620231004YIXLEPXSC-1,15.30,NEW ART GALLERY VENUE INCOME-CATERING & REFRESHMENTS,OTHER DIRECT MARKETING-OTHER DIRECT MARKETERS,GPC
WALSALL COUNCIL,http://opendatacommunities.org/id/metropolitan-district-council/walsall ,31/12/2023,CHILDRENS SERVICES,TES RESOURCES,02/10/2023,H59620231004YLDIJHYCP-1,3.00,SOCIAL SCIENCE-MATERIALS,OTHER SCHOOLS AND EDUCATIONAL SERVICES,GPC
WALSALL COUNCIL,http://opendatacommunities.org/id/metropolitan-district-council/walsall ,31/12/2023,CHILDRENS SERVICES,ASDA GROCERIES ONLINE,02/10/2023,H59620231004YPRJWQAHW-1,11.00,FOOD TECHNOLOGY-FOOD & DRINK SUPPLIES,GROCERY STORES AND SUPERMARKETS,GPC
WALSALL COUNCIL,http://opendatacommunities.org/id/metropolitan-district-council/walsall ,31/12/2023,CHILDRENS SERVICES,ASDA GROCERIES ONLINE,02/10/2023,H59620231004YPRJWQAHW-2,38.30,FOOD TECHNOLOGY-FOOD & DRINK SUPPLIES,GROCERY STORES AND SUPERMARKETS,GPC
WALSALL COUNCIL,http://opendatacommunities.org/id/metropolitan-district-council/walsall ,31/12/2023,RESOURCES AND TRANSFORMATION,BLAKEMORE FOODSERVICE,02/10/2023,H59620231004YXBQLKIIE-1,313.05,CATERING - SCHOOLS-FOOD & DRINK SUPPLIES,CATERERS,GPC
WALSALL COUNCIL,http://opendatacommunities.org/id/metropolitan-district-council/walsall ,31/12/2023,RESOURCES AND TRANSFORMATION,BLAKEMORE FOODSERVICE,02/10/2023,H59620231004YXBQLKIIE-2,47.61,CATERING - SCHOOLS-FOOD & DRINK SUPPLIES,CATERERS,GPC
WALSALL COUNCIL,http://opendatacommunities.org/id/metropolitan-district-council/walsall ,31/12/2023,RESOURCES AND TRANSFORMATION,BLAKEMORE FOODSERVICE,02/10/2023,H59620231004ZGOFXIECI-1,101.92,CATERING - SCHOOLS-FOOD & DRINK SUPPLIES,CATERERS,GPC
WALSALL COUNCIL,http://opendatacommunities.org/id/metropolitan-district-council/walsall ,31/12/2023,CHILDRENS SERVICES,COSTA COFFEE REEDSWOOD DT,02/10/2023,H59620231004ZNOLCOHGJ-1,7.15,EDGE OF CARE TEAM-FOOD & DRINK SUPPLIES,QUICK PAYMENT SERVICE-FAST-FOOD RESTAURANTS,GPC
WALSALL COUNCIL,http://opendatacommunities.org/id/metropolitan-district-council/walsall ,31/12/2023,RESOURCES AND TRANSFORMATION,BLAKEMORE FOODSERVICE,02/10/2023,H59620231004ZVJECTEVP-1,403.28,CATERING - SCHOOLS-FOOD & DRINK SUPPLIES,CATERERS,GPC
WALSALL COUNCIL,http://opendatacommunities.org/id/metropolitan-district-council/walsall ,31/12/2023,RESOURCES AND TRANSFORMATION,BLAKEMORE FOODSERVICE,02/10/2023,H59620231004ZVJECTEVP-2,18.35,CATERING - SCHOOLS-FOOD & DRINK SUPPLIES,CATERERS,GPC
WALSALL COUNCIL,http://opendatacommunities.org/id/metropolitan-district-council/walsall ,31/12/2023,CHILDRENS SERVICES,AMAZON* 202-5981029-27,02/10/2023,H59620231005CNLUHQCOJ-1,39.41,FAMILY SAFEGUARDING WEST LOCAL-PURCHASE OF FURNITURE & EQUIPM,MISCELLANEOUS GENERAL MERCHANDISE,GPC
WALSALL COUNCIL,http://opendatacommunities.org/id/metropolitan-district-council/walsall ,31/12/2023,CHILDRENS SERVICES,TVLICENSING.CO.UK,02/10/2023,H59620231005QSTDSHRVO-1,159.00,EDGE OF CARE TEAM-PROFESSIONAL FEES & SERVICES,"CONSULTING, MANAGEMENT, AND PR SERVICES",GPC
WALSALL COUNCIL,http://opendatacommunities.org/id/metropolitan-district-council/walsall ,31/12/2023,CHILDRENS SERVICES,PAYPAL *IKEALIMITED 35,02/10/2023,H59620231006CONQEJQCY-1,189.00,HEALTH & SOCIAL CARE-MATERIALS,"EQUIPMENT, FURNITURE, AND HOME FURNISHINGS STORES ",GPC
WALSALL COUNCIL,http://opendatacommunities.org/id/metropolitan-district-council/walsall ,31/12/2023,CHILDRENS SERVICES,AMZNBUSINESS*HT4H16394,03/10/2023,H59620231004MEJJPJWWK-1,7.95,ADMINISTRATIVE SUPPLIES-MATERIALS,MISCELLANEOUS AND SPECIALTY RETAIL STORES,GPC
WALSALL COUNCIL,http://opendatacommunities.org/id/metropolitan-district-council/walsall ,31/12/2023,ECONOMY & ENVIRONMENT,AMZNMKTPLACE,03/10/2023,H59620231004ODXLFNTNB-1,26.57,LICHFIELD HUB-MATERIALS,MISCELLANEOUS AND SPECIALTY RETAIL STORES,GPC
WALSALL COUNCIL,http://opendatacommunities.org/id/metropolitan-district-council/walsall ,31/12/2023,CHILDRENS SERVICES,AMZNMKTPLACE,03/10/2023,H59620231004QXUOLTLZI-1,16.94,FAMILY SAFEGUARDING WEST LOCAL-STATIONERY & GENERAL OFFICE SU,MISCELLANEOUS AND SPECIALTY RETAIL STORES,GPC
WALSALL COUNCIL,http://opendatacommunities.org/id/metropolitan-district-council/walsall ,31/12/2023,RESOURCES AND TRANSFORMATION,AMZNMKTPLACE,03/10/2023,H59620231004ZGBDHWFPW-1,33.99,CIS AND GOVERNANCE TEAM-PURCHASE OF FURNITURE & EQUIPM,MISCELLANEOUS AND SPECIALTY RETAIL STORES,GPC
WALSALL COUNCIL,http://opendatacommunities.org/id/metropolitan-district-council/walsall ,31/12/2023,RESOURCES AND TRANSFORMATION,ARTHUR BRETT CATER,03/10/2023,H59620231005ADKDJFNKX-1,69.81,CATERING - SCHOOLS-FOOD & DRINK SUPPLIES,MISCELLANEOUS FOOD STORES & CONVENIENCE STORES,GPC
WALSALL COUNCIL,http://opendatacommunities.org/id/metropolitan-district-council/walsall ,31/12/2023,RESOURCES AND TRANSFORMATION,NOBISCO LIMITED,03/10/2023,H59620231005AELZNJGXV-1,55.44,CATERING - SCHOOLS-FOOD & DRINK SUPPLIES,OTHER INDUSTRIAL SUPPLIES,GPC
WALSALL COUNCIL,http://opendatacommunities.org/id/metropolitan-district-council/walsall ,31/12/2023,CHILDRENS SERVICES,ASDA,03/10/2023,H59620231005AFYQDFPDH-1,4.55,YOUNG PERSONS HOMELESS SERVICE-FOOD & DRINK SUPPLIES,GROCERY STORES AND SUPERMARKETS,GPC
WALSALL COUNCIL,http://opendatacommunities.org/id/metropolitan-district-council/walsall ,31/12/2023,CHILDRENS SERVICES,ASDA,03/10/2023,H59620231005AFYQDFPDH-2,8.19,YOUNG PERSONS HOMELESS SERVICE-CLEANING MATERIALS,GROCERY STORES AND SUPERMARKETS,GPC
WALSALL COUNCIL,http://opendatacommunities.org/id/metropolitan-district-council/walsall ,31/12/2023,ECONOMY & ENVIRONMENT,AMZNMKTPLACE,03/10/2023,H59620231005BFSUGNHFH-1,18.97,CEMETERIES-PURCHASE OF FURNITURE & EQUIPM,MISCELLANEOUS AND SPECIALTY RETAIL STORES,GPC
WALSALL COUNCIL,http://opendatacommunities.org/id/metropolitan-district-council/walsall ,31/12/2023,RESOURCES AND TRANSFORMATION,ARTHUR BRETT CATER,03/10/2023,H59620231005BPGYVKEXR-1,29.14,CATERING - SCHOOLS-FOOD & DRINK SUPPLIES,MISCELLANEOUS FOOD STORES & CONVENIENCE STORES,GPC
WALSALL COUNCIL,http://opendatacommunities.org/id/metropolitan-district-council/walsall ,31/12/2023,ECONOMY & ENVIRONMENT,MIDLAND CARAVAN & LEISUR,03/10/2023,H59620231005BWUTVMDFJ-1,70.00,FLEET-MATERIALS,"AUTOMOTIVE PARTS, ACCESSORIES STORES",GPC
WALSALL COUNCIL,http://opendatacommunities.org/id/metropolitan-district-council/walsall ,31/12/2023,RESOURCES AND TRANSFORMATION,ARTHUR BRETT CATER,03/10/2023,H59620231005CASVTLGAP-1,48.68,CATERING - SCHOOLS-FOOD & DRINK SUPPLIES,MISCELLANEOUS FOOD STORES & CONVENIENCE STORES,GPC
WALSALL COUNCIL,http://opendatacommunities.org/id/metropolitan-district-council/walsall ,31/12/2023,CHILDRENS SERVICES,ABC CARS GROUP,03/10/2023,H59620231005CKREIYHTP-1,30.00,POOL HAYES PRIMARY SCHOOL-TRANSPORT OTHER-ASSISTANCE TO ,TAXI SERVICES,GPC
WALSALL COUNCIL,http://opendatacommunities.org/id/metropolitan-district-council/walsall ,31/12/2023,RESOURCES AND TRANSFORMATION,ARTHUR BRETT CATER,03/10/2023,H59620231005CTNWBXRSM-1,42.12,TOWN HALL RESTAURANT BISTRO-FOOD & DRINK SUPPLIES,MISCELLANEOUS FOOD STORES & CONVENIENCE STORES,GPC
WALSALL COUNCIL,http://opendatacommunities.org/id/metropolitan-district-council/walsall ,31/12/2023,CHILDRENS SERVICES,ASDA GROCERIES ONLINE,03/10/2023,H59620231005DDFFGDUBY-1,19.38,PARENTING TEAM-FOOD & DRINK SUPPLIES,GROCERY STORES AND SUPERMARKETS,GPC
WALSALL COUNCIL,http://opendatacommunities.org/id/metropolitan-district-council/walsall ,31/12/2023,CHILDRENS SERVICES,ASDA GROCERIES ONLINE,03/10/2023,H59620231005DDFFGDUBY-2,68.19,PARENTING TEAM-FOOD & DRINK SUPPLIES,GROCERY STORES AND SUPERMARKETS,GPC
WALSALL COUNCIL,http://opendatacommunities.org/id/metropolitan-district-council/walsall ,31/12/2023,CHILDRENS SERVICES,TRAVELODGE GB0000,03/10/2023,H59620231005DFDNBTHEO-1,198.87,BED & BREAKFAST PAYMENTS-BED & BREAKFAST PAYMENTS,TRAVELODGE,GPC
WALSALL COUNCIL,http://opendatacommunities.org/id/metropolitan-district-council/walsall ,31/12/2023,CHILDRENS SERVICES,AMZNMKTPLACE,03/10/2023,H59620231005DZZLNQJES-1,10.47,LITERATURE-MATERIALS,MISCELLANEOUS AND SPECIALTY RETAIL STORES,GPC
WALSALL COUNCIL,http://opendatacommunities.org/id/metropolitan-district-council/walsall ,31/12/2023,ECONOMY & ENVIRONMENT,WWW.BANNERUK.COM,03/10/2023,H59620231005EALEHUPUD-1,165.88,LICHFIELD HUB-STATIONERY & GENERAL OFFICE SU,"STATIONERY, OFFICE SUPPLIES AND WRITING PAPER",GPC
WALSALL COUNCIL,http://opendatacommunities.org/id/metropolitan-district-council/walsall ,31/12/2023,RESOURCES AND TRANSFORMATION,WWW.BANNERUK.COM,03/10/2023,H59620231005EMTKDDIKT-1,68.05,HR ADMIN HUB-STATIONERY & GENERAL OFFICE SU,"STATIONERY, OFFICE SUPPLIES AND WRITING PAPER",GPC
WALSALL COUNCIL,http://opendatacommunities.org/id/metropolitan-district-council/walsall ,31/12/2023,CHILDRENS SERVICES,SP BIGGAMEHUNTERS,03/10/2023,H59620231005EPWBBRUYY-1,159.90,E19-MATERIALS,"GAME, TOY, AND HOBBY SHOPS",GPC
WALSALL COUNCIL,http://opendatacommunities.org/id/metropolitan-district-council/walsall ,31/12/2023,CHILDRENS SERVICES,AMZNMKTPLACE,03/10/2023,H59620231005EYFTBRSUY-1,59.85,FAMILY SAFEGUARDING - BUILDING-STATIONERY & GENERAL OFFICE SU,MISCELLANEOUS AND SPECIALTY RETAIL STORES,GPC
WALSALL COUNCIL,http://opendatacommunities.org/id/metropolitan-district-council/walsall ,31/12/2023,CHILDRENS SERVICES,AMAZON.CO.UK*HT49080A4,03/10/2023,H59620231005FKMJXCLKL-1,100.00,PASTROL (REWARDS & PRIZES)-MATERIALS,OTHER DIRECT MARKETING-OTHER DIRECT MARKETERS,GPC
WALSALL COUNCIL,http://opendatacommunities.org/id/metropolitan-district-council/walsall ,31/12/2023,CHILDRENS SERVICES,AMZNMKTPLACE,03/10/2023,H59620231005FKOTCHEHK-1,34.93,GENERAL-MATERIALS,MISCELLANEOUS AND SPECIALTY RETAIL STORES,GPC
WALSALL COUNCIL,http://opendatacommunities.org/id/metropolitan-district-council/walsall ,31/12/2023,CHILDRENS SERVICES,WM MORRISONS STORE PICK,03/10/2023,H59620231005GJNEASBSF-1,34.10,PSED-FOOD & DRINK SUPPLIES,GROCERY STORES AND SUPERMARKETS,GPC
WALSALL COUNCIL,http://opendatacommunities.org/id/metropolitan-district-council/walsall ,31/12/2023,CHILDRENS SERVICES,WM MORRISONS STORE PICK,03/10/2023,H59620231005GJNEASBSF-2,37.00,PSED-FOOD & DRINK SUPPLIES,GROCERY STORES AND SUPERMARKETS,GPC
WALSALL COUNCIL,http://opendatacommunities.org/id/metropolitan-district-council/walsall ,31/12/2023,RESOURCES AND TRANSFORMATION,WWW.BANNERUK.COM,03/10/2023,H59620231005GUWXXISMM-1,99.27,HR ADMIN HUB-STATIONERY & GENERAL OFFICE SU,"STATIONERY, OFFICE SUPPLIES AND WRITING PAPER",GPC
WALSALL COUNCIL,http://opendatacommunities.org/id/metropolitan-district-council/walsall ,31/12/2023,CHILDRENS SERVICES,AMZNMKTPLACE,03/10/2023,H59620231005HCTSJRPCR-1,39.88,ADMINISTRATIVE SUPPLIES-MATERIALS,MISCELLANEOUS AND SPECIALTY RETAIL STORES,GPC
WALSALL COUNCIL,http://opendatacommunities.org/id/metropolitan-district-council/walsall ,31/12/2023,RESOURCES AND TRANSFORMATION,NOBISCO LIMITED,03/10/2023,H59620231005HFQNHEYFW-1,32.15,CATERING - SCHOOLS-FOOD & DRINK SUPPLIES,OTHER INDUSTRIAL SUPPLIES,GPC
WALSALL COUNCIL,http://opendatacommunities.org/id/metropolitan-district-council/walsall ,31/12/2023,CHILDRENS SERVICES,AMZNMKTPLACE,03/10/2023,H59620231005HJCDDCALO-1,5.44,ICT LEARNING RESOURCES-MATERIALS,MISCELLANEOUS AND SPECIALTY RETAIL STORES,GPC
WALSALL COUNCIL,http://opendatacommunities.org/id/metropolitan-district-council/walsall ,31/12/2023,CHILDRENS SERVICES,AMZNMKTPLACE,03/10/2023,H59620231005HJDMHSGVR-1,11.98,ADMINISTRATIVE SUPPLIES-MATERIALS,MISCELLANEOUS AND SPECIALTY RETAIL STORES,GPC
WALSALL COUNCIL,http://opendatacommunities.org/id/metropolitan-district-council/walsall ,31/12/2023,CHILDRENS SERVICES,AMZNMKTPLACE,03/10/2023,H59620231005HJIFMOXNW-1,13.00,FAMILY SAFEGUARDING WEST LOCAL-STATIONERY & GENERAL OFFICE SU,MISCELLANEOUS AND SPECIALTY RETAIL STORES,GPC
WALSALL COUNCIL,http://opendatacommunities.org/id/metropolitan-district-council/walsall ,31/12/2023,RESOURCES AND TRANSFORMATION,AMZNMKTPLACE,03/10/2023,H59620231005HKDOLLRMQ-1,24.97,RECHARGEABLE EQUIPMENT-COMPUTER EQUIPMENT,MISCELLANEOUS AND SPECIALTY RETAIL STORES,GPC
WALSALL COUNCIL,http://opendatacommunities.org/id/metropolitan-district-council/walsall ,31/12/2023,CHILDRENS SERVICES,ASDA GROCERIES ONLINE,03/10/2023,H59620231005HOCIFPCZZ-1,-1.15,PARENTING TEAM-FOOD & DRINK SUPPLIES,GROCERY STORES AND SUPERMARKETS,GPC
WALSALL COUNCIL,http://opendatacommunities.org/id/metropolitan-district-council/walsall ,31/12/2023,CHILDRENS SERVICES,AMZNMKTPLACE,03/10/2023,H59620231005HRMCQVGRF-1,11.98,SEN-MATERIALS,MISCELLANEOUS AND SPECIALTY RETAIL STORES,GPC
WALSALL COUNCIL,http://opendatacommunities.org/id/metropolitan-district-council/walsall ,31/12/2023,RESOURCES AND TRANSFORMATION,ARTHUR BRETT CATER,03/10/2023,H59620231005HSXEPVXWP-1,103.95,CATERING - SCHOOLS-FOOD & DRINK SUPPLIES,MISCELLANEOUS FOOD STORES & CONVENIENCE STORES,GPC
WALSALL COUNCIL,http://opendatacommunities.org/id/metropolitan-district-council/walsall ,31/12/2023,CHILDRENS SERVICES,POST OFFICE COUNTER,03/10/2023,H59620231005HVOZQUUFD-1,15.90,ADMINISTRATIVE SUPPLIES-POSTAGES & COURIER SERVICES,POSTAL SERVICES - GOVERNMENT ONLY,GPC
WALSALL COUNCIL,http://opendatacommunities.org/id/metropolitan-district-council/walsall ,31/12/2023,CHILDRENS SERVICES,ASDA,03/10/2023,H59620231005IEFRGGIAO-1,3.74,SCHOOL READY-FOOD & DRINK SUPPLIES,GROCERY STORES AND SUPERMARKETS,GPC
WALSALL COUNCIL,http://opendatacommunities.org/id/metropolitan-district-council/walsall ,31/12/2023,CHILDRENS SERVICES,ASDA,03/10/2023,H59620231005IEFRGGIAO-2,0.35,SCHOOL READY-FOOD & DRINK SUPPLIES,GROCERY STORES AND SUPERMARKETS,GPC
WALSALL COUNCIL,http://opendatacommunities.org/id/metropolitan-district-council/walsall ,31/12/2023,CHILDRENS SERVICES,ASDA,03/10/2023,H59620231005IEFRGGIAO-3,15.04,SCHOOL READY-FOOD & DRINK SUPPLIES,GROCERY STORES AND SUPERMARKETS,GPC
WALSALL COUNCIL,http://opendatacommunities.org/id/metropolitan-district-council/walsall ,31/12/2023,CHILDRENS SERVICES,HOME BARGAINS PERRY BA,03/10/2023,H59620231005IJRZHLBSU-1,6.61,YOUNG PERSONS HOMELESS SERVICE-MATERIALS,MISCELLANEOUS GENERAL MERCHANDISE,GPC
WALSALL COUNCIL,http://opendatacommunities.org/id/metropolitan-district-council/walsall ,31/12/2023,CHILDRENS SERVICES,FARMFOODS 606,03/10/2023,H59620231005IVKXRFJCN-1,8.34,ADMINISTRATIVE SUPPLIES-POSTAGES & COURIER SERVICES,GROCERY STORES AND SUPERMARKETS,GPC
WALSALL COUNCIL,http://opendatacommunities.org/id/metropolitan-district-council/walsall ,31/12/2023,CHILDRENS SERVICES,BKG*HOTEL AT BOOKING.C,03/10/2023,H59620231005IXUIYQGTU-1,106.03,FAMILY SAFEGUARDING EAST LOCAL-OTHER TRAVEL ALLOWANCES,TRAVEL AGENCIES AND TOUR OPERATORS,GPC
WALSALL COUNCIL,http://opendatacommunities.org/id/metropolitan-district-council/walsall ,31/12/2023,CHILDRENS SERVICES,POLYDRON UK LTD,03/10/2023,H59620231005JDQIRKXNN-1,73.75,E19-MATERIALS,"GAME, TOY, AND HOBBY SHOPS",GPC
WALSALL COUNCIL,http://opendatacommunities.org/id/metropolitan-district-council/walsall ,31/12/2023,CHILDRENS SERVICES,WWW.FIRESEALSDIRECT.COM,03/10/2023,H59620231005JJAVQRUSV-1,29.73,OAKWOOD SCHOOL-OPERATIONAL MAINTENANCE,LUMBER & BUILDING MATERIALS STORES,GPC
WALSALL COUNCIL,http://opendatacommunities.org/id/metropolitan-district-council/walsall ,31/12/2023,CHILDRENS SERVICES,TRAVIS PERKINS,03/10/2023,H59620231005JPGEEBGZB-1,21.56,OAKWOOD SCHOOL-OPERATIONAL MAINTENANCE,LUMBER & BUILDING MATERIALS STORES,GPC
WALSALL COUNCIL,http://opendatacommunities.org/id/metropolitan-district-council/walsall ,31/12/2023,RESOURCES AND TRANSFORMATION,ARTHUR BRETT CATER,03/10/2023,H59620231005JRRWWXFSN-1,50.68,CATERING - SCHOOLS-FOOD & DRINK SUPPLIES,MISCELLANEOUS FOOD STORES & CONVENIENCE STORES,GPC
WALSALL COUNCIL,http://opendatacommunities.org/id/metropolitan-district-council/walsall ,31/12/2023,RESOURCES AND TRANSFORMATION,NOBISCO LIMITED,03/10/2023,H59620231005JXQELNGKU-1,544.42,CATERING - SCHOOLS-FOOD & DRINK SUPPLIES,OTHER INDUSTRIAL SUPPLIES,GPC
WALSALL COUNCIL,http://opendatacommunities.org/id/metropolitan-district-council/walsall ,31/12/2023,ECONOMY & ENVIRONMENT,TOOLSTATION LTD,03/10/2023,H59620231005KAMRUDNIR-1,32.54,TECHNICAL/ART HANDLING-MATERIALS,LUMBER & BUILDING MATERIALS STORES,GPC
WALSALL COUNCIL,http://opendatacommunities.org/id/metropolitan-district-council/walsall ,31/12/2023,CHILDRENS SERVICES,HM PASSPORT OFFICE,03/10/2023,H59620231005KSOQTEJXI-1,58.50,FAMILY SAFEGUARDING NORTH LOCA-FEES & LICENCES,GOVERNMENT SERVICES,GPC
WALSALL COUNCIL,http://opendatacommunities.org/id/metropolitan-district-council/walsall ,31/12/2023,CHILDRENS SERVICES,AMZNMKTPLACE,03/10/2023,H59620231005KWWPGCNQW-1,9.49,ICT LEARNING RESOURCES-MATERIALS,MISCELLANEOUS AND SPECIALTY RETAIL STORES,GPC
WALSALL COUNCIL,http://opendatacommunities.org/id/metropolitan-district-council/walsall ,31/12/2023,CHILDRENS SERVICES,AMZNMKTPLACE,03/10/2023,H59620231005KWWPGCNQW-2,9.48,COMMUNITY FOCUSED EXTENDED SCH-MATERIALS,MISCELLANEOUS AND SPECIALTY RETAIL STORES,GPC
WALSALL COUNCIL,http://opendatacommunities.org/id/metropolitan-district-council/walsall ,31/12/2023,RESOURCES AND TRANSFORMATION,ARTHUR BRETT CATER,03/10/2023,H59620231005KXPJWQSWH-1,60.82,CATERING - SCHOOLS-FOOD & DRINK SUPPLIES,MISCELLANEOUS FOOD STORES & CONVENIENCE STORES,GPC
WALSALL COUNCIL,http://opendatacommunities.org/id/metropolitan-district-council/walsall ,31/12/2023,CHILDRENS SERVICES,ASDA,03/10/2023,H59620231005LBRHHNTBE-1,36.75,YOUNG PERSONS HOMELESS SERVICE-PURCHASE OF FURNITURE & EQUIPM,GROCERY STORES AND SUPERMARKETS,GPC
WALSALL COUNCIL,http://opendatacommunities.org/id/metropolitan-district-council/walsall ,31/12/2023,CHILDRENS SERVICES,ASDA,03/10/2023,H59620231005LBRHHNTBE-2,15.98,YOUNG PERSONS HOMELESS SERVICE-FOOD & DRINK SUPPLIES,GROCERY STORES AND SUPERMARKETS,GPC
WALSALL COUNCIL,http://opendatacommunities.org/id/metropolitan-district-council/walsall ,31/12/2023,RESOURCES AND TRANSFORMATION,ARTHUR BRETT CATER,03/10/2023,H59620231005LGAUUBQEV-1,52.19,CATERING - SCHOOLS-FOOD & DRINK SUPPLIES,MISCELLANEOUS FOOD STORES & CONVENIENCE STORES,GPC
WALSALL COUNCIL,http://opendatacommunities.org/id/metropolitan-district-council/walsall ,31/12/2023,ECONOMY & ENVIRONMENT,AMZNMKTPLACE,03/10/2023,H59620231005LLSUXGRYK-1,19.98,LICHFIELD HUB-HEALTH & SAFETY PERSONAL PROTE,MISCELLANEOUS AND SPECIALTY RETAIL STORES,GPC
WALSALL COUNCIL,http://opendatacommunities.org/id/metropolitan-district-council/walsall ,31/12/2023,CHILDRENS SERVICES,SHELL NORTHGATE,03/10/2023,H59620231005LTYKESNBQ-1,81.90,WALSALL WOOD PRIMARY SCHOOL-FUEL FOR VEHICLES,SERVICE STATIONS,GPC
WALSALL COUNCIL,http://opendatacommunities.org/id/metropolitan-district-council/walsall ,31/12/2023,CHILDRENS SERVICES,AMZNMKTPLACE,03/10/2023,H59620231005LXXBIUBZE-1,-12.98,EARLY HELP HUB-STATIONERY & GENERAL OFFICE SU,MISCELLANEOUS AND SPECIALTY RETAIL STORES,GPC
WALSALL COUNCIL,http://opendatacommunities.org/id/metropolitan-district-council/walsall ,31/12/2023,RESOURCES AND TRANSFORMATION,NOBISCO LIMITED,03/10/2023,H59620231005MCLXYJBNF-1,32.15,CATERING - SCHOOLS-FOOD & DRINK SUPPLIES,OTHER INDUSTRIAL SUPPLIES,GPC
WALSALL COUNCIL,http://opendatacommunities.org/id/metropolitan-district-council/walsall ,31/12/2023,RESOURCES AND TRANSFORMATION,ARTHUR BRETT CATER,03/10/2023,H59620231005MXEKUSKDU-1,202.60,CATERING - SCHOOLS-FOOD & DRINK SUPPLIES,MISCELLANEOUS FOOD STORES & CONVENIENCE STORES,GPC
WALSALL COUNCIL,http://opendatacommunities.org/id/metropolitan-district-council/walsall ,31/12/2023,RESOURCES AND TRANSFORMATION,ARTHUR BRETT CATER,03/10/2023,H59620231005NIRQJNXKU-1,56.34,CATERING - SCHOOLS-FOOD & DRINK SUPPLIES,MISCELLANEOUS FOOD STORES & CONVENIENCE STORES,GPC
WALSALL COUNCIL,http://opendatacommunities.org/id/metropolitan-district-council/walsall ,31/12/2023,CHILDRENS SERVICES,LEBARA MOBILE LIMITED,03/10/2023,H59620231005NVFUHSDIF-1,6.90,ADMINISTRATIVE SUPPLIES-STATIONERY & GENERAL OFFICE SU,TELECOMMUNICATION SERVICES,GPC
WALSALL COUNCIL,http://opendatacommunities.org/id/metropolitan-district-council/walsall ,31/12/2023,CHILDRENS SERVICES,WWW.ARGOS.CO.UK,03/10/2023,H59620231005OBNRJAIEJ-1,21.45,OLD HALL SCHOOL-PERSONAL REQUISITES-MATERIALS,DEPARTMENT STORES,GPC
WALSALL COUNCIL,http://opendatacommunities.org/id/metropolitan-district-council/walsall ,31/12/2023,CHILDRENS SERVICES,ASDA GROCERIES ONLINE,03/10/2023,H59620231005OBWVMAPPY-1,-5.21,PARENTING TEAM-FOOD & DRINK SUPPLIES,GROCERY STORES AND SUPERMARKETS,GPC
WALSALL COUNCIL,http://opendatacommunities.org/id/metropolitan-district-council/walsall ,31/12/2023,CHILDRENS SERVICES,CO-OPERATIVE FOOD,03/10/2023,H59620231005OCKYVUPRY-1,9.00,FAMILY PLACEMENTS-MATERIALS,GROCERY STORES AND SUPERMARKETS,GPC
WALSALL COUNCIL,http://opendatacommunities.org/id/metropolitan-district-council/walsall ,31/12/2023,RESOURCES AND TRANSFORMATION,ARTHUR BRETT CATER,03/10/2023,H59620231005OEBLSOBIK-1,75.64,CATERING - SCHOOLS-FOOD & DRINK SUPPLIES,MISCELLANEOUS FOOD STORES & CONVENIENCE STORES,GPC
WALSALL COUNCIL,http://opendatacommunities.org/id/metropolitan-district-council/walsall ,31/12/2023,ECONOMY & ENVIRONMENT,TAYLOR NEWS,03/10/2023,H59620231005OEFGVAUPE-1,17.90,STREETLY LIBRARY-NEWSPAPERS/PERIODICALS/MAGAZIN,GROCERY STORES AND SUPERMARKETS,GPC
WALSALL COUNCIL,http://opendatacommunities.org/id/metropolitan-district-council/walsall ,31/12/2023,RESOURCES AND TRANSFORMATION,NOBISCO LIMITED,03/10/2023,H59620231005OOIRMTBMA-1,83.96,CATERING - SCHOOLS-FOOD & DRINK SUPPLIES,OTHER INDUSTRIAL SUPPLIES,GPC
WALSALL COUNCIL,http://opendatacommunities.org/id/metropolitan-district-council/walsall ,31/12/2023,CHILDRENS SERVICES,ASDA GROCERIES ONLINE,03/10/2023,H59620231005OOMMXIDEA-1,9.40,FAMILY HUBS-FOOD & DRINK SUPPLIES,GROCERY STORES AND SUPERMARKETS,GPC
WALSALL COUNCIL,http://opendatacommunities.org/id/metropolitan-district-council/walsall ,31/12/2023,CHILDRENS SERVICES,ASDA GROCERIES ONLINE,03/10/2023,H59620231005OOMMXIDEA-2,26.65,FAMILY HUBS-FOOD & DRINK SUPPLIES,GROCERY STORES AND SUPERMARKETS,GPC
WALSALL COUNCIL,http://opendatacommunities.org/id/metropolitan-district-council/walsall ,31/12/2023,CHILDRENS SERVICES,HOME BARGAINS,03/10/2023,H59620231005PGJGWEBZO-1,14.28,SCHOOL READY-FOOD & DRINK SUPPLIES,MISCELLANEOUS GENERAL MERCHANDISE,GPC
WALSALL COUNCIL,http://opendatacommunities.org/id/metropolitan-district-council/walsall ,31/12/2023,CHILDRENS SERVICES,HOME BARGAINS,03/10/2023,H59620231005PGJGWEBZO-2,13.59,SCHOOL READY-FOOD & DRINK SUPPLIES,MISCELLANEOUS GENERAL MERCHANDISE,GPC
WALSALL COUNCIL,http://opendatacommunities.org/id/metropolitan-district-council/walsall ,31/12/2023,RESOURCES AND TRANSFORMATION,ARTHUR BRETT CATER,03/10/2023,H59620231005QHYMPCWKU-1,15.65,CATERING - SCHOOLS-FOOD & DRINK SUPPLIES,MISCELLANEOUS FOOD STORES & CONVENIENCE STORES,GPC
WALSALL COUNCIL,http://opendatacommunities.org/id/metropolitan-district-council/walsall ,31/12/2023,CHILDRENS SERVICES,SAVERS HEALTH & BEAUTY,03/10/2023,H59620231005QQWWIHCXA-1,15.63,WALSALL CRISIS SUPPORT SCHEME-MATERIALS,"DRUG STORES, PHARMACIES",GPC
WALSALL COUNCIL,http://opendatacommunities.org/id/metropolitan-district-council/walsall ,31/12/2023,CHILDRENS SERVICES,MARKS&SPENCER PLC SACA,03/10/2023,H59620231005QRIUHEDIQ-1,18.97,YOUNG PERSONS HOMELESS SERVICE-MATERIALS,GROCERY STORES AND SUPERMARKETS,GPC
WALSALL COUNCIL,http://opendatacommunities.org/id/metropolitan-district-council/walsall ,31/12/2023,CHILDRENS SERVICES,HM PASSPORT OFFICE,03/10/2023,H59620231005QUHJQUYYU-1,58.50,FAMILY SAFEGUARDING NORTH LOCA-FEES & LICENCES,GOVERNMENT SERVICES,GPC
WALSALL COUNCIL,http://opendatacommunities.org/id/metropolitan-district-council/walsall ,31/12/2023,ECONOMY & ENVIRONMENT,WM MORRISONS STORE PICK,03/10/2023,H59620231005QWQVRBXRK-1,20.90,NAG - PREVIEW EXPENSES-FOOD & DRINK SUPPLIES,GROCERY STORES AND SUPERMARKETS,GPC
WALSALL COUNCIL,http://opendatacommunities.org/id/metropolitan-district-council/walsall ,31/12/2023,ECONOMY & ENVIRONMENT,WM MORRISONS STORE PICK,03/10/2023,H59620231005QWQVRBXRK-2,18.18,NEW ART GALLERY VENUE INCOME-FOOD & DRINK SUPPLIES,GROCERY STORES AND SUPERMARKETS,GPC
WALSALL COUNCIL,http://opendatacommunities.org/id/metropolitan-district-council/walsall ,31/12/2023,ECONOMY & ENVIRONMENT,WM MORRISONS STORE PICK,03/10/2023,H59620231005QWQVRBXRK-3,49.07,NEW ART GALLERY VENUE INCOME-FOOD & DRINK SUPPLIES,GROCERY STORES AND SUPERMARKETS,GPC
WALSALL COUNCIL,http://opendatacommunities.org/id/metropolitan-district-council/walsall ,31/12/2023,ECONOMY & ENVIRONMENT,WM MORRISONS STORE PICK,03/10/2023,H59620231005QWQVRBXRK-4,10.00,NAG - FRONT OF HOUSE-CLEANING MATERIALS,GROCERY STORES AND SUPERMARKETS,GPC
WALSALL COUNCIL,http://opendatacommunities.org/id/metropolitan-district-council/walsall ,31/12/2023,CHILDRENS SERVICES,AMZNMKTPLACE,03/10/2023,H59620231005RIPKBZDCA-1,3.30,ENGLISH-LIBRARY BOOKS,MISCELLANEOUS AND SPECIALTY RETAIL STORES,GPC
WALSALL COUNCIL,http://opendatacommunities.org/id/metropolitan-district-council/walsall ,31/12/2023,RESOURCES AND TRANSFORMATION,ARTHUR BRETT CATER,03/10/2023,H59620231005RKLEDUGNH-1,107.88,CATERING - SCHOOLS-FOOD & DRINK SUPPLIES,MISCELLANEOUS FOOD STORES & CONVENIENCE STORES,GPC
WALSALL COUNCIL,http://opendatacommunities.org/id/metropolitan-district-council/walsall ,31/12/2023,RESOURCES AND TRANSFORMATION,ARTHUR BRETT CATER,03/10/2023,H59620231005SIRUASCDL-1,102.27,CATERING - SCHOOLS-FOOD & DRINK SUPPLIES,MISCELLANEOUS FOOD STORES & CONVENIENCE STORES,GPC
WALSALL COUNCIL,http://opendatacommunities.org/id/metropolitan-district-council/walsall ,31/12/2023,RESOURCES AND TRANSFORMATION,ARTHUR BRETT CATER,03/10/2023,H59620231005SKKVVCJBX-1,70.61,CATERING - SCHOOLS-FOOD & DRINK SUPPLIES,MISCELLANEOUS FOOD STORES & CONVENIENCE STORES,GPC
WALSALL COUNCIL,http://opendatacommunities.org/id/metropolitan-district-council/walsall ,31/12/2023,ECONOMY & ENVIRONMENT,AMZNMKTPLACE,03/10/2023,H59620231005SREGBRORI-1,49.95,TRADING STANDARDS-STATIONERY & GENERAL OFFICE SU,MISCELLANEOUS AND SPECIALTY RETAIL STORES,GPC
WALSALL COUNCIL,http://opendatacommunities.org/id/metropolitan-district-council/walsall ,31/12/2023,ECONOMY & ENVIRONMENT,DULUX DECORATOR CENTRE,03/10/2023,H59620231005THQMEHIMH-1,218.32,NAG - TEMPORARY EXHIBITIONS-DECORATING,"PAINTS, VARNISHES, AND SUPPLIES",GPC
WALSALL COUNCIL,http://opendatacommunities.org/id/metropolitan-district-council/walsall ,31/12/2023,ECONOMY & ENVIRONMENT,DULUX DECORATOR CENTRE,03/10/2023,H59620231005THQMEHIMH-2,54.57,NAG - MAINTENANCE-DECORATING,"PAINTS, VARNISHES, AND SUPPLIES",GPC
WALSALL COUNCIL,http://opendatacommunities.org/id/metropolitan-district-council/walsall ,31/12/2023,CHILDRENS SERVICES,CO-OPERATIVE FOOD,03/10/2023,H59620231005TJWGQMBGB-1,15.00,PUPIL AWARDS-PERSONAL REQUISITES-MATERIALS,GROCERY STORES AND SUPERMARKETS,GPC
WALSALL COUNCIL,http://opendatacommunities.org/id/metropolitan-district-council/walsall ,31/12/2023,ADULT SOCIAL CARE,CARESHOP,03/10/2023,H59620231005TKYLYOEDT-1,44.75,GOSCOTE-CLEANING MATERIALS,MISCELLANEOUS AND SPECIALTY RETAIL STORES,GPC
WALSALL COUNCIL,http://opendatacommunities.org/id/metropolitan-district-council/walsall ,31/12/2023,CHILDRENS SERVICES,B&Q MARKETPLACE,03/10/2023,H59620231005UEKRWNIET-1,80.95,HSF - HOUSING SUPPORT FUND GRA-PURCHASE OF FURNITURE & EQUIPM,LUMBER & BUILDING MATERIALS STORES,GPC
WALSALL COUNCIL,http://opendatacommunities.org/id/metropolitan-district-council/walsall ,31/12/2023,RESOURCES AND TRANSFORMATION,ARTHUR BRETT CATER,03/10/2023,H59620231005UGXUZJFEP-1,45.10,CATERING - SCHOOLS-FOOD & DRINK SUPPLIES,MISCELLANEOUS FOOD STORES & CONVENIENCE STORES,GPC
WALSALL COUNCIL,http://opendatacommunities.org/id/metropolitan-district-council/walsall ,31/12/2023,RESOURCES AND TRANSFORMATION,AMZNMKTPLACE,03/10/2023,H59620231005UKVLKQDYI-1,20.69,LAW LIBRARY-STATIONERY & GENERAL OFFICE SU,MISCELLANEOUS AND SPECIALTY RETAIL STORES,GPC
WALSALL COUNCIL,http://opendatacommunities.org/id/metropolitan-district-council/walsall ,31/12/2023,CHILDRENS SERVICES,HM PASSPORT OFFICE,03/10/2023,H59620231005USFQUOYLC-1,58.50,FAMILY SAFEGUARDING NORTH LOCA-FEES & LICENCES,GOVERNMENT SERVICES,GPC
WALSALL COUNCIL,http://opendatacommunities.org/id/metropolitan-district-council/walsall ,31/12/2023,CHILDRENS SERVICES,SMARTY CO UK,03/10/2023,H59620231005VHFVBFFTK-1,8.00,"43A HILTON ROAD, WILLENHALL-LANDLINE PHONES",TELECOMMUNICATION SERVICES,GPC
WALSALL COUNCIL,http://opendatacommunities.org/id/metropolitan-district-council/walsall ,31/12/2023,RESOURCES AND TRANSFORMATION,TESCO STORES 6161,03/10/2023,H59620231005VITBMTVZH-1,3.96,CATERING - SCHOOLS-FOOD & DRINK SUPPLIES,GROCERY STORES AND SUPERMARKETS,GPC
WALSALL COUNCIL,http://opendatacommunities.org/id/metropolitan-district-council/walsall ,31/12/2023,ECONOMY & ENVIRONMENT,TESCO PFS 3892,03/10/2023,H59620231005VPDFKFPFB-1,157.50,FLEET-MATERIALS,SERVICE STATIONS,GPC
WALSALL COUNCIL,http://opendatacommunities.org/id/metropolitan-district-council/walsall ,31/12/2023,RESOURCES AND TRANSFORMATION,ARTHUR BRETT CATER,03/10/2023,H59620231005VUVJMCWWR-1,11.21,CATERING - SCHOOLS-FOOD & DRINK SUPPLIES,MISCELLANEOUS FOOD STORES & CONVENIENCE STORES,GPC
WALSALL COUNCIL,http://opendatacommunities.org/id/metropolitan-district-council/walsall ,31/12/2023,RESOURCES AND TRANSFORMATION,NOBISCO LIMITED,03/10/2023,H59620231005VYHUHOZML-1,70.61,CATERING - SCHOOLS-FOOD & DRINK SUPPLIES,OTHER INDUSTRIAL SUPPLIES,GPC
WALSALL COUNCIL,http://opendatacommunities.org/id/metropolitan-district-council/walsall ,31/12/2023,CHILDRENS SERVICES,TESCO STORES 6161,03/10/2023,H59620231005VZPBUGMDM-1,6.79,FOOD TECHNOLOGY/HOSPITALITY-MATERIALS,GROCERY STORES AND SUPERMARKETS,GPC
WALSALL COUNCIL,http://opendatacommunities.org/id/metropolitan-district-council/walsall ,31/12/2023,CHILDRENS SERVICES,TESCO STORES 6161,03/10/2023,H59620231005VZPBUGMDM-2,74.33,FOOD TECHNOLOGY/HOSPITALITY-MATERIALS,GROCERY STORES AND SUPERMARKETS,GPC
WALSALL COUNCIL,http://opendatacommunities.org/id/metropolitan-district-council/walsall ,31/12/2023,CHILDRENS SERVICES,DOMINO S PIZZA,03/10/2023,H59620231005WBJYVQPMB-1,49.98,EDGE OF CARE TEAM-FOOD & DRINK SUPPLIES,"EATING PLACES, RESTAURANTS",GPC
WALSALL COUNCIL,http://opendatacommunities.org/id/metropolitan-district-council/walsall ,31/12/2023,CHILDRENS SERVICES,TRAVIS PERKINS TRADING,03/10/2023,H59620231005WCLKGENDD-1,-21.56,OAKWOOD SCHOOL-OPERATIONAL MAINTENANCE,LUMBER & BUILDING MATERIALS STORES,GPC
WALSALL COUNCIL,http://opendatacommunities.org/id/metropolitan-district-council/walsall ,31/12/2023,CHILDRENS SERVICES,AMZNMKTPLACE,03/10/2023,H59620231005WGNETKOOH-1,34.99,OAKWOOD SCHOOL-PERSONAL REQUISITES-MATERIALS,MISCELLANEOUS AND SPECIALTY RETAIL STORES,GPC
WALSALL COUNCIL,http://opendatacommunities.org/id/metropolitan-district-council/walsall ,31/12/2023,CHILDRENS SERVICES,GEN REGISTER OFFICE,03/10/2023,H59620231005WXPYVRJMR-1,11.00,DISABLED CHILDREN & YOUNG PEOP-FEES & LICENCES,GOVERNMENT SERVICES,GPC
WALSALL COUNCIL,http://opendatacommunities.org/id/metropolitan-district-council/walsall ,31/12/2023,CHILDRENS SERVICES,THE WORKS,03/10/2023,H59620231005XDLMEPWJQ-1,83.45,EDGE OF CARE TEAM-MATERIALS,DISCOUNT STORES,GPC
WALSALL COUNCIL,http://opendatacommunities.org/id/metropolitan-district-council/walsall ,31/12/2023,CHILDRENS SERVICES,HERON FOODS BLAKENALL,03/10/2023,H59620231005XILHMLWNT-1,2.50,FAMILY PLACEMENTS-FOOD & DRINK SUPPLIES,GROCERY STORES AND SUPERMARKETS,GPC
WALSALL COUNCIL,http://opendatacommunities.org/id/metropolitan-district-council/walsall ,31/12/2023,RESOURCES AND TRANSFORMATION,ARTHUR BRETT CATER,03/10/2023,H59620231005YBIJUQYLR-1,48.91,CATERING - SCHOOLS-FOOD & DRINK SUPPLIES,MISCELLANEOUS FOOD STORES & CONVENIENCE STORES,GPC
WALSALL COUNCIL,http://opendatacommunities.org/id/metropolitan-district-council/walsall ,31/12/2023,CHILDRENS SERVICES,ALDI 42 772,03/10/2023,H59620231005YLHFUYSLM-1,7.90,YOUNG PERSONS HOMELESS SERVICE-MATERIALS,GROCERY STORES AND SUPERMARKETS,GPC
WALSALL COUNCIL,http://opendatacommunities.org/id/metropolitan-district-council/walsall ,31/12/2023,CHILDRENS SERVICES,ALDI 42 772,03/10/2023,H59620231005YLHFUYSLM-2,4.68,YOUNG PERSONS HOMELESS SERVICE-MATERIALS,GROCERY STORES AND SUPERMARKETS,GPC
WALSALL COUNCIL,http://opendatacommunities.org/id/metropolitan-district-council/walsall ,31/12/2023,CHILDRENS SERVICES,PRIMARK 690,03/10/2023,H59620231006NDVSIEIHQ-1,61.50,ROUGH SLEEPING INITIATIVE GRAN-CLOTHING & LAUNDRY,CLOTHING STORES,GPC
WALSALL COUNCIL,http://opendatacommunities.org/id/metropolitan-district-council/walsall ,31/12/2023,CHILDRENS SERVICES,PREMIER INN,03/10/2023,H59620231006WYHYLNKKC-1,342.50,REVENUES-STATIONERY & GENERAL OFFICE SU,PREMIER INN,GPC
WALSALL COUNCIL,http://opendatacommunities.org/id/metropolitan-district-council/walsall ,31/12/2023,ECONOMY & ENVIRONMENT,PREMIER FARNELL,03/10/2023,H59620231006ZNRYYRXJE-1,78.76,CFR 1554 WAYS OF WORKING-PURCHASE OF FURNITURE & EQUIPM,ELECTRICAL PARTS AND EQUIPMENT,GPC
WALSALL COUNCIL,http://opendatacommunities.org/id/metropolitan-district-council/walsall ,31/12/2023,CHILDRENS SERVICES,PAYPAL *INTERIORGOO,03/10/2023,H59620231007UJWQIDTLP-1,120.34,ST FRANCIS OF ASSISI CATHOLIC -OPERATIONAL MAINTENANCE,"EQUIPMENT, FURNITURE, AND HOME FURNISHINGS STORES ",GPC
WALSALL COUNCIL,http://opendatacommunities.org/id/metropolitan-district-council/walsall ,31/12/2023,RESOURCES AND TRANSFORMATION,WWW.SCC.COM,03/10/2023,H59620231021HFDYJYCGS-1,77.29,RECHARGEABLE EQUIPMENT-COMPUTER EQUIPMENT,"COMPUTERS, COMPUTER PERIPHERAL EQUIPMENT, SOFTWARE",GPC
WALSALL COUNCIL,http://opendatacommunities.org/id/metropolitan-district-council/walsall ,31/12/2023,RESOURCES AND TRANSFORMATION,WWW.SCC.COM,03/10/2023,H59620231021WDFQRGAYJ-1,34.56,RECHARGEABLE EQUIPMENT-COMPUTER EQUIPMENT,"COMPUTERS, COMPUTER PERIPHERAL EQUIPMENT, SOFTWARE",GPC
WALSALL COUNCIL,http://opendatacommunities.org/id/metropolitan-district-council/walsall ,31/12/2023,RESOURCES AND TRANSFORMATION,WWW.SCC.COM,03/10/2023,H59620231024HAOEMSWNM-1,197.42,RECHARGEABLE EQUIPMENT-COMPUTER EQUIPMENT,"COMPUTERS, COMPUTER PERIPHERAL EQUIPMENT, SOFTWARE",GPC
WALSALL COUNCIL,http://opendatacommunities.org/id/metropolitan-district-council/walsall ,31/12/2023,RESOURCES AND TRANSFORMATION,WWW.SCC.COM,03/10/2023,H59620231025LDGVJTLML-1,246.78,RECHARGEABLE EQUIPMENT-COMPUTER EQUIPMENT,"COMPUTERS, COMPUTER PERIPHERAL EQUIPMENT, SOFTWARE",GPC
WALSALL COUNCIL,http://opendatacommunities.org/id/metropolitan-district-council/walsall ,31/12/2023,RESOURCES AND TRANSFORMATION,ARTHUR BRETT CATER,03/10/2023,H59620231103WXNIYCXJE-1,-8.34,CATERING - SCHOOLS-FOOD & DRINK SUPPLIES,MISCELLANEOUS FOOD STORES & CONVENIENCE STORES,GPC
WALSALL COUNCIL,http://opendatacommunities.org/id/metropolitan-district-council/walsall ,31/12/2023,CHILDRENS SERVICES,AMZNBUSINESS*HT1QH2E84,04/10/2023,H59620231005CXKWNMSWF-1,33.52,CHUCKERY PRIMARY SCHOOL-OPERATIONAL MAINTENANCE,MISCELLANEOUS AND SPECIALTY RETAIL STORES,GPC
WALSALL COUNCIL,http://opendatacommunities.org/id/metropolitan-district-council/walsall ,31/12/2023,CHILDRENS SERVICES,AMZNMKTPLACE,04/10/2023,H59620231005JFNXHJMNR-1,128.40,FAMILY SAFEGUARDING WEST LOCAL-COMPUTER EQUIPMENT,MISCELLANEOUS AND SPECIALTY RETAIL STORES,GPC
WALSALL COUNCIL,http://opendatacommunities.org/id/metropolitan-district-council/walsall ,31/12/2023,CHILDRENS SERVICES,AMZNBUSINESS*HT4NV20L4,04/10/2023,H59620231005LIWRVQGIU-1,36.83,SPECIAL NEEDS-MATERIALS,MISCELLANEOUS AND SPECIALTY RETAIL STORES,GPC
WALSALL COUNCIL,http://opendatacommunities.org/id/metropolitan-district-council/walsall ,31/12/2023,CHILDRENS SERVICES,AMZNMKTPLACE,04/10/2023,H59620231005PNDPIZDOT-1,13.96,E19-MATERIALS,MISCELLANEOUS AND SPECIALTY RETAIL STORES,GPC
WALSALL COUNCIL,http://opendatacommunities.org/id/metropolitan-district-council/walsall ,31/12/2023,CHILDRENS SERVICES,AMZNMKTPLACE,04/10/2023,H59620231005XTSUKTHNG-1,35.91,CHUCKERY PRIMARY SCHOOL-OPERATIONAL MAINTENANCE,MISCELLANEOUS AND SPECIALTY RETAIL STORES,GPC
WALSALL COUNCIL,http://opendatacommunities.org/id/metropolitan-district-council/walsall ,31/12/2023,CHILDRENS SERVICES,AMZNMKTPLACE,04/10/2023,H59620231006ANLBNTWXN-1,7.49,ST FRANCIS OF ASSISI CATHOLIC -CATERING & REFRESHMENTS,MISCELLANEOUS AND SPECIALTY RETAIL STORES,GPC
WALSALL COUNCIL,http://opendatacommunities.org/id/metropolitan-district-council/walsall ,31/12/2023,CHILDRENS SERVICES,AMZNMKTPLACE,04/10/2023,H59620231006AOEGUYRXD-1,22.07,BLUEBELLS-GROUNDS MAINTENANCE,MISCELLANEOUS AND SPECIALTY RETAIL STORES,GPC
WALSALL COUNCIL,http://opendatacommunities.org/id/metropolitan-district-council/walsall ,31/12/2023,CHILDRENS SERVICES,WALSALL COUNCIL,04/10/2023,H59620231006ASGLYUKVB-1,41.00,FAMILY SAFEGUARDING WEST LOCAL-FEES & LICENCES,GOVERNMENT SERVICES,GPC
WALSALL COUNCIL,http://opendatacommunities.org/id/metropolitan-district-council/walsall ,31/12/2023,RESOURCES AND TRANSFORMATION,BLAKEMORE FOODSERVICE,04/10/2023,H59620231006ASODLCTRP-1,31.35,CATERING - SCHOOLS-FOOD & DRINK SUPPLIES,CATERERS,GPC
WALSALL COUNCIL,http://opendatacommunities.org/id/metropolitan-district-council/walsall ,31/12/2023,CHILDRENS SERVICES,AMZNMKTPLACE,04/10/2023,H59620231006BGDWHQQSI-1,25.20,RE/CC-LICENCES FOR EQUIPMENT,MISCELLANEOUS AND SPECIALTY RETAIL STORES,GPC
WALSALL COUNCIL,http://opendatacommunities.org/id/metropolitan-district-council/walsall ,31/12/2023,ECONOMY & ENVIRONMENT,POUNDLAND LTD - 1852,04/10/2023,H59620231006BMYMTTGTJ-1,2.00,COMMUNITY LIAISON-MATERIALS,DISCOUNT STORES,GPC
WALSALL COUNCIL,http://opendatacommunities.org/id/metropolitan-district-council/walsall ,31/12/2023,RESOURCES AND TRANSFORMATION,TESCO STORES 6161,04/10/2023,H59620231006BWWBPEHEO-1,24.11,TOWN HALL RESTAURANT BISTRO-FOOD & DRINK SUPPLIES,GROCERY STORES AND SUPERMARKETS,GPC
WALSALL COUNCIL,http://opendatacommunities.org/id/metropolitan-district-council/walsall ,31/12/2023,RESOURCES AND TRANSFORMATION,BLAKEMORE FOODSERVICE,04/10/2023,H59620231006CHCNAWJPH-1,898.08,CATERING - SCHOOLS-FOOD & DRINK SUPPLIES,CATERERS,GPC
WALSALL COUNCIL,http://opendatacommunities.org/id/metropolitan-district-council/walsall ,31/12/2023,RESOURCES AND TRANSFORMATION,BLAKEMORE FOODSERVICE,04/10/2023,H59620231006CHCNAWJPH-2,77.90,CATERING - SCHOOLS-FOOD & DRINK SUPPLIES,CATERERS,GPC
WALSALL COUNCIL,http://opendatacommunities.org/id/metropolitan-district-council/walsall ,31/12/2023,CHILDRENS SERVICES,AMZNMKTPLACE,04/10/2023,H59620231006CLMSIPGPL-1,30.68,PINE VIEW-STATIONERY & GENERAL OFFICE SU,MISCELLANEOUS AND SPECIALTY RETAIL STORES,GPC
WALSALL COUNCIL,http://opendatacommunities.org/id/metropolitan-district-council/walsall ,31/12/2023,CHILDRENS SERVICES,AMZNMKTPLACE,04/10/2023,H59620231006COPFSESYI-1,3.58,PINE VIEW-STATIONERY & GENERAL OFFICE SU,MISCELLANEOUS AND SPECIALTY RETAIL STORES,GPC
WALSALL COUNCIL,http://opendatacommunities.org/id/metropolitan-district-council/walsall ,31/12/2023,CHILDRENS SERVICES,AMAZON.CO.UK*HT2FX3GY4,04/10/2023,H59620231006CPWBLPPRH-1,8.99,ADMINISTRATIVE SUPPLIES-STATIONERY & GENERAL OFFICE SU,OTHER DIRECT MARKETING-OTHER DIRECT MARKETERS,GPC
WALSALL COUNCIL,http://opendatacommunities.org/id/metropolitan-district-council/walsall ,31/12/2023,RESOURCES AND TRANSFORMATION,BLAKEMORE FOODSERVICE,04/10/2023,H59620231006DVUFCCUAS-1,537.03,CATERING - SCHOOLS-FOOD & DRINK SUPPLIES,CATERERS,GPC
WALSALL COUNCIL,http://opendatacommunities.org/id/metropolitan-district-council/walsall ,31/12/2023,RESOURCES AND TRANSFORMATION,BLAKEMORE FOODSERVICE,04/10/2023,H59620231006DVUFCCUAS-2,38.71,CATERING - SCHOOLS-FOOD & DRINK SUPPLIES,CATERERS,GPC
WALSALL COUNCIL,http://opendatacommunities.org/id/metropolitan-district-council/walsall ,31/12/2023,ECONOMY & ENVIRONMENT,WWW.BANNERUK.COM,04/10/2023,H59620231006DYVUDCOGR-1,4.97,LICHFIELD HUB-STATIONERY & GENERAL OFFICE SU,"STATIONERY, OFFICE SUPPLIES AND WRITING PAPER",GPC
WALSALL COUNCIL,http://opendatacommunities.org/id/metropolitan-district-council/walsall ,31/12/2023,ECONOMY & ENVIRONMENT,MIDLANDNEWS.COM,04/10/2023,H59620231006EGJSXWCAW-1,261.79,DEVELOPMENT MANAGEMENT-SUBSCRIPTIONS,NEWS DEALERS AND NEWSSTANDS,GPC
WALSALL COUNCIL,http://opendatacommunities.org/id/metropolitan-district-council/walsall ,31/12/2023,RESOURCES AND TRANSFORMATION,ARTHUR BRETT CATER,04/10/2023,H59620231006EHVBUNOES-1,119.38,CATERING - SCHOOLS-FOOD & DRINK SUPPLIES,MISCELLANEOUS FOOD STORES & CONVENIENCE STORES,GPC
WALSALL COUNCIL,http://opendatacommunities.org/id/metropolitan-district-council/walsall ,31/12/2023,CHILDRENS SERVICES,SP THE LAMPCO,04/10/2023,H59620231006EMDKCSNWC-1,40.10,COMMUNITY FOCUSED EXTENDED SCH-MATERIALS,ELECTRICAL PARTS AND EQUIPMENT,GPC
WALSALL COUNCIL,http://opendatacommunities.org/id/metropolitan-district-council/walsall ,31/12/2023,CHILDRENS SERVICES,LENOVO UK GBP - ECOM,04/10/2023,H59620231006ETVNEOBGD-1,35.66,ADMINISTRATIVE SUPPLIES-PURCHASE OF FURNITURE & EQUIPM,OTHER DIRECT MARKETING-OTHER DIRECT MARKETERS,GPC
WALSALL COUNCIL,http://opendatacommunities.org/id/metropolitan-district-council/walsall ,31/12/2023,RESOURCES AND TRANSFORMATION,ARTHUR BRETT CATER,04/10/2023,H59620231006FSCGLQYWU-1,60.34,CATERING - SCHOOLS-FOOD & DRINK SUPPLIES,MISCELLANEOUS FOOD STORES & CONVENIENCE STORES,GPC
WALSALL COUNCIL,http://opendatacommunities.org/id/metropolitan-district-council/walsall ,31/12/2023,CHILDRENS SERVICES,AMZNMKTPLACE,04/10/2023,H59620231006GFHJSDTSB-1,12.54,ELMWOOD SCHOOL-OPERATIONAL MAINTENANCE,MISCELLANEOUS AND SPECIALTY RETAIL STORES,GPC
WALSALL COUNCIL,http://opendatacommunities.org/id/metropolitan-district-council/walsall ,31/12/2023,CHILDRENS SERVICES,BKG*HOTEL AT BOOKING.C,04/10/2023,H59620231006GOKOVACCF-1,304.50,FAMILY SAFEGUARDING EAST LOCAL-OTHER TRAVEL ALLOWANCES,TRAVEL AGENCIES AND TOUR OPERATORS,GPC
WALSALL COUNCIL,http://opendatacommunities.org/id/metropolitan-district-council/walsall ,31/12/2023,RESOURCES AND TRANSFORMATION,WWW.BANNERUK.COM,04/10/2023,H59620231006HBQDHGWMH-1,99.23,HR ADMIN HUB-STATIONERY & GENERAL OFFICE SU,"STATIONERY, OFFICE SUPPLIES AND WRITING PAPER",GPC
WALSALL COUNCIL,http://opendatacommunities.org/id/metropolitan-district-council/walsall ,31/12/2023,CHILDRENS SERVICES,POST OFFICE COUNTER,04/10/2023,H59620231006HIPOLULIO-1,7.35,FAMILY SAFEGUARDING WEST LOCAL-POSTAGES & COURIER SERVICES,POSTAL SERVICES - GOVERNMENT ONLY,GPC
WALSALL COUNCIL,http://opendatacommunities.org/id/metropolitan-district-council/walsall ,31/12/2023,CHILDRENS SERVICES,AMZNMKTPLACE,04/10/2023,H59620231006HLGOGGCLL-1,25.20,RE/CC-MATERIALS,MISCELLANEOUS AND SPECIALTY RETAIL STORES,GPC
WALSALL COUNCIL,http://opendatacommunities.org/id/metropolitan-district-council/walsall ,31/12/2023,CHILDRENS SERVICES,PGL TRAVEL,04/10/2023,H59620231006HPPNBJEDJ-1,-115.59,CORPORATE PARENTING-CRECHE FACILITIES,TRAVEL AGENCIES AND TOUR OPERATORS,GPC
WALSALL COUNCIL,http://opendatacommunities.org/id/metropolitan-district-council/walsall ,31/12/2023,CHILDRENS SERVICES,WWW.MUDDYFACES.CO.UK,04/10/2023,H59620231006HUENQXUIL-1,59.15,COMMUNITY FOCUSED EXTENDED SCH-MATERIALS,CHILDRENS AND INFANTS WEAR STORES,GPC
WALSALL COUNCIL,http://opendatacommunities.org/id/metropolitan-district-council/walsall ,31/12/2023,CHILDRENS SERVICES,PIN - BIRMINGHAM CENTR,04/10/2023,H59620231006HURPVKVDC-1,20.00,HOMELESSNESS PREVENTION STRATE-EXTERNAL TRAINING,OTHER SCHOOLS AND EDUCATIONAL SERVICES,GPC
WALSALL COUNCIL,http://opendatacommunities.org/id/metropolitan-district-council/walsall ,31/12/2023,RESOURCES AND TRANSFORMATION,ARTHUR BRETT CATER,04/10/2023,H59620231006HWCVOBRNQ-1,91.09,CATERING - SCHOOLS-FOOD & DRINK SUPPLIES,MISCELLANEOUS FOOD STORES & CONVENIENCE STORES,GPC
WALSALL COUNCIL,http://opendatacommunities.org/id/metropolitan-district-council/walsall ,31/12/2023,CHILDRENS SERVICES,BKG*HOTEL AT BOOKING.C,04/10/2023,H59620231006IBSMAGGCZ-1,234.00,FAMILY SAFEGUARDING WEST LOCAL-OTHER TRAVEL ALLOWANCES,TRAVEL AGENCIES AND TOUR OPERATORS,GPC
WALSALL COUNCIL,http://opendatacommunities.org/id/metropolitan-district-council/walsall ,31/12/2023,RESOURCES AND TRANSFORMATION,ARTHUR BRETT CATER,04/10/2023,H59620231006IDKRNPGMD-1,129.51,CATERING - SCHOOLS-FOOD & DRINK SUPPLIES,MISCELLANEOUS FOOD STORES & CONVENIENCE STORES,GPC
WALSALL COUNCIL,http://opendatacommunities.org/id/metropolitan-district-council/walsall ,31/12/2023,CHILDRENS SERVICES,TESCO STORES 2933,04/10/2023,H59620231006IXHLKUHBM-1,33.95,E19-MATERIALS,GROCERY STORES AND SUPERMARKETS,GPC
WALSALL COUNCIL,http://opendatacommunities.org/id/metropolitan-district-council/walsall ,31/12/2023,CHILDRENS SERVICES,WALSALL COUNCIL,04/10/2023,H59620231006IZFYEJSRE-1,2.22,PELSALL VILLAGE SCHOOL-POLICE CHECKS,GOVERNMENT SERVICES,GPC
WALSALL COUNCIL,http://opendatacommunities.org/id/metropolitan-district-council/walsall ,31/12/2023,CHILDRENS SERVICES,BARONS COURT HOTEL,04/10/2023,H59620231006JBSXCJMLH-1,170.00,YOUNG PERSONS HOMELESS SERVICE-BED & BREAKFAST PAYMENTS,"HOTELS, MOTELS, RESORTS",GPC
WALSALL COUNCIL,http://opendatacommunities.org/id/metropolitan-district-council/walsall ,31/12/2023,RESOURCES AND TRANSFORMATION,ARTHUR BRETT CATER,04/10/2023,H59620231006JHWESMNUP-1,18.49,CATERING - SCHOOLS-FOOD & DRINK SUPPLIES,MISCELLANEOUS FOOD STORES & CONVENIENCE STORES,GPC
WALSALL COUNCIL,http://opendatacommunities.org/id/metropolitan-district-council/walsall ,31/12/2023,RESOURCES AND TRANSFORMATION,ARTHUR BRETT CATER,04/10/2023,H59620231006JQRBYECRB-1,86.79,CATERING - SCHOOLS-FOOD & DRINK SUPPLIES,MISCELLANEOUS FOOD STORES & CONVENIENCE STORES,GPC
WALSALL COUNCIL,http://opendatacommunities.org/id/metropolitan-district-council/walsall ,31/12/2023,CHILDRENS SERVICES,BKG*HOTEL AT BOOKING.C,04/10/2023,H59620231006JTEBDUIYY-1,318.60,YOUNG PERSONS HOMELESS SERVICE-BED & BREAKFAST PAYMENTS,TRAVEL AGENCIES AND TOUR OPERATORS,GPC
WALSALL COUNCIL,http://opendatacommunities.org/id/metropolitan-district-council/walsall ,31/12/2023,RESOURCES AND TRANSFORMATION,ARTHUR BRETT CATER,04/10/2023,H59620231006KHPXKYPSF-1,29.30,CATERING - SCHOOLS-FOOD & DRINK SUPPLIES,MISCELLANEOUS FOOD STORES & CONVENIENCE STORES,GPC
WALSALL COUNCIL,http://opendatacommunities.org/id/metropolitan-district-council/walsall ,31/12/2023,CHILDRENS SERVICES,AMZNMKTPLACE,04/10/2023,H59620231006KLDWAEBCH-1,24.80,LITERATURE-MATERIALS,MISCELLANEOUS AND SPECIALTY RETAIL STORES,GPC
WALSALL COUNCIL,http://opendatacommunities.org/id/metropolitan-district-council/walsall ,31/12/2023,CHILDRENS SERVICES,NUMBER SENSE MATHS,04/10/2023,H59620231006KOVNZKJAC-1,246.00,MATHS-MATERIALS,OTHER SCHOOLS AND EDUCATIONAL SERVICES,GPC
WALSALL COUNCIL,http://opendatacommunities.org/id/metropolitan-district-council/walsall ,31/12/2023,CHILDRENS SERVICES,PAYPAL *PRINTERINKD,04/10/2023,H59620231006LBLQTFVJK-1,32.45,DT-MATERIALS,"OFFICE, SCHOOL SUPPLY, AND STATIONERY STORES",GPC
WALSALL COUNCIL,http://opendatacommunities.org/id/metropolitan-district-council/walsall ,31/12/2023,CHILDRENS SERVICES,AMZNMKTPLACE,04/10/2023,H59620231006LIHHQOWMR-1,69.99,LOCALITY FAMILY SUPPORT-CENTRA-PURCHASE OF FURNITURE & EQUIPM,MISCELLANEOUS AND SPECIALTY RETAIL STORES,GPC
WALSALL COUNCIL,http://opendatacommunities.org/id/metropolitan-district-council/walsall ,31/12/2023,CHILDRENS SERVICES,ASDA GROCERIES ONLINE,04/10/2023,H59620231006LJQXMOAPX-1,28.00,HSF - HOUSING SUPPORT FUND GRA-PURCHASE OF FURNITURE & EQUIPM,GROCERY STORES AND SUPERMARKETS,GPC
WALSALL COUNCIL,http://opendatacommunities.org/id/metropolitan-district-council/walsall ,31/12/2023,RESOURCES AND TRANSFORMATION,BLAKEMORE FOODSERVICE,04/10/2023,H59620231006LNVOKQUDF-1,1157.11,CATERING - SCHOOLS-FOOD & DRINK SUPPLIES,CATERERS,GPC
WALSALL COUNCIL,http://opendatacommunities.org/id/metropolitan-district-council/walsall ,31/12/2023,CHILDRENS SERVICES,LIDL GB WILLENHALL,04/10/2023,H59620231006LYRXQYEIV-1,4.16,FAMILY HUBS-FOOD & DRINK SUPPLIES,GROCERY STORES AND SUPERMARKETS,GPC
WALSALL COUNCIL,http://opendatacommunities.org/id/metropolitan-district-council/walsall ,31/12/2023,CHILDRENS SERVICES,LIDL GB WILLENHALL,04/10/2023,H59620231006LYRXQYEIV-2,2.05,FAMILY HUBS-FOOD & DRINK SUPPLIES,GROCERY STORES AND SUPERMARKETS,GPC
WALSALL COUNCIL,http://opendatacommunities.org/id/metropolitan-district-council/walsall ,31/12/2023,ECONOMY & ENVIRONMENT,CATERING APPLIANCE SUP,04/10/2023,H59620231006MSEROFBPG-1,34.73,DARLASTON SWIMMING AND FITNESS-PURCHASE OF FURNITURE & EQUIPM,CATERERS,GPC
WALSALL COUNCIL,http://opendatacommunities.org/id/metropolitan-district-council/walsall ,31/12/2023,CHILDRENS SERVICES,ASDA GROCERIES ONLINE,04/10/2023,H59620231006MVPYGQRAM-1,40.15,BREAKFAST CLUB-FOOD & DRINK SUPPLIES,GROCERY STORES AND SUPERMARKETS,GPC
WALSALL COUNCIL,http://opendatacommunities.org/id/metropolitan-district-council/walsall ,31/12/2023,CHILDRENS SERVICES,HOME BARGAINS,04/10/2023,H59620231006MZRUGXBCH-1,3.64,REDRUTH ROAD-FOOD & DRINK SUPPLIES,MISCELLANEOUS GENERAL MERCHANDISE,GPC
WALSALL COUNCIL,http://opendatacommunities.org/id/metropolitan-district-council/walsall ,31/12/2023,CHILDRENS SERVICES,HOME BARGAINS,04/10/2023,H59620231006MZRUGXBCH-2,23.94,REDRUTH ROAD-FOOD & DRINK SUPPLIES,MISCELLANEOUS GENERAL MERCHANDISE,GPC
WALSALL COUNCIL,http://opendatacommunities.org/id/metropolitan-district-council/walsall ,31/12/2023,ADULT SOCIAL CARE,BARONS COURT HOTEL,04/10/2023,H59620231006NISIIBKHT-1,340.00,ASC PARTNERSHIPS-BED & BREAKFAST PAYMENTS,"HOTELS, MOTELS, RESORTS",GPC
WALSALL COUNCIL,http://opendatacommunities.org/id/metropolitan-district-council/walsall ,31/12/2023,CHILDRENS SERVICES,PROJECTOR LAMPS,04/10/2023,H59620231006NOOECTQKK-1,48.94,ICT LEARNING RESOURCES-MATERIALS,CAMERA AND PHOTOGRAPHIC SUPPLY STORES,GPC
WALSALL COUNCIL,http://opendatacommunities.org/id/metropolitan-district-council/walsall ,31/12/2023,CHILDRENS SERVICES,AMAZON* 206-9471447-34,04/10/2023,H59620231006NYEYSGTNG-1,16.28,HISTORY-LIBRARY BOOKS,MISCELLANEOUS GENERAL MERCHANDISE,GPC
WALSALL COUNCIL,http://opendatacommunities.org/id/metropolitan-district-council/walsall ,31/12/2023,RESOURCES AND TRANSFORMATION,ARTHUR BRETT CATER,04/10/2023,H59620231006ORHLNFEYS-1,50.64,CATERING - SCHOOLS-FOOD & DRINK SUPPLIES,MISCELLANEOUS FOOD STORES & CONVENIENCE STORES,GPC
WALSALL COUNCIL,http://opendatacommunities.org/id/metropolitan-district-council/walsall ,31/12/2023,RESOURCES AND TRANSFORMATION,BLAKEMORE FOODSERVICE,04/10/2023,H59620231006PMGGIFPGI-1,910.90,CATERING - SCHOOLS-FOOD & DRINK SUPPLIES,CATERERS,GPC
WALSALL COUNCIL,http://opendatacommunities.org/id/metropolitan-district-council/walsall ,31/12/2023,RESOURCES AND TRANSFORMATION,BLAKEMORE FOODSERVICE,04/10/2023,H59620231006PMGGIFPGI-2,103.62,CATERING - SCHOOLS-FOOD & DRINK SUPPLIES,CATERERS,GPC
WALSALL COUNCIL,http://opendatacommunities.org/id/metropolitan-district-council/walsall ,31/12/2023,CHILDRENS SERVICES,ASDA,04/10/2023,H59620231006PQIDHLJFP-1,63.70,HOMELESSNESS PREVENTION STRATE-PURCHASE OF FURNITURE & EQUIPM,GROCERY STORES AND SUPERMARKETS,GPC
WALSALL COUNCIL,http://opendatacommunities.org/id/metropolitan-district-council/walsall ,31/12/2023,ECONOMY & ENVIRONMENT,AMZNMKTPLACE,04/10/2023,H59620231006PZWDBCQMS-1,64.93,EDUCATION INFORMAL-MATERIALS,MISCELLANEOUS AND SPECIALTY RETAIL STORES,GPC
WALSALL COUNCIL,http://opendatacommunities.org/id/metropolitan-district-council/walsall ,31/12/2023,CHILDRENS SERVICES,AMAZON.CO.UK*HT7F25GS4,04/10/2023,H59620231006QAVQFMXJT-1,2.88,ICT (COMPUTING)-MATERIALS,OTHER DIRECT MARKETING-OTHER DIRECT MARKETERS,GPC
WALSALL COUNCIL,http://opendatacommunities.org/id/metropolitan-district-council/walsall ,31/12/2023,CHILDRENS SERVICES,AMAZON.CO.UK*HT7F25GS4,04/10/2023,H59620231006QAVQFMXJT-2,3.61,ICT (COMPUTING)-MATERIALS,OTHER DIRECT MARKETING-OTHER DIRECT MARKETERS,GPC
WALSALL COUNCIL,http://opendatacommunities.org/id/metropolitan-district-council/walsall ,31/12/2023,RESOURCES AND TRANSFORMATION,BLAKEMORE FOODSERVICE,04/10/2023,H59620231006QCEIIYFLI-1,-55.04,CATERING - SCHOOLS-FOOD & DRINK SUPPLIES,CATERERS,GPC
WALSALL COUNCIL,http://opendatacommunities.org/id/metropolitan-district-council/walsall ,31/12/2023,RESOURCES AND TRANSFORMATION,BLAKEMORE FOODSERVICE,04/10/2023,H59620231006QGKVWQOXV-1,95.37,CATERING - SCHOOLS-FOOD & DRINK SUPPLIES,CATERERS,GPC
WALSALL COUNCIL,http://opendatacommunities.org/id/metropolitan-district-council/walsall ,31/12/2023,CHILDRENS SERVICES,PREMIER STORE,04/10/2023,H59620231006QSRVIMSGJ-1,9.24,"43A HILTON ROAD, WILLENHALL-FOOD & DRINK SUPPLIES",GROCERY STORES AND SUPERMARKETS,GPC
WALSALL COUNCIL,http://opendatacommunities.org/id/metropolitan-district-council/walsall ,31/12/2023,ECONOMY & ENVIRONMENT,GREENHAM TRADING LTD,04/10/2023,H59620231006QWSFUMFRC-1,92.40,INFRASTRUCTURE MAINTENANCE-GROUNDS MAINTENANCE,OTHER INDUSTRIAL SUPPLIES,GPC
WALSALL COUNCIL,http://opendatacommunities.org/id/metropolitan-district-council/walsall ,31/12/2023,ECONOMY & ENVIRONMENT,WWW.SCREWFIX.COM,04/10/2023,H59620231006QYXHIRCCN-1,15.99,FLEET-MATERIALS,LUMBER & BUILDING MATERIALS STORES,GPC
WALSALL COUNCIL,http://opendatacommunities.org/id/metropolitan-district-council/walsall ,31/12/2023,RESOURCES AND TRANSFORMATION,ARTHUR BRETT CATER,04/10/2023,H59620231006RJTIILFOQ-1,18.29,CATERING - SCHOOLS-FOOD & DRINK SUPPLIES,MISCELLANEOUS FOOD STORES & CONVENIENCE STORES,GPC
WALSALL COUNCIL,http://opendatacommunities.org/id/metropolitan-district-council/walsall ,31/12/2023,CHILDRENS SERVICES,KFC,04/10/2023,H59620231006RPMJEEKYQ-1,8.49,CARE LEAVER ENTITLEMENTS-CARE LEAVERS MISC EXPENSES,QUICK PAYMENT SERVICE-FAST-FOOD RESTAURANTS,GPC
WALSALL COUNCIL,http://opendatacommunities.org/id/metropolitan-district-council/walsall ,31/12/2023,CHILDRENS SERVICES,B&M 419 - HS REEDSWOOD,04/10/2023,H59620231006RQHCKRFLM-1,30.98,PALFREY JUNIOR SCHOOL-PLANNED MAINTENANCE,MISCELLANEOUS GENERAL MERCHANDISE,GPC
WALSALL COUNCIL,http://opendatacommunities.org/id/metropolitan-district-council/walsall ,31/12/2023,CHILDRENS SERVICES,AMAZON* MAINTENANCE,04/10/2023,H59620231006SVLZLUVOA-1,10.00,ELMWOOD SCHOOL-OPERATIONAL MAINTENANCE,MISCELLANEOUS GENERAL MERCHANDISE,GPC
WALSALL COUNCIL,http://opendatacommunities.org/id/metropolitan-district-council/walsall ,31/12/2023,CHILDRENS SERVICES,ZETTLE_*CRUMBS,04/10/2023,H59620231006SYKUPQKUM-1,35.00,CADMUS FEDERATION-OTHER EXPENSES,"EATING PLACES, RESTAURANTS",GPC
WALSALL COUNCIL,http://opendatacommunities.org/id/metropolitan-district-council/walsall ,31/12/2023,RESOURCES AND TRANSFORMATION,AMZNMKTPLACE,04/10/2023,H59620231006TJDIZDZBF-1,25.59,CENTRAL OFFICE ACCOMMODATION-OPERATIONAL MAINTENANCE,MISCELLANEOUS AND SPECIALTY RETAIL STORES,GPC
WALSALL COUNCIL,http://opendatacommunities.org/id/metropolitan-district-council/walsall ,31/12/2023,RESOURCES AND TRANSFORMATION,ARTHUR BRETT CATER,04/10/2023,H59620231006TTNMEKTCN-1,92.41,CATERING - SCHOOLS-FOOD & DRINK SUPPLIES,MISCELLANEOUS FOOD STORES & CONVENIENCE STORES,GPC
WALSALL COUNCIL,http://opendatacommunities.org/id/metropolitan-district-council/walsall ,31/12/2023,CHILDRENS SERVICES,POST OFFICE COUNTER,04/10/2023,H59620231006UCUINYRLR-1,7.35,ADMINISTRATIVE SUPPLIES-POSTAGES & COURIER SERVICES,POSTAL SERVICES - GOVERNMENT ONLY,GPC
WALSALL COUNCIL,http://opendatacommunities.org/id/metropolitan-district-council/walsall ,31/12/2023,CHILDRENS SERVICES,NCP WOLVERHAMPTON SUMM,04/10/2023,H59620231006UQFYMNYGS-1,1.95,CARE LEAVER ENTITLEMENTS-OTHER TRAVEL ALLOWANCES,AUTOMOBILE PARKING LOTS AND GARAGES,GPC
WALSALL COUNCIL,http://opendatacommunities.org/id/metropolitan-district-council/walsall ,31/12/2023,CHILDRENS SERVICES,AMZNMKTPLACE,04/10/2023,H59620231006URLVMJIDW-1,52.40,LITERATURE-MATERIALS,MISCELLANEOUS AND SPECIALTY RETAIL STORES,GPC
WALSALL COUNCIL,http://opendatacommunities.org/id/metropolitan-district-council/walsall ,31/12/2023,CHILDRENS SERVICES,AMZNMKTPLACE,04/10/2023,H59620231006URLVMJIDW-2,1.74,LITERATURE-MATERIALS,MISCELLANEOUS AND SPECIALTY RETAIL STORES,GPC
WALSALL COUNCIL,http://opendatacommunities.org/id/metropolitan-district-council/walsall ,31/12/2023,CHILDRENS SERVICES,AMZNMKTPLACE,04/10/2023,H59620231006VKGXQCLMY-1,12.00,ST FRANCIS OF ASSISI CATHOLIC -CATERING & REFRESHMENTS,MISCELLANEOUS AND SPECIALTY RETAIL STORES,GPC
WALSALL COUNCIL,http://opendatacommunities.org/id/metropolitan-district-council/walsall ,31/12/2023,CHILDRENS SERVICES,AMZNMKTPLACE,04/10/2023,H59620231006VSKIQLLSW-1,25.20,RE/CC-MATERIALS,MISCELLANEOUS AND SPECIALTY RETAIL STORES,GPC
WALSALL COUNCIL,http://opendatacommunities.org/id/metropolitan-district-council/walsall ,31/12/2023,CHILDRENS SERVICES,MCDONALDS,04/10/2023,H59620231006VSPAKHZVP-1,4.91,EDGE OF CARE TEAM-FOOD & DRINK SUPPLIES,QUICK PAYMENT SERVICE-FAST-FOOD RESTAURANTS,GPC
WALSALL COUNCIL,http://opendatacommunities.org/id/metropolitan-district-council/walsall ,31/12/2023,CHILDRENS SERVICES,B&M 541 - ALDIDGE,04/10/2023,H59620231006WKUWHGXDT-1,3.00,FAMILY PLACEMENTS-MATERIALS,MISCELLANEOUS GENERAL MERCHANDISE,GPC
WALSALL COUNCIL,http://opendatacommunities.org/id/metropolitan-district-council/walsall ,31/12/2023,RESOURCES AND TRANSFORMATION,NOBISCO LIMITED,04/10/2023,H59620231006WRCTPFFLU-1,20.90,CATERING - SCHOOLS-FOOD & DRINK SUPPLIES,OTHER INDUSTRIAL SUPPLIES,GPC
WALSALL COUNCIL,http://opendatacommunities.org/id/metropolitan-district-council/walsall ,31/12/2023,CHILDRENS SERVICES,TRAINLINE,04/10/2023,H59620231006WSYCOQDPI-1,28.41,FAMILY SAFEGUARDING EAST LOCAL-SECTION 1/17CHILD CARE ACT 198,PASSENGER RAILWAYS,GPC
WALSALL COUNCIL,http://opendatacommunities.org/id/metropolitan-district-council/walsall ,31/12/2023,CHILDRENS SERVICES,AMZNMKTPLACE,04/10/2023,H59620231006XMKNPEEVS-1,39.83,ADMINISTRATIVE SUPPLIES-STATIONERY & GENERAL OFFICE SU,MISCELLANEOUS AND SPECIALTY RETAIL STORES,GPC
WALSALL COUNCIL,http://opendatacommunities.org/id/metropolitan-district-council/walsall ,31/12/2023,RESOURCES AND TRANSFORMATION,ARTHUR BRETT CATER,04/10/2023,H59620231006XPYRUWWTR-1,94.44,CATERING - SCHOOLS-FOOD & DRINK SUPPLIES,MISCELLANEOUS FOOD STORES & CONVENIENCE STORES,GPC
WALSALL COUNCIL,http://opendatacommunities.org/id/metropolitan-district-council/walsall ,31/12/2023,CHILDRENS SERVICES,AMAZON.CO.UK*HT0J66GM4,04/10/2023,H59620231006XUSJXGDCD-1,2.88,ICT (COMPUTING)-MATERIALS,OTHER DIRECT MARKETING-OTHER DIRECT MARKETERS,GPC
WALSALL COUNCIL,http://opendatacommunities.org/id/metropolitan-district-council/walsall ,31/12/2023,CHILDRENS SERVICES,AMAZON.CO.UK*HT0J66GM4,04/10/2023,H59620231006XUSJXGDCD-2,3.61,ICT (COMPUTING)-MATERIALS,OTHER DIRECT MARKETING-OTHER DIRECT MARKETERS,GPC
WALSALL COUNCIL,http://opendatacommunities.org/id/metropolitan-district-council/walsall ,31/12/2023,RESOURCES AND TRANSFORMATION,WWW.BANNERUK.COM,04/10/2023,H59620231006XVFLKBHBK-1,32.09,HR ADMIN HUB-STATIONERY & GENERAL OFFICE SU,"STATIONERY, OFFICE SUPPLIES AND WRITING PAPER",GPC
WALSALL COUNCIL,http://opendatacommunities.org/id/metropolitan-district-council/walsall ,31/12/2023,RESOURCES AND TRANSFORMATION,DUNELM SOFT FURNISHINGS,04/10/2023,H59620231006XWACLPFEY-1,48.00,TOWN HALL RESTAURANT BISTRO-PURCHASE OF FURNITURE & EQUIPM,"EQUIPMENT, FURNITURE, AND HOME FURNISHINGS STORES ",GPC
WALSALL COUNCIL,http://opendatacommunities.org/id/metropolitan-district-council/walsall ,31/12/2023,CHILDRENS SERVICES,AMZNMKTPLACE,04/10/2023,H59620231006YDZWESOLX-1,25.20,RE/CC-MATERIALS,MISCELLANEOUS AND SPECIALTY RETAIL STORES,GPC
WALSALL COUNCIL,http://opendatacommunities.org/id/metropolitan-district-council/walsall ,31/12/2023,CHILDRENS SERVICES,AMZNMKTPLACE,04/10/2023,H59620231006ZCMXSTKKD-1,7.45,ELMWOOD SCHOOL-OPERATIONAL MAINTENANCE,MISCELLANEOUS AND SPECIALTY RETAIL STORES,GPC
WALSALL COUNCIL,http://opendatacommunities.org/id/metropolitan-district-council/walsall ,31/12/2023,CHILDRENS SERVICES,ASDA GROCERIES ONLINE,04/10/2023,H59620231006ZIEEXULUP-1,-0.04,BREAKFAST CLUB-FOOD & DRINK SUPPLIES,GROCERY STORES AND SUPERMARKETS,GPC
WALSALL COUNCIL,http://opendatacommunities.org/id/metropolitan-district-council/walsall ,31/12/2023,RESOURCES AND TRANSFORMATION,ARTHUR BRETT CATER,04/10/2023,H59620231006ZLCYIHYSF-1,61.50,CATERING - SCHOOLS-FOOD & DRINK SUPPLIES,MISCELLANEOUS FOOD STORES & CONVENIENCE STORES,GPC
WALSALL COUNCIL,http://opendatacommunities.org/id/metropolitan-district-council/walsall ,31/12/2023,ECONOMY & ENVIRONMENT,SP MOCAFASHIONLTD,04/10/2023,H59620231007JHHNUWQQY-1,496.68,NAG - NEW ART GALLERY SHOP STO-MATERIALS TO STORES,COMPUTER SOFTWARE STORES,GPC
WALSALL COUNCIL,http://opendatacommunities.org/id/metropolitan-district-council/walsall ,31/12/2023,CHILDRENS SERVICES,REGATTA,04/10/2023,H59620231007JKYAKSTVU-1,59.90,LEIGHSWOOD PRIMARY SCHOOL-OPERATIONAL MAINTENANCE,CLOTHING STORES,GPC
WALSALL COUNCIL,http://opendatacommunities.org/id/metropolitan-district-council/walsall ,31/12/2023,ECONOMY & ENVIRONMENT,PAYPAL *FIRE PROTN,04/10/2023,H59620231010EBEEHGZJI-1,168.36,FLEET-MATERIALS,PROFESSIONAL SERVICES,GPC
WALSALL COUNCIL,http://opendatacommunities.org/id/metropolitan-district-council/walsall ,31/12/2023,RESOURCES AND TRANSFORMATION,WWW.SCC.COM,04/10/2023,H59620231021UXNJEAFTL-1,83.95,RECHARGEABLE EQUIPMENT-COMPUTER EQUIPMENT,"COMPUTERS, COMPUTER PERIPHERAL EQUIPMENT, SOFTWARE",GPC
WALSALL COUNCIL,http://opendatacommunities.org/id/metropolitan-district-council/walsall ,31/12/2023,RESOURCES AND TRANSFORMATION,WWW.SCC.COM,04/10/2023,H59620231024ULMJVSVDU-1,49.36,RECHARGEABLE EQUIPMENT-COMPUTER EQUIPMENT,"COMPUTERS, COMPUTER PERIPHERAL EQUIPMENT, SOFTWARE",GPC
WALSALL COUNCIL,http://opendatacommunities.org/id/metropolitan-district-council/walsall ,31/12/2023,RESOURCES AND TRANSFORMATION,WWW.SCC.COM,04/10/2023,H59620231125GRUKIFJLK-1,15258.72,RECHARGEABLE EQUIPMENT-COMPUTER EQUIPMENT,"COMPUTERS, COMPUTER PERIPHERAL EQUIPMENT, SOFTWARE",GPC
WALSALL COUNCIL,http://opendatacommunities.org/id/metropolitan-district-council/walsall ,31/12/2023,ECONOMY & ENVIRONMENT,ADOBE CREATIVE CLOUD,05/10/2023,H59620231006UTTCTWUIM-1,74.39,NAG - ART GALLERY MARKETING-SUBSCRIPTIONS,COMPUTER SOFTWARE STORES,GPC
WALSALL COUNCIL,http://opendatacommunities.org/id/metropolitan-district-council/walsall ,31/12/2023,RESOURCES AND TRANSFORMATION,JOHAL DAIRIES LTD,05/10/2023,H59620231007AIATAFFTQ-1,13.40,CATERING - SCHOOLS-FOOD & DRINK SUPPLIES,OTHER NONDURABLE GOODS,GPC
WALSALL COUNCIL,http://opendatacommunities.org/id/metropolitan-district-council/walsall ,31/12/2023,RESOURCES AND TRANSFORMATION,JOHAL DAIRIES LTD,05/10/2023,H59620231007AVNWJNNMW-1,3.90,CATERING - SCHOOLS-FOOD & DRINK SUPPLIES,OTHER NONDURABLE GOODS,GPC
WALSALL COUNCIL,http://opendatacommunities.org/id/metropolitan-district-council/walsall ,31/12/2023,CHILDRENS SERVICES,FIELD STUDIES COUNCIL,05/10/2023,H59620231007BCMQSRMWF-1,150.00,EDUCATIONAL VISITS-MATERIALS,OTHER SCHOOLS AND EDUCATIONAL SERVICES,GPC
WALSALL COUNCIL,http://opendatacommunities.org/id/metropolitan-district-council/walsall ,31/12/2023,CHILDRENS SERVICES,THE LIGHT CINEMAS,05/10/2023,H59620231007BJMKSIKSW-1,500.00,YOUTH JUSTICE SERVICE-STATIONERY & GENERAL OFFICE SU,MOTION PICTURE THEATERS,GPC
WALSALL COUNCIL,http://opendatacommunities.org/id/metropolitan-district-council/walsall ,31/12/2023,CHILDRENS SERVICES,AMZNMKTPLACE,05/10/2023,H59620231007DFGFARXXT-1,27.95,CREATIVE CURRICULUM & DISPLAYS-MATERIALS,MISCELLANEOUS AND SPECIALTY RETAIL STORES,GPC
WALSALL COUNCIL,http://opendatacommunities.org/id/metropolitan-district-council/walsall ,31/12/2023,CHILDRENS SERVICES,ASDA STORES,05/10/2023,H59620231007DIXWGCMPC-1,6.50,CORPORATE PARENTING-FOOD & DRINK SUPPLIES,GROCERY STORES AND SUPERMARKETS,GPC
WALSALL COUNCIL,http://opendatacommunities.org/id/metropolitan-district-council/walsall ,31/12/2023,CHILDRENS SERVICES,ASDA STORES,05/10/2023,H59620231007DIXWGCMPC-2,1.50,CORPORATE PARENTING-FOOD & DRINK SUPPLIES,GROCERY STORES AND SUPERMARKETS,GPC
WALSALL COUNCIL,http://opendatacommunities.org/id/metropolitan-district-council/walsall ,31/12/2023,CHILDRENS SERVICES,PAYPAL *VIKING UK,05/10/2023,H59620231007DKIUIGLXN-1,37.30,YEAR 1 / 2-MATERIALS,"OFFICE, SCHOOL SUPPLY, AND STATIONERY STORES",GPC
WALSALL COUNCIL,http://opendatacommunities.org/id/metropolitan-district-council/walsall ,31/12/2023,CHILDRENS SERVICES,PAYPAL *VIKING UK,05/10/2023,H59620231007DKIUIGLXN-2,-2.99,YEAR 1 / 2-MATERIALS,"OFFICE, SCHOOL SUPPLY, AND STATIONERY STORES",GPC
WALSALL COUNCIL,http://opendatacommunities.org/id/metropolitan-district-council/walsall ,31/12/2023,CHILDRENS SERVICES,STORAGE KING WALSALL,05/10/2023,H59620231007DWEVXXSYH-1,102.40,FAMILY SAFEGUARDING CENTRAL AN-SECTION 1/17CHILD CARE ACT 198,"PUBLIC WAREHOUSING, FARM, & HOUSEHOLD GOODS",GPC
WALSALL COUNCIL,http://opendatacommunities.org/id/metropolitan-district-council/walsall ,31/12/2023,CHILDRENS SERVICES,AMAZON.CO.UK*HT7KI85U4,05/10/2023,H59620231007DXCDPDXNO-1,64.33,ENGLISH / LIBRARY-LIBRARY BOOKS,OTHER DIRECT MARKETING-OTHER DIRECT MARKETERS,GPC
WALSALL COUNCIL,http://opendatacommunities.org/id/metropolitan-district-council/walsall ,31/12/2023,CHILDRENS SERVICES,WALSALL COUNCIL,05/10/2023,H59620231007EKZYOQEMP-1,40.22,ST FRANCIS OF ASSISI CATHOLIC -POLICE CHECKS,GOVERNMENT SERVICES,GPC
WALSALL COUNCIL,http://opendatacommunities.org/id/metropolitan-district-council/walsall ,31/12/2023,CHILDRENS SERVICES,AMZNMKTPLACE,05/10/2023,H59620231007EMRIYHYPT-1,-8.99,SPECIAL NEEDS-MATERIALS,MISCELLANEOUS AND SPECIALTY RETAIL STORES,GPC
WALSALL COUNCIL,http://opendatacommunities.org/id/metropolitan-district-council/walsall ,31/12/2023,CHILDRENS SERVICES,SCHOOLHIRE* B1540063,05/10/2023,H59620231007EUTLBCWRG-1,270.00,E19-MATERIALS,COMPUTER SOFTWARE STORES,GPC
WALSALL COUNCIL,http://opendatacommunities.org/id/metropolitan-district-council/walsall ,31/12/2023,CHILDRENS SERVICES,AMZNMKTPLACE,05/10/2023,H59620231007EZNJAKMQB-1,31.95,LEIGHSWOOD PRIMARY SCHOOL-OPERATIONAL MAINTENANCE,MISCELLANEOUS AND SPECIALTY RETAIL STORES,GPC
WALSALL COUNCIL,http://opendatacommunities.org/id/metropolitan-district-council/walsall ,31/12/2023,CHILDRENS SERVICES,AMZNMKTPLACE,05/10/2023,H59620231007EZNJAKMQB-2,7.99,E19-MATERIALS,MISCELLANEOUS AND SPECIALTY RETAIL STORES,GPC
WALSALL COUNCIL,http://opendatacommunities.org/id/metropolitan-district-council/walsall ,31/12/2023,RESOURCES AND TRANSFORMATION,ARTHUR BRETT CATER,05/10/2023,H59620231007FGRSJIXEK-1,5.90,CATERING - SCHOOLS-FOOD & DRINK SUPPLIES,MISCELLANEOUS FOOD STORES & CONVENIENCE STORES,GPC
WALSALL COUNCIL,http://opendatacommunities.org/id/metropolitan-district-council/walsall ,31/12/2023,CHILDRENS SERVICES,JUST EAT,05/10/2023,H59620231007FSVMSKIGF-1,48.12,CORPORATE PARENTING-FOOD & DRINK SUPPLIES,QUICK PAYMENT SERVICE-FAST-FOOD RESTAURANTS,GPC
WALSALL COUNCIL,http://opendatacommunities.org/id/metropolitan-district-council/walsall ,31/12/2023,RESOURCES AND TRANSFORMATION,JOHAL DAIRIES LTD,05/10/2023,H59620231007FVPCJKQGB-1,36.92,TOWN HALL RESTAURANT BISTRO-FOOD & DRINK SUPPLIES,OTHER NONDURABLE GOODS,GPC
WALSALL COUNCIL,http://opendatacommunities.org/id/metropolitan-district-council/walsall ,31/12/2023,RESOURCES AND TRANSFORMATION,JOHAL DAIRIES LTD,05/10/2023,H59620231007FXBBJDRHJ-1,13.40,CATERING - SCHOOLS-FOOD & DRINK SUPPLIES,OTHER NONDURABLE GOODS,GPC
WALSALL COUNCIL,http://opendatacommunities.org/id/metropolitan-district-council/walsall ,31/12/2023,RESOURCES AND TRANSFORMATION,JOHAL DAIRIES LTD,05/10/2023,H59620231007GXMCJDGPM-1,21.44,CATERING - SCHOOLS-FOOD & DRINK SUPPLIES,OTHER NONDURABLE GOODS,GPC
WALSALL COUNCIL,http://opendatacommunities.org/id/metropolitan-district-council/walsall ,31/12/2023,RESOURCES AND TRANSFORMATION,JOHAL DAIRIES LTD,05/10/2023,H59620231007GYSUQPCKO-1,104.60,CATERING - SCHOOLS-FOOD & DRINK SUPPLIES,OTHER NONDURABLE GOODS,GPC
WALSALL COUNCIL,http://opendatacommunities.org/id/metropolitan-district-council/walsall ,31/12/2023,ECONOMY & ENVIRONMENT,WWW.SCREWFIX.COM,05/10/2023,H59620231007HHQVWSVPZ-1,92.95,WALSALL WORKS-MATERIALS,LUMBER & BUILDING MATERIALS STORES,GPC
WALSALL COUNCIL,http://opendatacommunities.org/id/metropolitan-district-council/walsall ,31/12/2023,CHILDRENS SERVICES,AMZNMKTPLACE,05/10/2023,H59620231007HIWGSTTUM-1,8.98,ADMINISTRATIVE SUPPLIES-MATERIALS,MISCELLANEOUS AND SPECIALTY RETAIL STORES,GPC
WALSALL COUNCIL,http://opendatacommunities.org/id/metropolitan-district-council/walsall ,31/12/2023,CHILDRENS SERVICES,POST OFFICE COUNTER,05/10/2023,H59620231007HJEKQIDEI-1,7.35,LOCALITY FAMILY SUPPORT-WEST-POSTAGES & COURIER SERVICES,POSTAL SERVICES - GOVERNMENT ONLY,GPC
WALSALL COUNCIL,http://opendatacommunities.org/id/metropolitan-district-council/walsall ,31/12/2023,CHILDRENS SERVICES,EASYJET K66D6T3,05/10/2023,H59620231007HLJQDIDWU-1,105.96,FAMILY SAFEGUARDING WEST LOCAL-SECTION 1/17CHILD CARE ACT 198,EASYJET,GPC
WALSALL COUNCIL,http://opendatacommunities.org/id/metropolitan-district-council/walsall ,31/12/2023,RESOURCES AND TRANSFORMATION,JOHAL DAIRIES LTD,05/10/2023,H59620231007IHCOCOIFS-1,53.60,CATERING - SCHOOLS-FOOD & DRINK SUPPLIES,OTHER NONDURABLE GOODS,GPC
WALSALL COUNCIL,http://opendatacommunities.org/id/metropolitan-district-council/walsall ,31/12/2023,RESOURCES AND TRANSFORMATION,JOHAL DAIRIES LTD,05/10/2023,H59620231007IKXFFMOKC-1,5.20,CATERING - SCHOOLS-FOOD & DRINK SUPPLIES,OTHER NONDURABLE GOODS,GPC
WALSALL COUNCIL,http://opendatacommunities.org/id/metropolitan-district-council/walsall ,31/12/2023,ECONOMY & ENVIRONMENT,AMZNMKTPLACE,05/10/2023,H59620231007IPDRONHIY-1,52.91,DARLASTON SWIMMING AND FITNESS-STATIONERY & GENERAL OFFICE SU,MISCELLANEOUS AND SPECIALTY RETAIL STORES,GPC
WALSALL COUNCIL,http://opendatacommunities.org/id/metropolitan-district-council/walsall ,31/12/2023,RESOURCES AND TRANSFORMATION,JOHAL DAIRIES LTD,05/10/2023,H59620231007IUMNMVPXH-1,40.20,CATERING - SCHOOLS-FOOD & DRINK SUPPLIES,OTHER NONDURABLE GOODS,GPC
WALSALL COUNCIL,http://opendatacommunities.org/id/metropolitan-district-council/walsall ,31/12/2023,CHILDRENS SERVICES,WWW.ARGOS.CO.UK,05/10/2023,H59620231007JGGUMNDUM-1,155.95,SUPPORT UNDER SECT 23 OF THE C-SUPPORT UNDER SECTION 23 OF TH,DEPARTMENT STORES,GPC
WALSALL COUNCIL,http://opendatacommunities.org/id/metropolitan-district-council/walsall ,31/12/2023,RESOURCES AND TRANSFORMATION,JOHAL DAIRIES LTD,05/10/2023,H59620231007JHJLBNOCJ-1,33.50,CATERING - SCHOOLS-FOOD & DRINK SUPPLIES,OTHER NONDURABLE GOODS,GPC
WALSALL COUNCIL,http://opendatacommunities.org/id/metropolitan-district-council/walsall ,31/12/2023,RESOURCES AND TRANSFORMATION,B&M 078 - WALSALL,05/10/2023,H59620231007JURFXUXBW-1,9.99,TOWN HALL RESTAURANT BISTRO-FOOD & DRINK SUPPLIES,MISCELLANEOUS GENERAL MERCHANDISE,GPC
WALSALL COUNCIL,http://opendatacommunities.org/id/metropolitan-district-council/walsall ,31/12/2023,CHILDRENS SERVICES,CPD ONLINE COLLEGE,05/10/2023,H59620231007KKJPOVNYN-1,48.00,POOL HAYES PRIMARY SCHOOL-EXTERNAL TRAINING,OTHER SCHOOLS AND EDUCATIONAL SERVICES,GPC
WALSALL COUNCIL,http://opendatacommunities.org/id/metropolitan-district-council/walsall ,31/12/2023,CHILDRENS SERVICES,ASDA GROCERIES ONLINE,05/10/2023,H59620231007KNJRGHOFZ-1,22.50,HEAD FUND + ALTERNATIVE PROVIS-MATERIALS,GROCERY STORES AND SUPERMARKETS,GPC
WALSALL COUNCIL,http://opendatacommunities.org/id/metropolitan-district-council/walsall ,31/12/2023,CHILDRENS SERVICES,ASDA GROCERIES ONLINE,05/10/2023,H59620231007KNJRGHOFZ-2,38.50,PASTROL (REWARDS & PRIZES)-MATERIALS,GROCERY STORES AND SUPERMARKETS,GPC
WALSALL COUNCIL,http://opendatacommunities.org/id/metropolitan-district-council/walsall ,31/12/2023,ECONOMY & ENVIRONMENT,SCREWFIX DIR LTD,05/10/2023,H59620231007KSVSFSDDK-1,7.57,INFRASTRUCTURE MAINTENANCE-MATERIALS,LUMBER & BUILDING MATERIALS STORES,GPC
WALSALL COUNCIL,http://opendatacommunities.org/id/metropolitan-district-council/walsall ,31/12/2023,CHILDRENS SERVICES,ALDI 28 772,05/10/2023,H59620231007LGWKDOVIK-1,14.50,REDRUTH ROAD-FOOD & DRINK SUPPLIES,GROCERY STORES AND SUPERMARKETS,GPC
WALSALL COUNCIL,http://opendatacommunities.org/id/metropolitan-district-council/walsall ,31/12/2023,CHILDRENS SERVICES,ALDI 28 772,05/10/2023,H59620231007LGWKDOVIK-2,64.10,REDRUTH ROAD-FOOD & DRINK SUPPLIES,GROCERY STORES AND SUPERMARKETS,GPC
WALSALL COUNCIL,http://opendatacommunities.org/id/metropolitan-district-council/walsall ,31/12/2023,RESOURCES AND TRANSFORMATION,JOHAL DAIRIES LTD,05/10/2023,H59620231007LRQUIKGVV-1,20.10,CATERING - SCHOOLS-FOOD & DRINK SUPPLIES,OTHER NONDURABLE GOODS,GPC
WALSALL COUNCIL,http://opendatacommunities.org/id/metropolitan-district-council/walsall ,31/12/2023,RESOURCES AND TRANSFORMATION,JOHAL DAIRIES LTD,05/10/2023,H59620231007LTCWEWKSG-1,93.80,CATERING - SCHOOLS-FOOD & DRINK SUPPLIES,OTHER NONDURABLE GOODS,GPC
WALSALL COUNCIL,http://opendatacommunities.org/id/metropolitan-district-council/walsall ,31/12/2023,ECONOMY & ENVIRONMENT,SCREWFIX DIRECT,05/10/2023,H59620231007LVWKKOFDO-1,-10.99,FLEET-MATERIALS,LUMBER & BUILDING MATERIALS STORES,GPC
WALSALL COUNCIL,http://opendatacommunities.org/id/metropolitan-district-council/walsall ,31/12/2023,RESOURCES AND TRANSFORMATION,SP FEZIBO,05/10/2023,H59620231007LVWPATPNM-1,219.99,HR ADMIN HUB-PURCHASE OF FURNITURE & EQUIPM,"EQUIPMENT, FURNITURE, AND HOME FURNISHINGS STORES ",GPC
WALSALL COUNCIL,http://opendatacommunities.org/id/metropolitan-district-council/walsall ,31/12/2023,RESOURCES AND TRANSFORMATION,JOHAL DAIRIES LTD,05/10/2023,H59620231007MHDTPNGBM-1,11.42,CATERING - SCHOOLS-FOOD & DRINK SUPPLIES,OTHER NONDURABLE GOODS,GPC
WALSALL COUNCIL,http://opendatacommunities.org/id/metropolitan-district-council/walsall ,31/12/2023,ECONOMY & ENVIRONMENT,WM MORRISONS STORE,05/10/2023,H59620231007MWTIEJPJW-1,30.00,RESTART-FOOD & DRINK SUPPLIES,GROCERY STORES AND SUPERMARKETS,GPC
WALSALL COUNCIL,http://opendatacommunities.org/id/metropolitan-district-council/walsall ,31/12/2023,RESOURCES AND TRANSFORMATION,NOBISCO LIMITED,05/10/2023,H59620231007NJAGPXBEE-1,91.49,CATERING - SCHOOLS-FOOD & DRINK SUPPLIES,OTHER INDUSTRIAL SUPPLIES,GPC
WALSALL COUNCIL,http://opendatacommunities.org/id/metropolitan-district-council/walsall ,31/12/2023,CHILDRENS SERVICES,REEDSWOOD - SAINSBURYS,05/10/2023,H59620231007NKLVNBPXY-1,4.30,CARE LEAVER ENTITLEMENTS-CARE LEAVERS MISC EXPENSES,QUICK PAYMENT SERVICE-FAST-FOOD RESTAURANTS,GPC
WALSALL COUNCIL,http://opendatacommunities.org/id/metropolitan-district-council/walsall ,31/12/2023,CHILDRENS SERVICES,AMZNMKTPLACE,05/10/2023,H59620231007OBSTOSMNO-1,25.71,SEN-STATIONERY & GENERAL OFFICE SU,MISCELLANEOUS AND SPECIALTY RETAIL STORES,GPC
WALSALL COUNCIL,http://opendatacommunities.org/id/metropolitan-district-council/walsall ,31/12/2023,RESOURCES AND TRANSFORMATION,ARTHUR BRETT CATER,05/10/2023,H59620231007OURQUKXRD-1,59.82,CATERING - SCHOOLS-FOOD & DRINK SUPPLIES,MISCELLANEOUS FOOD STORES & CONVENIENCE STORES,GPC
WALSALL COUNCIL,http://opendatacommunities.org/id/metropolitan-district-council/walsall ,31/12/2023,ECONOMY & ENVIRONMENT,AMZNMKTPLACE,05/10/2023,H59620231007PPVCJPPAA-1,2.49,BLOXWICH LIBRARY-PURCHASE OF FURNITURE & EQUIPM,MISCELLANEOUS AND SPECIALTY RETAIL STORES,GPC
WALSALL COUNCIL,http://opendatacommunities.org/id/metropolitan-district-council/walsall ,31/12/2023,ECONOMY & ENVIRONMENT,AMZNMKTPLACE,05/10/2023,H59620231007PPVCJPPAA-2,2.50,BLOXWICH LIBRARY-PURCHASE OF FURNITURE & EQUIPM,MISCELLANEOUS AND SPECIALTY RETAIL STORES,GPC
WALSALL COUNCIL,http://opendatacommunities.org/id/metropolitan-district-council/walsall ,31/12/2023,ECONOMY & ENVIRONMENT,SQ *ORION SAFETY BELTS LI,05/10/2023,H59620231007PUJHYSTNK-1,173.82,FLEET-MATERIALS,SPORTING GOODS STORES,GPC
WALSALL COUNCIL,http://opendatacommunities.org/id/metropolitan-district-council/walsall ,31/12/2023,ECONOMY & ENVIRONMENT,WALSALL COUNCIL,05/10/2023,H59620231007QBSAORAVM-1,17.00,EH DIV GENERAL COSTS-FEES & LICENCES,GOVERNMENT SERVICES,GPC
WALSALL COUNCIL,http://opendatacommunities.org/id/metropolitan-district-council/walsall ,31/12/2023,CHILDRENS SERVICES,OOTA/SYARD* OUT OF THE,05/10/2023,H59620231007QDPLIRACB-1,34.91,YEAR 1 / 2-MATERIALS,COMPUTER SOFTWARE STORES,GPC
WALSALL COUNCIL,http://opendatacommunities.org/id/metropolitan-district-council/walsall ,31/12/2023,CHILDRENS SERVICES,OOTA/SYARD* OUT OF THE,05/10/2023,H59620231007QDPLIRACB-2,30.94,YEAR 1 / 2-MATERIALS,COMPUTER SOFTWARE STORES,GPC
WALSALL COUNCIL,http://opendatacommunities.org/id/metropolitan-district-council/walsall ,31/12/2023,RESOURCES AND TRANSFORMATION,WWW.SCREWFIX.COM,05/10/2023,H59620231007QEMVZEJHY-1,228.34,INTEGRATED FACILITIES MANAGEME-OPERATIONAL MAINTENANCE,LUMBER & BUILDING MATERIALS STORES,GPC
WALSALL COUNCIL,http://opendatacommunities.org/id/metropolitan-district-council/walsall ,31/12/2023,CHILDRENS SERVICES,POST OFFICE COUNTER,05/10/2023,H59620231007QSGAHTPXQ-1,7.35,FAMILY SAFEGUARDING WEST LOCAL-POSTAGES & COURIER SERVICES,POSTAL SERVICES - GOVERNMENT ONLY,GPC
WALSALL COUNCIL,http://opendatacommunities.org/id/metropolitan-district-council/walsall ,31/12/2023,RESOURCES AND TRANSFORMATION,JOHAL DAIRIES LTD,05/10/2023,H59620231007QZODDSYLN-1,32.50,CATERING - SCHOOLS-FOOD & DRINK SUPPLIES,OTHER NONDURABLE GOODS,GPC
WALSALL COUNCIL,http://opendatacommunities.org/id/metropolitan-district-council/walsall ,31/12/2023,CHILDRENS SERVICES,AMAZON.CO.UK*HT5W45ME4,05/10/2023,H59620231007RDUBVFGQF-1,20.85,"43A HILTON ROAD, WILLENHALL-STATIONERY & GENERAL OFFICE SU",OTHER DIRECT MARKETING-OTHER DIRECT MARKETERS,GPC
WALSALL COUNCIL,http://opendatacommunities.org/id/metropolitan-district-council/walsall ,31/12/2023,CHILDRENS SERVICES,OOTA/SYARD* OUT OF THE,05/10/2023,H59620231007SJPTIEZHQ-1,30.94,RECEPTION-MATERIALS,COMPUTER SOFTWARE STORES,GPC
WALSALL COUNCIL,http://opendatacommunities.org/id/metropolitan-district-council/walsall ,31/12/2023,CHILDRENS SERVICES,OOTA/SYARD* OUT OF THE,05/10/2023,H59620231007SJPTIEZHQ-2,34.91,RECEPTION-MATERIALS,COMPUTER SOFTWARE STORES,GPC
WALSALL COUNCIL,http://opendatacommunities.org/id/metropolitan-district-council/walsall ,31/12/2023,RESOURCES AND TRANSFORMATION,JOHAL DAIRIES LTD,05/10/2023,H59620231007SKYNUBMQK-1,9.30,CATERING - SCHOOLS-FOOD & DRINK SUPPLIES,OTHER NONDURABLE GOODS,GPC
WALSALL COUNCIL,http://opendatacommunities.org/id/metropolitan-district-council/walsall ,31/12/2023,CHILDRENS SERVICES,STORAGE KING WALSALL,05/10/2023,H59620231007SLIJXLYCE-1,86.40,FAMILY SAFEGUARDING CENTRAL AN-SECTION 1/17CHILD CARE ACT 198,"PUBLIC WAREHOUSING, FARM, & HOUSEHOLD GOODS",GPC
WALSALL COUNCIL,http://opendatacommunities.org/id/metropolitan-district-council/walsall ,31/12/2023,CHILDRENS SERVICES,NWT SUPPLIES LIMITED,05/10/2023,H59620231007SQHWQICRO-1,214.78,LEIGHSWOOD PRIMARY SCHOOL-PERSONAL REQUISITES-MATERIALS,"NURSERIES, LAWN AND GARDEN SUPPLY STORES",GPC
WALSALL COUNCIL,http://opendatacommunities.org/id/metropolitan-district-council/walsall ,31/12/2023,RESOURCES AND TRANSFORMATION,JOHAL DAIRIES LTD,05/10/2023,H59620231007SXOSLPOPN-1,70.76,CATERING - SCHOOLS-FOOD & DRINK SUPPLIES,OTHER NONDURABLE GOODS,GPC
WALSALL COUNCIL,http://opendatacommunities.org/id/metropolitan-district-council/walsall ,31/12/2023,RESOURCES AND TRANSFORMATION,JOHAL DAIRIES LTD,05/10/2023,H59620231007TCDISOTDH-1,13.40,CATERING - SCHOOLS-FOOD & DRINK SUPPLIES,OTHER NONDURABLE GOODS,GPC
WALSALL COUNCIL,http://opendatacommunities.org/id/metropolitan-district-council/walsall ,31/12/2023,RESOURCES AND TRANSFORMATION,JOHAL DAIRIES LTD,05/10/2023,H59620231007TTOOYXETH-1,21.08,CATERING - SCHOOLS-FOOD & DRINK SUPPLIES,OTHER NONDURABLE GOODS,GPC
WALSALL COUNCIL,http://opendatacommunities.org/id/metropolitan-district-council/walsall ,31/12/2023,CHILDRENS SERVICES,AMZNMKTPLACE,05/10/2023,H59620231007UFKWKMQUO-1,38.53,SPECIAL EDUCATIONAL NEEDS-LIBRARY BOOKS,MISCELLANEOUS AND SPECIALTY RETAIL STORES,GPC
WALSALL COUNCIL,http://opendatacommunities.org/id/metropolitan-district-council/walsall ,31/12/2023,ECONOMY & ENVIRONMENT,AMZNMKTPLACE,05/10/2023,H59620231007UGRBSLSWV-1,6.49,BLOXWICH LIBRARY-PURCHASE OF FURNITURE & EQUIPM,MISCELLANEOUS AND SPECIALTY RETAIL STORES,GPC
WALSALL COUNCIL,http://opendatacommunities.org/id/metropolitan-district-council/walsall ,31/12/2023,RESOURCES AND TRANSFORMATION,JOHAL DAIRIES LTD,05/10/2023,H59620231007UHAPXCLMS-1,20.10,CATERING - SCHOOLS-FOOD & DRINK SUPPLIES,OTHER NONDURABLE GOODS,GPC
WALSALL COUNCIL,http://opendatacommunities.org/id/metropolitan-district-council/walsall ,31/12/2023,RESOURCES AND TRANSFORMATION,AMZNMKTPLACE,05/10/2023,H59620231007UPQFMKRHB-1,28.88,HR ADMIN HUB-STATIONERY & GENERAL OFFICE SU,MISCELLANEOUS AND SPECIALTY RETAIL STORES,GPC
WALSALL COUNCIL,http://opendatacommunities.org/id/metropolitan-district-council/walsall ,31/12/2023,CHILDRENS SERVICES,AMAZON.CO.UK*HT4VP55M4,05/10/2023,H59620231007UXNHNTTVE-1,55.92,ST FRANCIS OF ASSISI CATHOLIC -OPERATIONAL MAINTENANCE,OTHER DIRECT MARKETING-OTHER DIRECT MARKETERS,GPC
WALSALL COUNCIL,http://opendatacommunities.org/id/metropolitan-district-council/walsall ,31/12/2023,RESOURCES AND TRANSFORMATION,JOHAL DAIRIES LTD,05/10/2023,H59620231007VTNLMNAWC-1,79.62,CATERING - SCHOOLS-FOOD & DRINK SUPPLIES,OTHER NONDURABLE GOODS,GPC
WALSALL COUNCIL,http://opendatacommunities.org/id/metropolitan-district-council/walsall ,31/12/2023,RESOURCES AND TRANSFORMATION,JOHAL DAIRIES LTD,05/10/2023,H59620231007WLHCERMBY-1,22.08,CATERING - SCHOOLS-FOOD & DRINK SUPPLIES,OTHER NONDURABLE GOODS,GPC
WALSALL COUNCIL,http://opendatacommunities.org/id/metropolitan-district-council/walsall ,31/12/2023,ECONOMY & ENVIRONMENT,SQ *REED.CO.UK,05/10/2023,H59620231007WNOCSYPKD-1,12.00,WALSALL WORKS-EXTERNAL TRAINING,OTHER SCHOOLS AND EDUCATIONAL SERVICES,GPC
WALSALL COUNCIL,http://opendatacommunities.org/id/metropolitan-district-council/walsall ,31/12/2023,ECONOMY & ENVIRONMENT,ASDA STORES,05/10/2023,H59620231007WPFXMZLGB-1,5.25,STREETLY LIBRARY-PURCHASE OF FURNITURE & EQUIPM,GROCERY STORES AND SUPERMARKETS,GPC
WALSALL COUNCIL,http://opendatacommunities.org/id/metropolitan-district-council/walsall ,31/12/2023,RESOURCES AND TRANSFORMATION,JOHAL DAIRIES LTD,05/10/2023,H59620231007WQSMJQLQB-1,10.72,CATERING - SCHOOLS-FOOD & DRINK SUPPLIES,OTHER NONDURABLE GOODS,GPC
WALSALL COUNCIL,http://opendatacommunities.org/id/metropolitan-district-council/walsall ,31/12/2023,RESOURCES AND TRANSFORMATION,JOHAL DAIRIES LTD,05/10/2023,H59620231007WTCXVLKXV-1,23.76,CATERING - SCHOOLS-FOOD & DRINK SUPPLIES,OTHER NONDURABLE GOODS,GPC
WALSALL COUNCIL,http://opendatacommunities.org/id/metropolitan-district-council/walsall ,31/12/2023,ECONOMY & ENVIRONMENT,AMZNMKTPLACE,05/10/2023,H59620231007WUDDRZECH-1,3.91,BLOXWICH LIBRARY-PURCHASE OF FURNITURE & EQUIPM,MISCELLANEOUS AND SPECIALTY RETAIL STORES,GPC
WALSALL COUNCIL,http://opendatacommunities.org/id/metropolitan-district-council/walsall ,31/12/2023,ECONOMY & ENVIRONMENT,AMZNMKTPLACE,05/10/2023,H59620231007WUDDRZECH-2,2.49,BLOXWICH LIBRARY-PURCHASE OF FURNITURE & EQUIPM,MISCELLANEOUS AND SPECIALTY RETAIL STORES,GPC
WALSALL COUNCIL,http://opendatacommunities.org/id/metropolitan-district-council/walsall ,31/12/2023,ECONOMY & ENVIRONMENT,AMZNMKTPLACE,05/10/2023,H59620231007WVLFYEZLJ-1,12.78,TECHNICAL/ART HANDLING-PURCHASE OF FURNITURE & EQUIPM,MISCELLANEOUS AND SPECIALTY RETAIL STORES,GPC
WALSALL COUNCIL,http://opendatacommunities.org/id/metropolitan-district-council/walsall ,31/12/2023,RESOURCES AND TRANSFORMATION,JOHAL DAIRIES LTD,05/10/2023,H59620231007XVTNUNHFG-1,20.10,CATERING - SCHOOLS-FOOD & DRINK SUPPLIES,OTHER NONDURABLE GOODS,GPC
WALSALL COUNCIL,http://opendatacommunities.org/id/metropolitan-district-council/walsall ,31/12/2023,CHILDRENS SERVICES,WM MORRISONS STORE PICK,05/10/2023,H59620231007XXMEEVSVA-1,26.16,BLUEBELLS-FOOD & DRINK SUPPLIES,GROCERY STORES AND SUPERMARKETS,GPC
WALSALL COUNCIL,http://opendatacommunities.org/id/metropolitan-district-council/walsall ,31/12/2023,CHILDRENS SERVICES,WM MORRISONS STORE PICK,05/10/2023,H59620231007XXMEEVSVA-2,97.81,BLUEBELLS-FOOD & DRINK SUPPLIES,GROCERY STORES AND SUPERMARKETS,GPC
WALSALL COUNCIL,http://opendatacommunities.org/id/metropolitan-district-council/walsall ,31/12/2023,RESOURCES AND TRANSFORMATION,NOBISCO LIMITED,05/10/2023,H59620231007XXPWHTWGB-1,220.64,CATERING - SCHOOLS-FOOD & DRINK SUPPLIES,OTHER INDUSTRIAL SUPPLIES,GPC
WALSALL COUNCIL,http://opendatacommunities.org/id/metropolitan-district-council/walsall ,31/12/2023,CHILDRENS SERVICES,AMZNMKTPLACE,05/10/2023,H59620231007XYVEFIULP-1,17.98,ICT LEARNING RESOURCES-STATIONERY & GENERAL OFFICE SU,MISCELLANEOUS AND SPECIALTY RETAIL STORES,GPC
WALSALL COUNCIL,http://opendatacommunities.org/id/metropolitan-district-council/walsall ,31/12/2023,CHILDRENS SERVICES,WF *UK3963133234,05/10/2023,H59620231007YASPFRTDX-1,41.97,CARE LEAVER ENTITLEMENTS-SETTING UP HOME GRANT,"EQUIPMENT, FURNITURE, AND HOME FURNISHINGS STORES ",GPC
WALSALL COUNCIL,http://opendatacommunities.org/id/metropolitan-district-council/walsall ,31/12/2023,RESOURCES AND TRANSFORMATION,JOHAL DAIRIES LTD,05/10/2023,H59620231007YGZPOTQBI-1,80.50,CATERING - SCHOOLS-FOOD & DRINK SUPPLIES,OTHER NONDURABLE GOODS,GPC
WALSALL COUNCIL,http://opendatacommunities.org/id/metropolitan-district-council/walsall ,31/12/2023,CHILDRENS SERVICES,WWW.PAY.UKCRS.COM,05/10/2023,H59620231007YRCLILBBU-1,150.00,BED & BREAKFAST PAYMENTS-PROFESSIONAL FEES & SERVICES,OTHER BUSINESS SERVICES,GPC
WALSALL COUNCIL,http://opendatacommunities.org/id/metropolitan-district-council/walsall ,31/12/2023,RESOURCES AND TRANSFORMATION,JOHAL DAIRIES LTD,05/10/2023,H59620231007YTAQMDVCP-1,13.40,CATERING - SCHOOLS-FOOD & DRINK SUPPLIES,OTHER NONDURABLE GOODS,GPC
WALSALL COUNCIL,http://opendatacommunities.org/id/metropolitan-district-council/walsall ,31/12/2023,CHILDRENS SERVICES,EVERGREEN DIRECT,05/10/2023,H59620231007YUWHECSWS-1,208.75,PALFREY JUNIOR SCHOOL-PLANNED MAINTENANCE,"NURSERIES, LAWN AND GARDEN SUPPLY STORES",GPC
WALSALL COUNCIL,http://opendatacommunities.org/id/metropolitan-district-council/walsall ,31/12/2023,RESOURCES AND TRANSFORMATION,JOHAL DAIRIES LTD,05/10/2023,H59620231007YUXYRLHEK-1,33.50,CATERING - SCHOOLS-FOOD & DRINK SUPPLIES,OTHER NONDURABLE GOODS,GPC
WALSALL COUNCIL,http://opendatacommunities.org/id/metropolitan-district-council/walsall ,31/12/2023,CHILDRENS SERVICES,AMZNMKTPLACE,05/10/2023,H59620231007YZQKVEWVJ-1,9.98,BUTTS PRIMARY SCHOOL-OPERATIONAL MAINTENANCE,MISCELLANEOUS AND SPECIALTY RETAIL STORES,GPC
WALSALL COUNCIL,http://opendatacommunities.org/id/metropolitan-district-council/walsall ,31/12/2023,RESOURCES AND TRANSFORMATION,JOHAL DAIRIES LTD,05/10/2023,H59620231007ZHHYTRTMG-1,38.28,CATERING - SCHOOLS-FOOD & DRINK SUPPLIES,OTHER NONDURABLE GOODS,GPC
WALSALL COUNCIL,http://opendatacommunities.org/id/metropolitan-district-council/walsall ,31/12/2023,RESOURCES AND TRANSFORMATION,JOHAL DAIRIES LTD,05/10/2023,H59620231007ZIWMHVHQV-1,22.78,CATERING - SCHOOLS-FOOD & DRINK SUPPLIES,OTHER NONDURABLE GOODS,GPC
WALSALL COUNCIL,http://opendatacommunities.org/id/metropolitan-district-council/walsall ,31/12/2023,CHILDRENS SERVICES,PAYPAL *ARGOSDIRECT,05/10/2023,H59620231010HUEISDADX-1,402.95,SUPPORT UNDER SECT 23 OF THE C-SUPPORT UNDER SECTION 23 OF TH,VARIETY STORES,GPC
WALSALL COUNCIL,http://opendatacommunities.org/id/metropolitan-district-council/walsall ,31/12/2023,CHILDRENS SERVICES,PAYPAL *ARGOSDIRECT,05/10/2023,H59620231010IUBOXDOYP-1,165.00,SUPPORT UNDER SECT 23 OF THE C-SUPPORT UNDER SECTION 23 OF TH,VARIETY STORES,GPC
WALSALL COUNCIL,http://opendatacommunities.org/id/metropolitan-district-council/walsall ,31/12/2023,RESOURCES AND TRANSFORMATION,ARTHUR BRETT CATER,05/10/2023,H59620231011ROKUBLPFS-1,-1.68,CATERING - SCHOOLS-FOOD & DRINK SUPPLIES,MISCELLANEOUS FOOD STORES & CONVENIENCE STORES,GPC
WALSALL COUNCIL,http://opendatacommunities.org/id/metropolitan-district-council/walsall ,31/12/2023,RESOURCES AND TRANSFORMATION,WWW.SCC.COM,05/10/2023,H59620231021FURTGOGJH-1,4156.26,RECHARGEABLE EQUIPMENT-COMPUTER EQUIPMENT,"COMPUTERS, COMPUTER PERIPHERAL EQUIPMENT, SOFTWARE",GPC
WALSALL COUNCIL,http://opendatacommunities.org/id/metropolitan-district-council/walsall ,31/12/2023,CHILDRENS SERVICES,AMZNMKTPLACE,06/10/2023,H59620231007UNUHRTYIB-1,19.99,SHORT HEATH FEDERATION-STATIONERY & GENERAL OFFICE SU,MISCELLANEOUS AND SPECIALTY RETAIL STORES,GPC
WALSALL COUNCIL,http://opendatacommunities.org/id/metropolitan-district-council/walsall ,31/12/2023,CHILDRENS SERVICES,AMZNMKTPLACE,06/10/2023,H59620231007UNUHRTYIB-2,28.99,SHORT HEATH FEDERATION-STATIONERY & GENERAL OFFICE SU,MISCELLANEOUS AND SPECIALTY RETAIL STORES,GPC
WALSALL COUNCIL,http://opendatacommunities.org/id/metropolitan-district-council/walsall ,31/12/2023,CHILDRENS SERVICES,AMZNMKTPLACE,06/10/2023,H59620231007UNUHRTYIB-3,17.59,SHORT HEATH FEDERATION-STATIONERY & GENERAL OFFICE SU,MISCELLANEOUS AND SPECIALTY RETAIL STORES,GPC
WALSALL COUNCIL,http://opendatacommunities.org/id/metropolitan-district-council/walsall ,31/12/2023,CHILDRENS SERVICES,AMZNMKTPLACE,06/10/2023,H59620231007UNUHRTYIB-4,80.99,SHORT HEATH FEDERATION-STATIONERY & GENERAL OFFICE SU,MISCELLANEOUS AND SPECIALTY RETAIL STORES,GPC
WALSALL COUNCIL,http://opendatacommunities.org/id/metropolitan-district-council/walsall ,31/12/2023,CHILDRENS SERVICES,AMZNMKTPLACE,06/10/2023,H59620231007UNUHRTYIB-5,23.96,SHORT HEATH FEDERATION-STATIONERY & GENERAL OFFICE SU,MISCELLANEOUS AND SPECIALTY RETAIL STORES,GPC
WALSALL COUNCIL,http://opendatacommunities.org/id/metropolitan-district-council/walsall ,31/12/2023,CHILDRENS SERVICES,AMZNMKTPLACE,06/10/2023,H59620231007UNUHRTYIB-6,29.95,SHORT HEATH FEDERATION-STATIONERY & GENERAL OFFICE SU,MISCELLANEOUS AND SPECIALTY RETAIL STORES,GPC
WALSALL COUNCIL,http://opendatacommunities.org/id/metropolitan-district-council/walsall ,31/12/2023,CHILDRENS SERVICES,AMZNMKTPLACE,06/10/2023,H59620231007UNUHRTYIB-7,20.99,SHORT HEATH FEDERATION-STATIONERY & GENERAL OFFICE SU,MISCELLANEOUS AND SPECIALTY RETAIL STORES,GPC
WALSALL COUNCIL,http://opendatacommunities.org/id/metropolitan-district-council/walsall ,31/12/2023,CHILDRENS SERVICES,ASDA STORES,06/10/2023,H59620231010ADKUQHODI-1,9.65,CORPORATE PARENTING-FOOD & DRINK SUPPLIES,GROCERY STORES AND SUPERMARKETS,GPC
WALSALL COUNCIL,http://opendatacommunities.org/id/metropolitan-district-council/walsall ,31/12/2023,CHILDRENS SERVICES,ASDA STORES,06/10/2023,H59620231010ADKUQHODI-2,2.40,CORPORATE PARENTING-FOOD & DRINK SUPPLIES,GROCERY STORES AND SUPERMARKETS,GPC
WALSALL COUNCIL,http://opendatacommunities.org/id/metropolitan-district-council/walsall ,31/12/2023,ECONOMY & ENVIRONMENT,FACEBK *FSGQGSPW82,06/10/2023,H59620231010AOUBGHWLH-1,7.16,WALSALL WORKS-PUBLICITY & ADVERTISING (NON S,ADVERTISING SERVICES,GPC
WALSALL COUNCIL,http://opendatacommunities.org/id/metropolitan-district-council/walsall ,31/12/2023,CHILDRENS SERVICES,WWW.ICO.ORG.UK,06/10/2023,H59620231010BRVGCWERV-1,60.00,ADMINISTRATIVE SUPPLIES-SUBSCRIPTIONS,GOVERNMENT SERVICES,GPC
WALSALL COUNCIL,http://opendatacommunities.org/id/metropolitan-district-council/walsall ,31/12/2023,CHILDRENS SERVICES,VOCAL STAR LIMITED,06/10/2023,H59620231010BTFSXWQBG-1,879.98,EDGE OF CARE TEAM-PURCHASE OF FURNITURE & EQUIPM,ELECTRONIC SALES,GPC
WALSALL COUNCIL,http://opendatacommunities.org/id/metropolitan-district-council/walsall ,31/12/2023,CHILDRENS SERVICES,WWW.ICO.ORG.UK,06/10/2023,H59620231010CHHUDHMLE-1,40.00,MEADOW VIEW JMI PRIMARY SCHOOL-FAIR FUNDING CORPORATE ELEMENT,GOVERNMENT SERVICES,GPC
WALSALL COUNCIL,http://opendatacommunities.org/id/metropolitan-district-council/walsall ,31/12/2023,ECONOMY & ENVIRONMENT,AMZNMKTPLACE,06/10/2023,H59620231010CUIDMCOSC-1,73.91,COMMUNITY LIAISON-MATERIALS,MISCELLANEOUS AND SPECIALTY RETAIL STORES,GPC
WALSALL COUNCIL,http://opendatacommunities.org/id/metropolitan-district-council/walsall ,31/12/2023,RESOURCES AND TRANSFORMATION,SPECIALIST COMPUTER CE,06/10/2023,H59620231010DLUHRDCLC-1,37050.00,RECHARGEABLE EQUIPMENT-COMPUTER EQUIPMENT,OTHER BUSINESS SERVICES,GPC
WALSALL COUNCIL,http://opendatacommunities.org/id/metropolitan-district-council/walsall ,31/12/2023,CHILDRENS SERVICES,EB *GROWING BELONGING,06/10/2023,H59620231010DUFWHUQKF-1,193.22,GENERAL SUPPLIES SH-MATERIALS,OTHER BUSINESS SERVICES,GPC
WALSALL COUNCIL,http://opendatacommunities.org/id/metropolitan-district-council/walsall ,31/12/2023,CHILDRENS SERVICES,AMAZON* ES549004,06/10/2023,H59620231010DVJDBOING-1,7.85,COMMUNICATION-LIBRARY BOOKS,MISCELLANEOUS GENERAL MERCHANDISE,GPC
WALSALL COUNCIL,http://opendatacommunities.org/id/metropolitan-district-council/walsall ,31/12/2023,CHILDRENS SERVICES,AMZNMKTPLACE,06/10/2023,H59620231010FTXBYDYMZ-1,-26.30,ST FRANCIS OF ASSISI CATHOLIC -OPERATIONAL MAINTENANCE,MISCELLANEOUS AND SPECIALTY RETAIL STORES,GPC
WALSALL COUNCIL,http://opendatacommunities.org/id/metropolitan-district-council/walsall ,31/12/2023,RESOURCES AND TRANSFORMATION,SPECIALIST COMPUTER CE,06/10/2023,H59620231010GCKLIHBMJ-1,680.36,RECHARGEABLE EQUIPMENT-COMPUTER EQUIPMENT,OTHER BUSINESS SERVICES,GPC
WALSALL COUNCIL,http://opendatacommunities.org/id/metropolitan-district-council/walsall ,31/12/2023,RESOURCES AND TRANSFORMATION,SPECIALIST COMPUTER CE,06/10/2023,H59620231010GJFKTVEFQ-1,2335.62,RECHARGEABLE EQUIPMENT-COMPUTER EQUIPMENT,OTHER BUSINESS SERVICES,GPC
WALSALL COUNCIL,http://opendatacommunities.org/id/metropolitan-district-council/walsall ,31/12/2023,CHILDRENS SERVICES,AMZNMKTPLACE,06/10/2023,H59620231010GZZWDOQLF-1,44.99,ADMINISTRATIVE SUPPLIES-MATERIALS,MISCELLANEOUS AND SPECIALTY RETAIL STORES,GPC
WALSALL COUNCIL,http://opendatacommunities.org/id/metropolitan-district-council/walsall ,31/12/2023,CHILDRENS SERVICES,WALSALL COUNCIL,06/10/2023,H59620231010HBWRHKCCH-1,-30.00,FAMILY SAFEGUARDING CENTRAL AN-SECTION 1/17CHILD CARE ACT 198,GOVERNMENT SERVICES,GPC
WALSALL COUNCIL,http://opendatacommunities.org/id/metropolitan-district-council/walsall ,31/12/2023,CHILDRENS SERVICES,MS CAR PARK-CREDITCALL,06/10/2023,H59620231010HICLQXQMX-1,3.00,REVENUES-FEES & LICENCES,GOVERNMENT SERVICES,GPC
WALSALL COUNCIL,http://opendatacommunities.org/id/metropolitan-district-council/walsall ,31/12/2023,CHILDRENS SERVICES,AMZNMKTPLACE,06/10/2023,H59620231010HNGRUHNOM-1,21.02,EDGE OF CARE TEAM-STATIONERY & GENERAL OFFICE SU,MISCELLANEOUS AND SPECIALTY RETAIL STORES,GPC
WALSALL COUNCIL,http://opendatacommunities.org/id/metropolitan-district-council/walsall ,31/12/2023,ECONOMY & ENVIRONMENT,ZEELO LTD,06/10/2023,H59620231010HOWLOKDPS-1,7.00,WALSALL WORKS-TRAVELCARD SCHEME,DIGITAL GOODS - APPLICATIONS (EXCLUDES GAMES),GPC
WALSALL COUNCIL,http://opendatacommunities.org/id/metropolitan-district-council/walsall ,31/12/2023,RESOURCES AND TRANSFORMATION,SPECIALIST COMPUTER CE,06/10/2023,H59620231010HVMBLLXGC-1,115.76,RECHARGEABLE EQUIPMENT-COMPUTER EQUIPMENT,OTHER BUSINESS SERVICES,GPC
WALSALL COUNCIL,http://opendatacommunities.org/id/metropolitan-district-council/walsall ,31/12/2023,RESOURCES AND TRANSFORMATION,SPECIALIST COMPUTER CE,06/10/2023,H59620231010IBJCXHKCB-1,711.18,RECHARGEABLE EQUIPMENT-COMPUTER EQUIPMENT,OTHER BUSINESS SERVICES,GPC
WALSALL COUNCIL,http://opendatacommunities.org/id/metropolitan-district-council/walsall ,31/12/2023,ECONOMY & ENVIRONMENT,ONE STOP 6322,06/10/2023,H59620231010IDASGNPWA-1,31.20,DARLASTON LIBRARY-NEWSPAPERS/PERIODICALS/MAGAZIN,GROCERY STORES AND SUPERMARKETS,GPC
WALSALL COUNCIL,http://opendatacommunities.org/id/metropolitan-district-council/walsall ,31/12/2023,ECONOMY & ENVIRONMENT,ACORN GROUP LTD,06/10/2023,H59620231010IHNNXLYVT-1,81.91,FLEET-MATERIALS,"AUTOMOBILE SALES, SERVICE, REPAIRS",GPC
WALSALL COUNCIL,http://opendatacommunities.org/id/metropolitan-district-council/walsall ,31/12/2023,RESOURCES AND TRANSFORMATION,AMZNMKTPLACE,06/10/2023,H59620231010ISRFJNDQD-1,4.32,RECHARGEABLE EQUIPMENT-STATIONERY & GENERAL OFFICE SU,MISCELLANEOUS AND SPECIALTY RETAIL STORES,GPC
WALSALL COUNCIL,http://opendatacommunities.org/id/metropolitan-district-council/walsall ,31/12/2023,CHILDRENS SERVICES,AMZNMKTPLACE,06/10/2023,H59620231010IXMJHSTUQ-1,35.58,ADMINISTRATIVE SUPPLIES-PURCHASE OF FURNITURE & EQUIPM,MISCELLANEOUS AND SPECIALTY RETAIL STORES,GPC
WALSALL COUNCIL,http://opendatacommunities.org/id/metropolitan-district-council/walsall ,31/12/2023,RESOURCES AND TRANSFORMATION,AMZNMKTPLACE,06/10/2023,H59620231010JAXMJMKOJ-1,21.61,RECHARGEABLE EQUIPMENT-COMPUTER EQUIPMENT,MISCELLANEOUS AND SPECIALTY RETAIL STORES,GPC
WALSALL COUNCIL,http://opendatacommunities.org/id/metropolitan-district-council/walsall ,31/12/2023,CHILDRENS SERVICES,ASDA GROCERIES ONLINE,06/10/2023,H59620231010JDWFSXPSC-1,57.00,HEAD FUND + ALTERNATIVE PROVIS-MATERIALS,GROCERY STORES AND SUPERMARKETS,GPC
WALSALL COUNCIL,http://opendatacommunities.org/id/metropolitan-district-council/walsall ,31/12/2023,CHILDRENS SERVICES,WALSALL COUNCIL,06/10/2023,H59620231010JOYQEWBVN-1,40.22,ST JOHNS C.E. PRIMARY SCHOOL-POLICE CHECKS,GOVERNMENT SERVICES,GPC
WALSALL COUNCIL,http://opendatacommunities.org/id/metropolitan-district-council/walsall ,31/12/2023,CHILDRENS SERVICES,FOXHILLS FISHERY,06/10/2023,H59620231010JYIWEWSUS-1,18.00,ENRICHMENT-MATERIALS,OTHER RECREATION SERVICES,GPC
WALSALL COUNCIL,http://opendatacommunities.org/id/metropolitan-district-council/walsall ,31/12/2023,CHILDRENS SERVICES,WALSALL COUNCIL,06/10/2023,H59620231010KCQNPMCEE-1,-78.00,FAMILY SAFEGUARDING WEST LOCAL-FEES & LICENCES,GOVERNMENT SERVICES,GPC
WALSALL COUNCIL,http://opendatacommunities.org/id/metropolitan-district-council/walsall ,31/12/2023,CHILDRENS SERVICES,ICEPACKS4LESS,06/10/2023,H59620231010KOBREXSWX-1,78.00,ADMIN-MATERIALS,DENTAL/LABORATORY/MEDICAL EQUIPMENT & SUPPLIES,GPC
WALSALL COUNCIL,http://opendatacommunities.org/id/metropolitan-district-council/walsall ,31/12/2023,CHILDRENS SERVICES,CURRYS ONLINE,06/10/2023,H59620231010KVJTJGPSG-1,-30.00,SUPPORT UNDER SECT 23 OF THE C-SUPPORT UNDER SECTION 23 OF TH,ELECTRONIC SALES,GPC
WALSALL COUNCIL,http://opendatacommunities.org/id/metropolitan-district-council/walsall ,31/12/2023,RESOURCES AND TRANSFORMATION,ARTHUR BRETT CATER,06/10/2023,H59620231010LSISOKONX-1,37.58,CATERING - SCHOOLS-FOOD & DRINK SUPPLIES,MISCELLANEOUS FOOD STORES & CONVENIENCE STORES,GPC
WALSALL COUNCIL,http://opendatacommunities.org/id/metropolitan-district-council/walsall ,31/12/2023,CHILDRENS SERVICES,WWW.ARGOS.CO.UK,06/10/2023,H59620231010LSOYHEROW-1,43.94,SUPPORT UNDER SECT 23 OF THE C-SUPPORT UNDER SECTION 23 OF TH,DEPARTMENT STORES,GPC
WALSALL COUNCIL,http://opendatacommunities.org/id/metropolitan-district-council/walsall ,31/12/2023,RESOURCES AND TRANSFORMATION,ARTHUR BRETT CATER,06/10/2023,H59620231010MJKAPCEKU-1,19.83,CATERING - SCHOOLS-FOOD & DRINK SUPPLIES,MISCELLANEOUS FOOD STORES & CONVENIENCE STORES,GPC
WALSALL COUNCIL,http://opendatacommunities.org/id/metropolitan-district-council/walsall ,31/12/2023,RESOURCES AND TRANSFORMATION,SPECIALIST COMPUTER CE,06/10/2023,H59620231010MJQGDYLTE-1,229.20,RECHARGEABLE EQUIPMENT-COMPUTER EQUIPMENT,OTHER BUSINESS SERVICES,GPC
WALSALL COUNCIL,http://opendatacommunities.org/id/metropolitan-district-council/walsall ,31/12/2023,CHILDRENS SERVICES,LEBARA MOBILE LIMITED,06/10/2023,H59620231010MWVNTWCOB-1,6.90,ADMINISTRATIVE SUPPLIES-STATIONERY & GENERAL OFFICE SU,TELECOMMUNICATION SERVICES,GPC
WALSALL COUNCIL,http://opendatacommunities.org/id/metropolitan-district-council/walsall ,31/12/2023,RESOURCES AND TRANSFORMATION CAPITAL,SPECIALIST COMPUTER CE,06/10/2023,H59620231010NGQNELIQT-1,84.00,CFR 1307 REMOVE WYSE & UPGRADE-PURCHASE OF FURNITURE & EQUIPM,OTHER BUSINESS SERVICES,GPC
WALSALL COUNCIL,http://opendatacommunities.org/id/metropolitan-district-council/walsall ,31/12/2023,CHILDRENS SERVICES,AMZNMKTPLACE,06/10/2023,H59620231010NIJTCOMBO-1,32.24,SPECIAL NEEDS-MATERIALS,MISCELLANEOUS AND SPECIALTY RETAIL STORES,GPC
WALSALL COUNCIL,http://opendatacommunities.org/id/metropolitan-district-council/walsall ,31/12/2023,CHILDRENS SERVICES,AMAZON* ES549005,06/10/2023,H59620231010NJTLQDMJB-1,30.92,COMMUNICATION-LIBRARY BOOKS,MISCELLANEOUS GENERAL MERCHANDISE,GPC
WALSALL COUNCIL,http://opendatacommunities.org/id/metropolitan-district-council/walsall ,31/12/2023,CHILDRENS SERVICES,AMAZON.CO.UK*HT4BA1594,06/10/2023,H59620231010OGPJMRHFH-1,8.94,"43A HILTON ROAD, WILLENHALL-STATIONERY & GENERAL OFFICE SU",OTHER DIRECT MARKETING-OTHER DIRECT MARKETERS,GPC
WALSALL COUNCIL,http://opendatacommunities.org/id/metropolitan-district-council/walsall ,31/12/2023,RESOURCES AND TRANSFORMATION,ASDA STORES,06/10/2023,H59620231010OHXWHYPWC-1,6.00,CATERING - SCHOOLS-FOOD & DRINK SUPPLIES,GROCERY STORES AND SUPERMARKETS,GPC
WALSALL COUNCIL,http://opendatacommunities.org/id/metropolitan-district-council/walsall ,31/12/2023,RESOURCES AND TRANSFORMATION,ASDA STORES,06/10/2023,H59620231010OHXWHYPWC-2,6.85,CATERING - SCHOOLS-FOOD & DRINK SUPPLIES,GROCERY STORES AND SUPERMARKETS,GPC
WALSALL COUNCIL,http://opendatacommunities.org/id/metropolitan-district-council/walsall ,31/12/2023,CHILDRENS SERVICES,COSTA COFFEE,06/10/2023,H59620231010OUYSGFFBL-1,7.45,EDGE OF CARE TEAM-OFFICERS SUBSISTENCE EXPENSES,QUICK PAYMENT SERVICE-FAST-FOOD RESTAURANTS,GPC
WALSALL COUNCIL,http://opendatacommunities.org/id/metropolitan-district-council/walsall ,31/12/2023,CHILDRENS SERVICES,ASDA SUPERSTORE,06/10/2023,H59620231010OWENWLFRV-1,7.20,REDRUTH ROAD-FOOD & DRINK SUPPLIES,GROCERY STORES AND SUPERMARKETS,GPC
WALSALL COUNCIL,http://opendatacommunities.org/id/metropolitan-district-council/walsall ,31/12/2023,CHILDRENS SERVICES,ASDA SUPERSTORE,06/10/2023,H59620231010OWENWLFRV-2,85.71,REDRUTH ROAD-FOOD & DRINK SUPPLIES,GROCERY STORES AND SUPERMARKETS,GPC
WALSALL COUNCIL,http://opendatacommunities.org/id/metropolitan-district-council/walsall ,31/12/2023,RESOURCES AND TRANSFORMATION CAPITAL,SPECIALIST COMPUTER CE,06/10/2023,H59620231010OZLEKFPLP-1,1671.95,CFR 1307 REMOVE WYSE & UPGRADE-PURCHASE OF FURNITURE & EQUIPM,OTHER BUSINESS SERVICES,GPC
WALSALL COUNCIL,http://opendatacommunities.org/id/metropolitan-district-council/walsall ,31/12/2023,RESOURCES AND TRANSFORMATION,ARTHUR BRETT CATER,06/10/2023,H59620231010PBIGQWITZ-1,27.25,CATERING - SCHOOLS-FOOD & DRINK SUPPLIES,MISCELLANEOUS FOOD STORES & CONVENIENCE STORES,GPC
WALSALL COUNCIL,http://opendatacommunities.org/id/metropolitan-district-council/walsall ,31/12/2023,CHILDRENS SERVICES,SHREWSBURY PRISON,06/10/2023,H59620231010PHXIYLCWQ-1,202.00,E19-MATERIALS,TOURIST ATTRACTIONS AND EXHIBITS,GPC
WALSALL COUNCIL,http://opendatacommunities.org/id/metropolitan-district-council/walsall ,31/12/2023,RESOURCES AND TRANSFORMATION,B&M 541 - ALDIDGE,06/10/2023,H59620231010PQSFMJTMW-1,7.96,CATERING - SCHOOLS-FOOD & DRINK SUPPLIES,MISCELLANEOUS GENERAL MERCHANDISE,GPC
WALSALL COUNCIL,http://opendatacommunities.org/id/metropolitan-district-council/walsall ,31/12/2023,CHILDRENS SERVICES,AMAZON* ES549004,06/10/2023,H59620231010PVAUKSMOM-1,5.10,COMMUNICATION-LIBRARY BOOKS,MISCELLANEOUS GENERAL MERCHANDISE,GPC
WALSALL COUNCIL,http://opendatacommunities.org/id/metropolitan-district-council/walsall ,31/12/2023,CHILDRENS SERVICES,AMAZON* ES549004,06/10/2023,H59620231010PVAUKSMOM-2,35.35,COMMUNICATION-LIBRARY BOOKS,MISCELLANEOUS GENERAL MERCHANDISE,GPC
WALSALL COUNCIL,http://opendatacommunities.org/id/metropolitan-district-council/walsall ,31/12/2023,ECONOMY & ENVIRONMENT,FINDEL EDUCATION,06/10/2023,H59620231010PWNTIKFOV-1,97.16,NAG - EDUCATION FORMAL-MATERIALS,OTHER DIRECT MARKETING-OTHER DIRECT MARKETERS,GPC
WALSALL COUNCIL,http://opendatacommunities.org/id/metropolitan-district-council/walsall ,31/12/2023,CHILDRENS SERVICES,AMZNMKTPLACE,06/10/2023,H59620231010RGFZGJFLF-1,7.98,PINE VIEW-STATIONERY & GENERAL OFFICE SU,MISCELLANEOUS AND SPECIALTY RETAIL STORES,GPC
WALSALL COUNCIL,http://opendatacommunities.org/id/metropolitan-district-council/walsall ,31/12/2023,CHILDRENS SERVICES,WM MORRISONS STORE PICK,06/10/2023,H59620231010RKYITNUGC-1,-4.05,SHORT HEATH FEDERATION-FOOD & DRINK SUPPLIES,GROCERY STORES AND SUPERMARKETS,GPC
WALSALL COUNCIL,http://opendatacommunities.org/id/metropolitan-district-council/walsall ,31/12/2023,RESOURCES AND TRANSFORMATION,WWW.SCREWFIX.COM,06/10/2023,H59620231010RTSIBUNFL-1,7.19,CENTRALISED MAINTENANCE-OPERATIONAL MAINTENANCE,LUMBER & BUILDING MATERIALS STORES,GPC
WALSALL COUNCIL,http://opendatacommunities.org/id/metropolitan-district-council/walsall ,31/12/2023,RESOURCES AND TRANSFORMATION,SPECIALIST COMPUTER CE,06/10/2023,H59620231010RWZDFJXJW-1,144.84,RECHARGEABLE EQUIPMENT-COMPUTER EQUIPMENT,OTHER BUSINESS SERVICES,GPC
WALSALL COUNCIL,http://opendatacommunities.org/id/metropolitan-district-council/walsall ,31/12/2023,RESOURCES AND TRANSFORMATION,ARTHUR BRETT CATER,06/10/2023,H59620231010TFCUFBXXX-1,280.14,CATERING - SCHOOLS-FOOD & DRINK SUPPLIES,MISCELLANEOUS FOOD STORES & CONVENIENCE STORES,GPC
WALSALL COUNCIL,http://opendatacommunities.org/id/metropolitan-district-council/walsall ,31/12/2023,CHILDRENS SERVICES,WWW.ARGOS.CO.UK,06/10/2023,H59620231010TMXHKQOGZ-1,43.94,SUPPORT UNDER SECT 23 OF THE C-SUPPORT UNDER SECTION 23 OF TH,DEPARTMENT STORES,GPC
WALSALL COUNCIL,http://opendatacommunities.org/id/metropolitan-district-council/walsall ,31/12/2023,CHILDRENS SERVICES,SHREWSBURY PRISON,06/10/2023,H59620231010TUVDMBICG-1,202.00,E19-MATERIALS,TOURIST ATTRACTIONS AND EXHIBITS,GPC
WALSALL COUNCIL,http://opendatacommunities.org/id/metropolitan-district-council/walsall ,31/12/2023,CHILDRENS SERVICES,WALSALL COUNCIL,06/10/2023,H59620231010URGNCLNKY-1,-6.00,FAMILY SAFEGUARDING NORTH LOCA-FEES & LICENCES,GOVERNMENT SERVICES,GPC
WALSALL COUNCIL,http://opendatacommunities.org/id/metropolitan-district-council/walsall ,31/12/2023,ECONOMY & ENVIRONMENT,AMZNMKTPLACE,06/10/2023,H59620231010VLHJXPPRX-1,36.20,OAK PARK ACTIVE LIVING CENTRE-STATIONERY & GENERAL OFFICE SU,MISCELLANEOUS AND SPECIALTY RETAIL STORES,GPC
WALSALL COUNCIL,http://opendatacommunities.org/id/metropolitan-district-council/walsall ,31/12/2023,RESOURCES AND TRANSFORMATION,SPECIALIST COMPUTER CE,06/10/2023,H59620231010VXKVYTCRH-1,5673.78,ASSET MANAGEMENT-COMPUTER EQUIPMENT,OTHER BUSINESS SERVICES,GPC
WALSALL COUNCIL,http://opendatacommunities.org/id/metropolitan-district-council/walsall ,31/12/2023,RESOURCES AND TRANSFORMATION CAPITAL,SPECIALIST COMPUTER CE,06/10/2023,H59620231010WHRAPCEXO-1,5616.00,CFR 1361 CLOUD NAVIGATOR-SOFTWARE,OTHER BUSINESS SERVICES,GPC
WALSALL COUNCIL,http://opendatacommunities.org/id/metropolitan-district-council/walsall ,31/12/2023,RESOURCES AND TRANSFORMATION,ARTHUR BRETT CATER,06/10/2023,H59620231010WPAHDLTST-1,131.81,CATERING - SCHOOLS-FOOD & DRINK SUPPLIES,MISCELLANEOUS FOOD STORES & CONVENIENCE STORES,GPC
WALSALL COUNCIL,http://opendatacommunities.org/id/metropolitan-district-council/walsall ,31/12/2023,RESOURCES AND TRANSFORMATION,SPECIALIST COMPUTER CE,06/10/2023,H59620231010XEHXTSPPL-1,21390.55,RECHARGEABLE EQUIPMENT-COMPUTER EQUIPMENT,OTHER BUSINESS SERVICES,GPC
WALSALL COUNCIL,http://opendatacommunities.org/id/metropolitan-district-council/walsall ,31/12/2023,CHILDRENS SERVICES,CURRYS ONLINE,06/10/2023,H59620231010XQJSCVHEU-1,294.00,SUPPORT UNDER SECT 23 OF THE C-SUPPORT UNDER SECTION 23 OF TH,ELECTRONIC SALES,GPC
WALSALL COUNCIL,http://opendatacommunities.org/id/metropolitan-district-council/walsall ,31/12/2023,CHILDRENS SERVICES,AMZNMKTPLACE,06/10/2023,H59620231010YSJTUTULJ-1,22.96,RUSHALL PRIMARY SCHOOL-OPERATIONAL MAINTENANCE,MISCELLANEOUS AND SPECIALTY RETAIL STORES,GPC
WALSALL COUNCIL,http://opendatacommunities.org/id/metropolitan-district-council/walsall ,31/12/2023,CHILDRENS SERVICES,MCDONALDS 891,06/10/2023,H59620231010YTNDBNDEY-1,0.50,CARE LEAVER ENTITLEMENTS-CARE LEAVERS MISC EXPENSES,QUICK PAYMENT SERVICE-FAST-FOOD RESTAURANTS,GPC
WALSALL COUNCIL,http://opendatacommunities.org/id/metropolitan-district-council/walsall ,31/12/2023,CHILDRENS SERVICES,MCDONALDS 891,06/10/2023,H59620231010YTNDBNDEY-2,5.69,CARE LEAVER ENTITLEMENTS-SETTING UP HOME GRANT,QUICK PAYMENT SERVICE-FAST-FOOD RESTAURANTS,GPC
WALSALL COUNCIL,http://opendatacommunities.org/id/metropolitan-district-council/walsall ,31/12/2023,CHILDRENS SERVICES,AMZNMKTPLACE,06/10/2023,H59620231010ZCGIBZQDR-1,105.98,ICT LEARNING RESOURCES-MATERIALS,MISCELLANEOUS AND SPECIALTY RETAIL STORES,GPC
WALSALL COUNCIL,http://opendatacommunities.org/id/metropolitan-district-council/walsall ,31/12/2023,RESOURCES AND TRANSFORMATION,WALSALL COUNCIL,06/10/2023,H59620231011KPWWQIGYQ-1,35.00,RECHARGEABLE EQUIPMENT-FEES & LICENCES,GOVERNMENT SERVICES,GPC
WALSALL COUNCIL,http://opendatacommunities.org/id/metropolitan-district-council/walsall ,31/12/2023,RESOURCES AND TRANSFORMATION,WWW.SCC.COM,06/10/2023,H59620231021GYDCGJNGM-1,40.52,RECHARGEABLE EQUIPMENT-COMPUTER EQUIPMENT,"COMPUTERS, COMPUTER PERIPHERAL EQUIPMENT, SOFTWARE",GPC
WALSALL COUNCIL,http://opendatacommunities.org/id/metropolitan-district-council/walsall ,31/12/2023,RESOURCES AND TRANSFORMATION,WWW.SCC.COM,06/10/2023,H59620231024CLGXBUVCJ-1,98.71,RECHARGEABLE EQUIPMENT-COMPUTER EQUIPMENT,"COMPUTERS, COMPUTER PERIPHERAL EQUIPMENT, SOFTWARE",GPC
WALSALL COUNCIL,http://opendatacommunities.org/id/metropolitan-district-council/walsall ,31/12/2023,CHILDRENS SERVICES,AMAZON.CO.UK*HT8WP26H4,07/10/2023,H59620231010CFJVTCJZW-1,40.26,ADMIN-MATERIALS,OTHER DIRECT MARKETING-OTHER DIRECT MARKETERS,GPC
WALSALL COUNCIL,http://opendatacommunities.org/id/metropolitan-district-council/walsall ,31/12/2023,ADULT SOCIAL CARE,ADOBE STOCK,07/10/2023,H59620231010DTKFCDCWK-1,57.59,COMMUNICATIONS-FEES & LICENCES,COMPUTER SOFTWARE STORES,GPC
WALSALL COUNCIL,http://opendatacommunities.org/id/metropolitan-district-council/walsall ,31/12/2023,CHILDRENS SERVICES,AMZNMKTPLACE,07/10/2023,H59620231010DYWZETUMA-1,7.09,COMMUNICATION-LIBRARY BOOKS,MISCELLANEOUS AND SPECIALTY RETAIL STORES,GPC
WALSALL COUNCIL,http://opendatacommunities.org/id/metropolitan-district-council/walsall ,31/12/2023,CHILDRENS SERVICES,AMZNMKTPLACE,07/10/2023,H59620231010FRULVTXDY-1,6.98,COMMUNICATION-LIBRARY BOOKS,MISCELLANEOUS AND SPECIALTY RETAIL STORES,GPC
WALSALL COUNCIL,http://opendatacommunities.org/id/metropolitan-district-council/walsall ,31/12/2023,ECONOMY & ENVIRONMENT,WM MORRISONS STORE,07/10/2023,H59620231010GABKNWUOJ-1,12.00,STREETLY LIBRARY-PURCHASE OF FURNITURE & EQUIPM,GROCERY STORES AND SUPERMARKETS,GPC
WALSALL COUNCIL,http://opendatacommunities.org/id/metropolitan-district-council/walsall ,31/12/2023,CHILDRENS SERVICES,AMAZON.CO.UK*HT5ZO16Y4,07/10/2023,H59620231010GFEHBDYOZ-1,32.16,BASIC STATIONERY-MATERIALS,OTHER DIRECT MARKETING-OTHER DIRECT MARKETERS,GPC
WALSALL COUNCIL,http://opendatacommunities.org/id/metropolitan-district-council/walsall ,31/12/2023,CHILDRENS SERVICES,MCDONALDS 796,07/10/2023,H59620231010GTMNQGJMB-1,1.99,EDGE OF CARE TEAM-FOOD & DRINK SUPPLIES,QUICK PAYMENT SERVICE-FAST-FOOD RESTAURANTS,GPC
WALSALL COUNCIL,http://opendatacommunities.org/id/metropolitan-district-council/walsall ,31/12/2023,CHILDRENS SERVICES,AMZNMKTPLACE,07/10/2023,H59620231010HIISTPWGH-1,23.60,ENGLISH / LIBRARY-LIBRARY BOOKS,MISCELLANEOUS AND SPECIALTY RETAIL STORES,GPC
WALSALL COUNCIL,http://opendatacommunities.org/id/metropolitan-district-council/walsall ,31/12/2023,CHILDRENS SERVICES,AMZNMKTPLACE,07/10/2023,H59620231010HSLVROCLE-1,12.99,SCIENCE-MATERIALS,MISCELLANEOUS AND SPECIALTY RETAIL STORES,GPC
WALSALL COUNCIL,http://opendatacommunities.org/id/metropolitan-district-council/walsall ,31/12/2023,CHILDRENS SERVICES,AMZNMKTPLACE,07/10/2023,H59620231010KGNUAQFNU-1,24.77,ST FRANCIS OF ASSISI CATHOLIC -OPERATIONAL MAINTENANCE,MISCELLANEOUS AND SPECIALTY RETAIL STORES,GPC
WALSALL COUNCIL,http://opendatacommunities.org/id/metropolitan-district-council/walsall ,31/12/2023,CHILDRENS SERVICES,AMAZON* ES549005,07/10/2023,H59620231010PECDWGHEF-1,43.63,COMMUNICATION-LIBRARY BOOKS,MISCELLANEOUS GENERAL MERCHANDISE,GPC
WALSALL COUNCIL,http://opendatacommunities.org/id/metropolitan-district-council/walsall ,31/12/2023,CHILDRENS SERVICES,ASDA GROCERIES ONLINE,07/10/2023,H59620231010SZBIYMSNX-1,-8.85,CARE LEAVER ENTITLEMENTS-SETTING UP HOME GRANT,GROCERY STORES AND SUPERMARKETS,GPC
WALSALL COUNCIL,http://opendatacommunities.org/id/metropolitan-district-council/walsall ,31/12/2023,CHILDRENS SERVICES,AMZNMKTPLACE,07/10/2023,H59620231010UEPJQMOSW-1,6.17,COMMUNICATION-LIBRARY BOOKS,MISCELLANEOUS AND SPECIALTY RETAIL STORES,GPC
WALSALL COUNCIL,http://opendatacommunities.org/id/metropolitan-district-council/walsall ,31/12/2023,CHILDRENS SERVICES,AMAZON* ES549004,07/10/2023,H59620231010USWHBHVWD-1,15.89,COMMUNICATION-LIBRARY BOOKS,MISCELLANEOUS GENERAL MERCHANDISE,GPC
WALSALL COUNCIL,http://opendatacommunities.org/id/metropolitan-district-council/walsall ,31/12/2023,CHILDRENS SERVICES,AMZNMKTPLACE,07/10/2023,H59620231010WJUTSPKLE-1,6.17,COMMUNICATION-LIBRARY BOOKS,MISCELLANEOUS AND SPECIALTY RETAIL STORES,GPC
WALSALL COUNCIL,http://opendatacommunities.org/id/metropolitan-district-council/walsall ,31/12/2023,CHILDRENS SERVICES,AMAZON PRIME*HT4CV2604,07/10/2023,H59620231010WTKBFINHJ-1,114.00,ADMINISTRATIVE SUPPLIES-SUBSCRIPTIONS,DIRECT MARKETING CONTINUITY SUBSCRIPTION MERCHANTS,GPC
WALSALL COUNCIL,http://opendatacommunities.org/id/metropolitan-district-council/walsall ,31/12/2023,CHILDRENS SERVICES,ASDA GROCERIES ONLINE,07/10/2023,H59620231010ZGUBVKTGV-1,43.20,CARE LEAVER ENTITLEMENTS-SETTING UP HOME GRANT,GROCERY STORES AND SUPERMARKETS,GPC
WALSALL COUNCIL,http://opendatacommunities.org/id/metropolitan-district-council/walsall ,31/12/2023,CHILDRENS SERVICES,AMZNMKTPLACE,08/10/2023,H59620231010BIREDRBOZ-1,10.52,EDGE OF CARE TEAM-STATIONERY & GENERAL OFFICE SU,MISCELLANEOUS AND SPECIALTY RETAIL STORES,GPC
WALSALL COUNCIL,http://opendatacommunities.org/id/metropolitan-district-council/walsall ,31/12/2023,CHILDRENS SERVICES,AMAZON.CO.UK*HT9LX6KJ4,08/10/2023,H59620231010CNKPVDMVO-1,19.59,EARLY YEARS DEPARTMENT-MATERIALS,OTHER DIRECT MARKETING-OTHER DIRECT MARKETERS,GPC
WALSALL COUNCIL,http://opendatacommunities.org/id/metropolitan-district-council/walsall ,31/12/2023,CHILDRENS SERVICES,AMZNMKTPLACE,08/10/2023,H59620231010GQZFLSKJK-1,15.76,E19-MATERIALS,MISCELLANEOUS AND SPECIALTY RETAIL STORES,GPC
WALSALL COUNCIL,http://opendatacommunities.org/id/metropolitan-district-council/walsall ,31/12/2023,CHILDRENS SERVICES,AMZNMKTPLACE,08/10/2023,H59620231010IFMFFQEUL-1,14.48,MEADOW VIEW JMI PRIMARY SCHOOL-OPERATIONAL MAINTENANCE,MISCELLANEOUS AND SPECIALTY RETAIL STORES,GPC
WALSALL COUNCIL,http://opendatacommunities.org/id/metropolitan-district-council/walsall ,31/12/2023,CHILDRENS SERVICES,DANIEL FOOTWEAR,08/10/2023,H59620231010JMMERVHYB-1,44.99,PINE VIEW-CLOTHING & LAUNDRY,SHOE STORES,GPC
WALSALL COUNCIL,http://opendatacommunities.org/id/metropolitan-district-council/walsall ,31/12/2023,ECONOMY & ENVIRONMENT,AMZNMKTPLACE,08/10/2023,H59620231010NFTPFUNET-1,47.98,WILLENHALL LIBRARY-STATIONERY & GENERAL OFFICE SU,MISCELLANEOUS AND SPECIALTY RETAIL STORES,GPC
WALSALL COUNCIL,http://opendatacommunities.org/id/metropolitan-district-council/walsall ,31/12/2023,CHILDRENS SERVICES,AMZNMKTPLACE,08/10/2023,H59620231010OOGQHRMNG-1,21.85,ADMINISTRATIVE SUPPLIES-MATERIALS,MISCELLANEOUS AND SPECIALTY RETAIL STORES,GPC
WALSALL COUNCIL,http://opendatacommunities.org/id/metropolitan-district-council/walsall ,31/12/2023,CHILDRENS SERVICES,AMZNMKTPLACE,08/10/2023,H59620231010OOZFMMHDU-1,12.98,NEW INVENTION INFANT SCHOOL-OPERATIONAL MAINTENANCE,MISCELLANEOUS AND SPECIALTY RETAIL STORES,GPC
WALSALL COUNCIL,http://opendatacommunities.org/id/metropolitan-district-council/walsall ,31/12/2023,CHILDRENS SERVICES,AMZNMKTPLACE,08/10/2023,H59620231010PRRIWJDTH-1,36.09,COMMUNICATION-LIBRARY BOOKS,MISCELLANEOUS AND SPECIALTY RETAIL STORES,GPC
WALSALL COUNCIL,http://opendatacommunities.org/id/metropolitan-district-council/walsall ,31/12/2023,CHILDRENS SERVICES,AMZNMKTPLACE,08/10/2023,H59620231010PTMKWIPGJ-1,24.94,SPECIAL NEEDS-MATERIALS,MISCELLANEOUS AND SPECIALTY RETAIL STORES,GPC
WALSALL COUNCIL,http://opendatacommunities.org/id/metropolitan-district-council/walsall ,31/12/2023,ECONOMY & ENVIRONMENT,THE WORKS,08/10/2023,H59620231010QBXFSWMMB-1,5.00,WILLENHALL LIBRARY-STATIONERY & GENERAL OFFICE SU,DISCOUNT STORES,GPC
WALSALL COUNCIL,http://opendatacommunities.org/id/metropolitan-district-council/walsall ,31/12/2023,CHILDRENS SERVICES,OOTA/SYARD* OUT OF THE,08/10/2023,H59620231010QCWEOQCUP-1,65.85,MUSIC-MATERIALS,COMPUTER SOFTWARE STORES,GPC
WALSALL COUNCIL,http://opendatacommunities.org/id/metropolitan-district-council/walsall ,31/12/2023,CHILDRENS SERVICES,AMZNMKTPLACE,08/10/2023,H59620231010QSBGCRQFR-1,58.47,COMMUNICATION-LIBRARY BOOKS,MISCELLANEOUS AND SPECIALTY RETAIL STORES,GPC
WALSALL COUNCIL,http://opendatacommunities.org/id/metropolitan-district-council/walsall ,31/12/2023,CHILDRENS SERVICES,AMZNMKTPLACE,08/10/2023,H59620231010RYMSSKQNK-1,58.83,ART-MATERIALS,MISCELLANEOUS AND SPECIALTY RETAIL STORES,GPC
WALSALL COUNCIL,http://opendatacommunities.org/id/metropolitan-district-council/walsall ,31/12/2023,CHILDRENS SERVICES,AMAZON.CO.UK*HT5MT9K54,08/10/2023,H59620231010SWSTIZUXI-1,23.20,EARLY YEARS DEPARTMENT-MATERIALS,OTHER DIRECT MARKETING-OTHER DIRECT MARKETERS,GPC
WALSALL COUNCIL,http://opendatacommunities.org/id/metropolitan-district-council/walsall ,31/12/2023,CHILDRENS SERVICES,AMZNMKTPLACE,08/10/2023,H59620231010UOJMMARFU-1,22.94,E19-MATERIALS,MISCELLANEOUS AND SPECIALTY RETAIL STORES,GPC
WALSALL COUNCIL,http://opendatacommunities.org/id/metropolitan-district-council/walsall ,31/12/2023,CHILDRENS SERVICES,AMZNMKTPLACE,08/10/2023,H59620231010WHVPZQYHY-1,44.45,COMMUNICATION-LIBRARY BOOKS,MISCELLANEOUS AND SPECIALTY RETAIL STORES,GPC
WALSALL COUNCIL,http://opendatacommunities.org/id/metropolitan-district-council/walsall ,31/12/2023,CHILDRENS SERVICES,NINJA WARRIOR UK WALSALL,08/10/2023,H59620231010WLVNMJYGP-1,42.40,PINE VIEW-FEES & LICENCES,OTHER RECREATION SERVICES,GPC
WALSALL COUNCIL,http://opendatacommunities.org/id/metropolitan-district-council/walsall ,31/12/2023,ECONOMY & ENVIRONMENT,AMZNMKTPLACE,09/10/2023,H59620231010LCTZTLJDN-1,11.63,AREA PARTNERSHIPS-STATIONERY & GENERAL OFFICE SU,MISCELLANEOUS AND SPECIALTY RETAIL STORES,GPC
WALSALL COUNCIL,http://opendatacommunities.org/id/metropolitan-district-council/walsall ,31/12/2023,CHILDRENS SERVICES,SQ *DP CARPETS LIMITED,09/10/2023,H59620231011AQVHWMXKS-1,793.00,SUPPORT UNDER SECT 23 OF THE C-SUPPORT UNDER SECTION 23 OF TH,"EQUIPMENT, FURNITURE, AND HOME FURNISHINGS STORES ",GPC
WALSALL COUNCIL,http://opendatacommunities.org/id/metropolitan-district-council/walsall ,31/12/2023,CHILDRENS SERVICES,ASDA GROCERIES ONLINE,09/10/2023,H59620231011BEYJCWUNL-1,0.06,FOOD TECHNOLOGY-FOOD & DRINK SUPPLIES,GROCERY STORES AND SUPERMARKETS,GPC
WALSALL COUNCIL,http://opendatacommunities.org/id/metropolitan-district-council/walsall ,31/12/2023,RESOURCES AND TRANSFORMATION,TESCO STORES 6161,09/10/2023,H59620231011BOPJIXSON-1,55.65,TOWN HALL RESTAURANT BISTRO-FOOD & DRINK SUPPLIES,GROCERY STORES AND SUPERMARKETS,GPC
WALSALL COUNCIL,http://opendatacommunities.org/id/metropolitan-district-council/walsall ,31/12/2023,CHILDRENS SERVICES,AMZNMKTPLACE,09/10/2023,H59620231011CDIKHJNKO-1,14.08,LITERATURE-MATERIALS,MISCELLANEOUS AND SPECIALTY RETAIL STORES,GPC
WALSALL COUNCIL,http://opendatacommunities.org/id/metropolitan-district-council/walsall ,31/12/2023,CHILDRENS SERVICES,AMZNMKTPLACE,09/10/2023,H59620231011CGTJRLSNO-1,89.99,LOCALITY FAMILY SUPPORT-NORTH-STATIONERY & GENERAL OFFICE SU,MISCELLANEOUS AND SPECIALTY RETAIL STORES,GPC
WALSALL COUNCIL,http://opendatacommunities.org/id/metropolitan-district-council/walsall ,31/12/2023,CHILDRENS SERVICES,TESCO STORES 4838,09/10/2023,H59620231011CVQXFXVUS-1,65.60,SPECIAL FACILITIES -  BEFORE/A-MATERIALS,GROCERY STORES AND SUPERMARKETS,GPC
WALSALL COUNCIL,http://opendatacommunities.org/id/metropolitan-district-council/walsall ,31/12/2023,CHILDRENS SERVICES,AMZNMKTPLACE,09/10/2023,H59620231011CVSMSLBMR-1,7.23,EDGE OF CARE TEAM-STATIONERY & GENERAL OFFICE SU,MISCELLANEOUS AND SPECIALTY RETAIL STORES,GPC
WALSALL COUNCIL,http://opendatacommunities.org/id/metropolitan-district-council/walsall ,31/12/2023,CHILDRENS SERVICES,AMZNMKTPLACE,09/10/2023,H59620231011CXEQYJVJX-1,4.99,COMMUNICATION-LIBRARY BOOKS,MISCELLANEOUS AND SPECIALTY RETAIL STORES,GPC
WALSALL COUNCIL,http://opendatacommunities.org/id/metropolitan-district-council/walsall ,31/12/2023,CHILDRENS SERVICES,TRAVELODGE GB0000,09/10/2023,H59620231011DCWLRCKXA-1,541.54,BED & BREAKFAST PAYMENTS-BED & BREAKFAST PAYMENTS,TRAVELODGE,GPC
WALSALL COUNCIL,http://opendatacommunities.org/id/metropolitan-district-council/walsall ,31/12/2023,RESOURCES AND TRANSFORMATION,ASDA SUPERSTORE,09/10/2023,H59620231011DJCQGJQPV-1,24.00,CATERING - SCHOOLS-FOOD & DRINK SUPPLIES,GROCERY STORES AND SUPERMARKETS,GPC
WALSALL COUNCIL,http://opendatacommunities.org/id/metropolitan-district-council/walsall ,31/12/2023,CHILDRENS SERVICES,ASDA GROCERIES ONLINE,09/10/2023,H59620231011DVVGUOCIF-1,45.00,BREAKFAST CLUB-FOOD & DRINK SUPPLIES,GROCERY STORES AND SUPERMARKETS,GPC
WALSALL COUNCIL,http://opendatacommunities.org/id/metropolitan-district-council/walsall ,31/12/2023,CHILDRENS SERVICES,WM MORRISONS STORE,09/10/2023,H59620231011DWBRGHNVE-1,19.00,CARE LEAVER ENTITLEMENTS-CARE LEAVERS MISC EXPENSES,GROCERY STORES AND SUPERMARKETS,GPC
WALSALL COUNCIL,http://opendatacommunities.org/id/metropolitan-district-council/walsall ,31/12/2023,CHILDRENS SERVICES,ASDA GROCERIES ONLINE,09/10/2023,H59620231011EEPHUIBDD-1,100.00,FOOD TECHNOLOGY-FOOD & DRINK SUPPLIES,GROCERY STORES AND SUPERMARKETS,GPC
WALSALL COUNCIL,http://opendatacommunities.org/id/metropolitan-district-council/walsall ,31/12/2023,CHILDRENS SERVICES,IDENTITY PLUS,09/10/2023,H59620231011EVGWBKXIA-1,44.16,PHSE-MATERIALS,MISCELLANEOUS GENERAL MERCHANDISE,GPC
WALSALL COUNCIL,http://opendatacommunities.org/id/metropolitan-district-council/walsall ,31/12/2023,CHILDRENS SERVICES,ALDI 772 129,09/10/2023,H59620231011EVMQGHWWL-1,18.84,"43A HILTON ROAD, WILLENHALL-FOOD & DRINK SUPPLIES",GROCERY STORES AND SUPERMARKETS,GPC
WALSALL COUNCIL,http://opendatacommunities.org/id/metropolitan-district-council/walsall ,31/12/2023,CHILDRENS SERVICES,ALDI 772 129,09/10/2023,H59620231011EVMQGHWWL-2,106.17,"43A HILTON ROAD, WILLENHALL-FOOD & DRINK SUPPLIES",GROCERY STORES AND SUPERMARKETS,GPC
WALSALL COUNCIL,http://opendatacommunities.org/id/metropolitan-district-council/walsall ,31/12/2023,RESOURCES AND TRANSFORMATION,CHICKEN JOES LTD,09/10/2023,H59620231011FRTGUELVI-1,-21.80,CATERING - SCHOOLS-FOOD & DRINK SUPPLIES,CATERERS,GPC
WALSALL COUNCIL,http://opendatacommunities.org/id/metropolitan-district-council/walsall ,31/12/2023,RESOURCES AND TRANSFORMATION,WALSALL COUNCIL,09/10/2023,H59620231011GVFKGKYKR-1,1.00,RECHARGEABLE EQUIPMENT-FEES & LICENCES,GOVERNMENT SERVICES,GPC
WALSALL COUNCIL,http://opendatacommunities.org/id/metropolitan-district-council/walsall ,31/12/2023,ECONOMY & ENVIRONMENT,SCREWFIX DIR LTD,09/10/2023,H59620231011GWNLYDMIL-1,64.99,DEPOT-MATERIALS,LUMBER & BUILDING MATERIALS STORES,GPC
WALSALL COUNCIL,http://opendatacommunities.org/id/metropolitan-district-council/walsall ,31/12/2023,CHILDRENS SERVICES,UTILITA ENERGY LIMITED,09/10/2023,H59620231011HHDCQXSEV-1,10.00,TENANCY SERVICE-OTHER ENERGY COSTS,"UTILITIES - ELECTRIC, GAS, SANITARY & WATER",GPC
WALSALL COUNCIL,http://opendatacommunities.org/id/metropolitan-district-council/walsall ,31/12/2023,RESOURCES AND TRANSFORMATION,BLAKEMORE FOODSERVICE,09/10/2023,H59620231011HNSQBSEMJ-1,27.12,CATERING - SCHOOLS-FOOD & DRINK SUPPLIES,CATERERS,GPC
WALSALL COUNCIL,http://opendatacommunities.org/id/metropolitan-district-council/walsall ,31/12/2023,CHILDRENS SERVICES,AMZNMKTPLACE,09/10/2023,H59620231011HVWHIQTSA-1,22.31,E19-MATERIALS,MISCELLANEOUS AND SPECIALTY RETAIL STORES,GPC
WALSALL COUNCIL,http://opendatacommunities.org/id/metropolitan-district-council/walsall ,31/12/2023,ECONOMY & ENVIRONMENT,SCREWFIX DIR LTD,09/10/2023,H59620231011IBXAJTWKG-1,12.99,INFRASTRUCTURE MAINTENANCE-GROUNDS MAINTENANCE,LUMBER & BUILDING MATERIALS STORES,GPC
WALSALL COUNCIL,http://opendatacommunities.org/id/metropolitan-district-council/walsall ,31/12/2023,ECONOMY & ENVIRONMENT,AMZNMKTPLACE,09/10/2023,H59620231011IOTJKRCBC-1,39.60,FLEET-STATIONERY & GENERAL OFFICE SU,MISCELLANEOUS AND SPECIALTY RETAIL STORES,GPC
WALSALL COUNCIL,http://opendatacommunities.org/id/metropolitan-district-council/walsall ,31/12/2023,CHILDRENS SERVICES,AMZNMKTPLACE,09/10/2023,H59620231011IVBMDBJWV-1,51.99,CREATIVE CURRICULUM & DISPLAYS-MATERIALS,MISCELLANEOUS AND SPECIALTY RETAIL STORES,GPC
WALSALL COUNCIL,http://opendatacommunities.org/id/metropolitan-district-council/walsall ,31/12/2023,CHILDRENS SERVICES,ASDA GROCERIES ONLINE,09/10/2023,H59620231011IXYNBENNR-1,18.40,PELSALL VILLAGE SCHOOL-FOOD & DRINK SUPPLIES,GROCERY STORES AND SUPERMARKETS,GPC
WALSALL COUNCIL,http://opendatacommunities.org/id/metropolitan-district-council/walsall ,31/12/2023,CHILDRENS SERVICES,ASDA GROCERIES ONLINE,09/10/2023,H59620231011IXYNBENNR-2,39.09,PELSALL VILLAGE SCHOOL-FOOD & DRINK SUPPLIES,GROCERY STORES AND SUPERMARKETS,GPC
WALSALL COUNCIL,http://opendatacommunities.org/id/metropolitan-district-council/walsall ,31/12/2023,CHILDRENS SERVICES,AMZNMKTPLACE,09/10/2023,H59620231011JKEDDJCEQ-1,3.90,LITERATURE-MATERIALS,MISCELLANEOUS AND SPECIALTY RETAIL STORES,GPC
WALSALL COUNCIL,http://opendatacommunities.org/id/metropolitan-district-council/walsall ,31/12/2023,RESOURCES AND TRANSFORMATION,WM MORRISONS STORE,09/10/2023,H59620231011JSOMKCKWW-1,19.55,LABOUR GROUP ROOM EXPENSES-FOOD & DRINK SUPPLIES,GROCERY STORES AND SUPERMARKETS,GPC
WALSALL COUNCIL,http://opendatacommunities.org/id/metropolitan-district-council/walsall ,31/12/2023,RESOURCES AND TRANSFORMATION,WM MORRISONS STORE,09/10/2023,H59620231011JSOMKCKWW-2,21.93,LABOUR GROUP ROOM EXPENSES-FOOD & DRINK SUPPLIES,GROCERY STORES AND SUPERMARKETS,GPC
WALSALL COUNCIL,http://opendatacommunities.org/id/metropolitan-district-council/walsall ,31/12/2023,RESOURCES AND TRANSFORMATION,BLAKEMORE FOODSERVICE,09/10/2023,H59620231011KHFIUVNHC-1,33.20,CATERING - SCHOOLS-FOOD & DRINK SUPPLIES,CATERERS,GPC
WALSALL COUNCIL,http://opendatacommunities.org/id/metropolitan-district-council/walsall ,31/12/2023,CHILDRENS SERVICES,AMZNMKTPLACE,09/10/2023,H59620231011KHYJKMWHM-1,5.50,LITERATURE-MATERIALS,MISCELLANEOUS AND SPECIALTY RETAIL STORES,GPC
WALSALL COUNCIL,http://opendatacommunities.org/id/metropolitan-district-council/walsall ,31/12/2023,RESOURCES AND TRANSFORMATION,WM MORRISONS STORE,09/10/2023,H59620231011KNVXCFITI-1,10.24,TOWN HALL RESTAURANT BISTRO-FOOD & DRINK SUPPLIES,GROCERY STORES AND SUPERMARKETS,GPC
WALSALL COUNCIL,http://opendatacommunities.org/id/metropolitan-district-council/walsall ,31/12/2023,CHILDRENS SERVICES,AMZNMKTPLACE,09/10/2023,H59620231011KPUTTOMDK-1,8.40,COMMUNICATION-LIBRARY BOOKS,MISCELLANEOUS AND SPECIALTY RETAIL STORES,GPC
WALSALL COUNCIL,http://opendatacommunities.org/id/metropolitan-district-council/walsall ,31/12/2023,CHILDRENS SERVICES,IKEA LTD 142 BIRMINGHAM M,09/10/2023,H59620231011KYIXVNJFR-1,4.00,GENERAL-MATERIALS,"EQUIPMENT, FURNITURE, AND HOME FURNISHINGS STORES ",GPC
WALSALL COUNCIL,http://opendatacommunities.org/id/metropolitan-district-council/walsall ,31/12/2023,CHILDRENS SERVICES,AMZNMKTPLACE,09/10/2023,H59620231011KYUPMRIQU-1,104.95,CLASSROOM RESOURCES-MATERIALS,MISCELLANEOUS AND SPECIALTY RETAIL STORES,GPC
WALSALL COUNCIL,http://opendatacommunities.org/id/metropolitan-district-council/walsall ,31/12/2023,CHILDRENS SERVICES,O2 UK PAY AND GO,09/10/2023,H59620231011LQKGSGXYX-1,10.00,ADMINISTRATIVE SUPPLIES-MATERIALS,TELECOMMUNICATION SERVICES,GPC
WALSALL COUNCIL,http://opendatacommunities.org/id/metropolitan-district-council/walsall ,31/12/2023,CHILDRENS SERVICES,ASDA GROCERIES ONLINE,09/10/2023,H59620231011LUOZPZFQJ-1,-0.32,PELSALL VILLAGE SCHOOL-FOOD & DRINK SUPPLIES,GROCERY STORES AND SUPERMARKETS,GPC
WALSALL COUNCIL,http://opendatacommunities.org/id/metropolitan-district-council/walsall ,31/12/2023,CHILDRENS SERVICES,AMZNMKTPLACE,09/10/2023,H59620231011MBHCFTWGH-1,35.13,ENGLISH DEPARTMENT-LIBRARY BOOKS,MISCELLANEOUS AND SPECIALTY RETAIL STORES,GPC
WALSALL COUNCIL,http://opendatacommunities.org/id/metropolitan-district-council/walsall ,31/12/2023,CHILDRENS SERVICES,AMZNMKTPLACE,09/10/2023,H59620231011MBLCDHJEG-1,10.98,MEADOW VIEW JMI PRIMARY SCHOOL-OPERATIONAL MAINTENANCE,MISCELLANEOUS AND SPECIALTY RETAIL STORES,GPC
WALSALL COUNCIL,http://opendatacommunities.org/id/metropolitan-district-council/walsall ,31/12/2023,RESOURCES AND TRANSFORMATION,WM MORRISONS STORE,09/10/2023,H59620231011MYLRCBNEM-1,4.00,CORPORATE MANAGEMENT TEAM-FOOD & DRINK SUPPLIES,GROCERY STORES AND SUPERMARKETS,GPC
WALSALL COUNCIL,http://opendatacommunities.org/id/metropolitan-district-council/walsall ,31/12/2023,RESOURCES AND TRANSFORMATION,WM MORRISONS STORE,09/10/2023,H59620231011MYLRCBNEM-2,2.10,CORPORATE MANAGEMENT TEAM-FOOD & DRINK SUPPLIES,GROCERY STORES AND SUPERMARKETS,GPC
WALSALL COUNCIL,http://opendatacommunities.org/id/metropolitan-district-council/walsall ,31/12/2023,CHILDRENS SERVICES,AMZNMKTPLACE,09/10/2023,H59620231011NDWDHXIQB-1,18.94,PINE VIEW-MATERIALS,MISCELLANEOUS AND SPECIALTY RETAIL STORES,GPC
WALSALL COUNCIL,http://opendatacommunities.org/id/metropolitan-district-council/walsall ,31/12/2023,ECONOMY & ENVIRONMENT,STOCKPORT T/O,09/10/2023,H59620231011NHOXTRWSU-1,98.20,NEW ART GALLERY - ADMIN-OFFICERS & STAFF PUBLIC TRANSP,PASSENGER RAILWAYS,GPC
WALSALL COUNCIL,http://opendatacommunities.org/id/metropolitan-district-council/walsall ,31/12/2023,CHILDRENS SERVICES,WM MORRISONS STORE PICK,09/10/2023,H59620231011NKCEVMJSQ-1,25.00,PELSALL VILLAGE SCHOOL-FOOD & DRINK SUPPLIES,GROCERY STORES AND SUPERMARKETS,GPC
WALSALL COUNCIL,http://opendatacommunities.org/id/metropolitan-district-council/walsall ,31/12/2023,CHILDRENS SERVICES,AMZNMKTPLACE,09/10/2023,H59620231011NMQVYPGLY-1,5.90,COMMUNICATION-LIBRARY BOOKS,MISCELLANEOUS AND SPECIALTY RETAIL STORES,GPC
WALSALL COUNCIL,http://opendatacommunities.org/id/metropolitan-district-council/walsall ,31/12/2023,CHILDRENS SERVICES,AMZNMKTPLACE,09/10/2023,H59620231011OLDDFMJHT-1,40.46,LITERATURE-MATERIALS,MISCELLANEOUS AND SPECIALTY RETAIL STORES,GPC
WALSALL COUNCIL,http://opendatacommunities.org/id/metropolitan-district-council/walsall ,31/12/2023,CHILDRENS SERVICES,B&Q MARKETPLACE,09/10/2023,H59620231011PCTLRFOUY-1,56.99,CARE LEAVER ENTITLEMENTS-SETTING UP HOME GRANT,LUMBER & BUILDING MATERIALS STORES,GPC
WALSALL COUNCIL,http://opendatacommunities.org/id/metropolitan-district-council/walsall ,31/12/2023,ECONOMY & ENVIRONMENT,O HEAP & SON (DERBY) L,09/10/2023,H59620231011PNQUTUQAK-1,249.96,FLEET-MATERIALS,OTHER BUSINESS SERVICES,GPC
WALSALL COUNCIL,http://opendatacommunities.org/id/metropolitan-district-council/walsall ,31/12/2023,CHILDRENS SERVICES,AMZNMKTPLACE,09/10/2023,H59620231011PRDVOTUGK-1,22.99,GENERAL-MATERIALS,MISCELLANEOUS AND SPECIALTY RETAIL STORES,GPC
WALSALL COUNCIL,http://opendatacommunities.org/id/metropolitan-district-council/walsall ,31/12/2023,CHILDRENS SERVICES,AMAZON.CO.UK*HT3JX8U84,09/10/2023,H59620231011PYKUNYVHG-1,78.14,ADMINISTRATIVE SUPPLIES-STATIONERY & GENERAL OFFICE SU,OTHER DIRECT MARKETING-OTHER DIRECT MARKETERS,GPC
WALSALL COUNCIL,http://opendatacommunities.org/id/metropolitan-district-council/walsall ,31/12/2023,CHILDRENS SERVICES,BKG*HOTEL AT BOOKING.C,09/10/2023,H59620231011QHPEIDYQX-1,216.00,YOUNG PERSONS HOMELESS SERVICE-BED & BREAKFAST PAYMENTS,TRAVEL AGENCIES AND TOUR OPERATORS,GPC
WALSALL COUNCIL,http://opendatacommunities.org/id/metropolitan-district-council/walsall ,31/12/2023,CHILDRENS SERVICES,AMZNMKTPLACE,09/10/2023,H59620231011RFOBNFUFQ-1,34.88,LITERATURE-MATERIALS,MISCELLANEOUS AND SPECIALTY RETAIL STORES,GPC
WALSALL COUNCIL,http://opendatacommunities.org/id/metropolitan-district-council/walsall ,31/12/2023,CHILDRENS SERVICES,AMZNMKTPLACE,09/10/2023,H59620231011SECCCQQGS-1,34.47,OUTDOOR LEARNING-MATERIALS,MISCELLANEOUS AND SPECIALTY RETAIL STORES,GPC
WALSALL COUNCIL,http://opendatacommunities.org/id/metropolitan-district-council/walsall ,31/12/2023,CHILDRENS SERVICES,BUNZ AND TREATZ,09/10/2023,H59620231011SITBRSKMX-1,62.76,CORPORATE PARENTING-FOOD & DRINK SUPPLIES,BAKERIES,GPC
WALSALL COUNCIL,http://opendatacommunities.org/id/metropolitan-district-council/walsall ,31/12/2023,CHILDRENS SERVICES,AMZNMKTPLACE,09/10/2023,H59620231011SMYJUMRRW-1,88.12,PINE VIEW-PURCHASE OF FURNITURE & EQUIPM,MISCELLANEOUS AND SPECIALTY RETAIL STORES,GPC
WALSALL COUNCIL,http://opendatacommunities.org/id/metropolitan-district-council/walsall ,31/12/2023,CHILDRENS SERVICES,WALSALL COUNCIL,09/10/2023,H59620231011SRUSQWMIG-1,111.00,FAMILY SAFEGUARDING NORTH LOCA-FEES & LICENCES,GOVERNMENT SERVICES,GPC
WALSALL COUNCIL,http://opendatacommunities.org/id/metropolitan-district-council/walsall ,31/12/2023,ECONOMY & ENVIRONMENT,WWW.PROVAC.CO.UK,09/10/2023,H59620231011TBZQBOQVS-1,218.40,WALSALL ARENA AND ARTS CENTRE-CLEANING MATERIALS,"SPECIALTY CLEANING, POLISHING, AND SANITATION",GPC
WALSALL COUNCIL,http://opendatacommunities.org/id/metropolitan-district-council/walsall ,31/12/2023,CHILDRENS SERVICES,WM MORRISONS STORE,09/10/2023,H59620231011TDWENESVK-1,3.96,EDGE OF CARE TEAM-FOOD & DRINK SUPPLIES,GROCERY STORES AND SUPERMARKETS,GPC
WALSALL COUNCIL,http://opendatacommunities.org/id/metropolitan-district-council/walsall ,31/12/2023,CHILDRENS SERVICES,WM MORRISONS STORE,09/10/2023,H59620231011TDWENESVK-2,35.93,EDGE OF CARE TEAM-FOOD & DRINK SUPPLIES,GROCERY STORES AND SUPERMARKETS,GPC
WALSALL COUNCIL,http://opendatacommunities.org/id/metropolitan-district-council/walsall ,31/12/2023,ECONOMY & ENVIRONMENT,AMZNMKTPLACE,09/10/2023,H59620231011TNLONLBHE-1,139.99,WILLENHALL LIBRARY-PURCHASE OF FURNITURE & EQUIPM,MISCELLANEOUS AND SPECIALTY RETAIL STORES,GPC
WALSALL COUNCIL,http://opendatacommunities.org/id/metropolitan-district-council/walsall ,31/12/2023,ECONOMY & ENVIRONMENT,THE RANGE,09/10/2023,H59620231011TPNEAWRLZ-1,39.48,LEATHER MUSEUM-MATERIALS,DEPARTMENT STORES,GPC
WALSALL COUNCIL,http://opendatacommunities.org/id/metropolitan-district-council/walsall ,31/12/2023,CHILDRENS SERVICES,AMZNMKTPLACE,09/10/2023,H59620231011UBDGWGIJM-1,21.82,E19-MATERIALS,MISCELLANEOUS AND SPECIALTY RETAIL STORES,GPC
WALSALL COUNCIL,http://opendatacommunities.org/id/metropolitan-district-council/walsall ,31/12/2023,RESOURCES AND TRANSFORMATION,WWW.BANNERUK.COM,09/10/2023,H59620231011URKPMVNST-1,205.38,CENTRALISED STATIONERY-STATIONERY & GENERAL OFFICE SU,"STATIONERY, OFFICE SUPPLIES AND WRITING PAPER",GPC
WALSALL COUNCIL,http://opendatacommunities.org/id/metropolitan-district-council/walsall ,31/12/2023,ECONOMY & ENVIRONMENT,ROYAL MAIL ONLINE SHOP,09/10/2023,H59620231011UTKYPFDCP-1,62.50,AREA PARTNERSHIPS-POSTAGES & COURIER SERVICES,POSTAL SERVICES - GOVERNMENT ONLY,GPC
WALSALL COUNCIL,http://opendatacommunities.org/id/metropolitan-district-council/walsall ,31/12/2023,RESOURCES AND TRANSFORMATION,CHICKEN JOES LTD,09/10/2023,H59620231011UZBZPPMTP-1,-240.00,CATERING - SCHOOLS-FOOD & DRINK SUPPLIES,CATERERS,GPC
WALSALL COUNCIL,http://opendatacommunities.org/id/metropolitan-district-council/walsall ,31/12/2023,RESOURCES AND TRANSFORMATION,CHICKEN JOES LTD,09/10/2023,H59620231011VFRDPAVAH-1,-3.20,CATERING - SCHOOLS-FOOD & DRINK SUPPLIES,CATERERS,GPC
WALSALL COUNCIL,http://opendatacommunities.org/id/metropolitan-district-council/walsall ,31/12/2023,RESOURCES AND TRANSFORMATION,BLAKEMORE FOODSERVICE,09/10/2023,H59620231011VIQTZOEMV-1,-18.35,CATERING - SCHOOLS-FOOD & DRINK SUPPLIES,CATERERS,GPC
WALSALL COUNCIL,http://opendatacommunities.org/id/metropolitan-district-council/walsall ,31/12/2023,CHILDRENS SERVICES,BARONS COURT HOTEL,09/10/2023,H59620231011VMUOZZCSP-1,65.00,BED & BREAKFAST PAYMENTS-BED & BREAKFAST PAYMENTS,"HOTELS, MOTELS, RESORTS",GPC
WALSALL COUNCIL,http://opendatacommunities.org/id/metropolitan-district-council/walsall ,31/12/2023,RESOURCES AND TRANSFORMATION,CHICKEN JOES LTD,09/10/2023,H59620231011VTNNLXJKZ-1,-320.00,CATERING - SCHOOLS-FOOD & DRINK SUPPLIES,CATERERS,GPC
WALSALL COUNCIL,http://opendatacommunities.org/id/metropolitan-district-council/walsall ,31/12/2023,CHILDRENS SERVICES,AMAZON.CO.UK*HT24N4IV4,09/10/2023,H59620231011WBUPQEYUV-1,12.00,SEN-MATERIALS,OTHER DIRECT MARKETING-OTHER DIRECT MARKETERS,GPC
WALSALL COUNCIL,http://opendatacommunities.org/id/metropolitan-district-council/walsall ,31/12/2023,RESOURCES AND TRANSFORMATION,CHICKEN JOES LTD,09/10/2023,H59620231011WJBDLTUVU-1,-13.90,CATERING - SCHOOLS-FOOD & DRINK SUPPLIES,CATERERS,GPC
WALSALL COUNCIL,http://opendatacommunities.org/id/metropolitan-district-council/walsall ,31/12/2023,CHILDRENS SERVICES,F R RUSSELL,09/10/2023,H59620231011WNRHGRFIR-1,73.50,YOUNG PERSONS HOMELESS SERVICE-MATERIALS,BICYCLE SHOPS-SALES AND SERVICE,GPC
WALSALL COUNCIL,http://opendatacommunities.org/id/metropolitan-district-council/walsall ,31/12/2023,RESOURCES AND TRANSFORMATION,ASDA SUPERSTORE,09/10/2023,H59620231011WQSFTOHDR-1,12.00,CATERING - SCHOOLS-FOOD & DRINK SUPPLIES,GROCERY STORES AND SUPERMARKETS,GPC
WALSALL COUNCIL,http://opendatacommunities.org/id/metropolitan-district-council/walsall ,31/12/2023,RESOURCES AND TRANSFORMATION,ASDA SUPERSTORE,09/10/2023,H59620231011WQSFTOHDR-2,18.30,CATERING - SCHOOLS-FOOD & DRINK SUPPLIES,GROCERY STORES AND SUPERMARKETS,GPC
WALSALL COUNCIL,http://opendatacommunities.org/id/metropolitan-district-council/walsall ,31/12/2023,RESOURCES AND TRANSFORMATION,BLAKEMORE FOODSERVICE,09/10/2023,H59620231011WZRLDRMSG-1,-16.88,CATERING - SCHOOLS-FOOD & DRINK SUPPLIES,CATERERS,GPC
WALSALL COUNCIL,http://opendatacommunities.org/id/metropolitan-district-council/walsall ,31/12/2023,ECONOMY & ENVIRONMENT,B & Q 1276,09/10/2023,H59620231011XAUMBWFWA-1,3.75,INFRASTRUCTURE MAINTENANCE-GROUNDS MAINTENANCE,HOME SUPPLY WAREHOUSE STORES,GPC
WALSALL COUNCIL,http://opendatacommunities.org/id/metropolitan-district-council/walsall ,31/12/2023,CHILDRENS SERVICES,AMZNMKTPLACE,09/10/2023,H59620231011XCTEXKFAY-1,167.92,CLASSROOM RESOURCES-MATERIALS,MISCELLANEOUS AND SPECIALTY RETAIL STORES,GPC
WALSALL COUNCIL,http://opendatacommunities.org/id/metropolitan-district-council/walsall ,31/12/2023,CHILDRENS SERVICES,WALSALL COUNCIL,09/10/2023,H59620231011YLTSGQJCD-1,5.50,FAMILY HUBS-INTERNAL TRAINING,GOVERNMENT SERVICES,GPC
WALSALL COUNCIL,http://opendatacommunities.org/id/metropolitan-district-council/walsall ,31/12/2023,CHILDRENS SERVICES,AMZNMKTPLACE,09/10/2023,H59620231011YPQTWEMJW-1,33.79,E19-MATERIALS,MISCELLANEOUS AND SPECIALTY RETAIL STORES,GPC
WALSALL COUNCIL,http://opendatacommunities.org/id/metropolitan-district-council/walsall ,31/12/2023,CHILDRENS SERVICES,AMZNMKTPLACE,09/10/2023,H59620231011ZHOZTANTD-1,9.99,ENGLISH / LIBRARY-MATERIALS,MISCELLANEOUS AND SPECIALTY RETAIL STORES,GPC
WALSALL COUNCIL,http://opendatacommunities.org/id/metropolitan-district-council/walsall ,31/12/2023,CHILDRENS SERVICES,TVLICENSING.CO.UK,09/10/2023,H59620231012RCLRRPMLA-1,159.00,ADMINISTRATIVE SUPPLIES-SUBSCRIPTIONS,"CONSULTING, MANAGEMENT, AND PR SERVICES",GPC
WALSALL COUNCIL,http://opendatacommunities.org/id/metropolitan-district-council/walsall ,31/12/2023,ECONOMY & ENVIRONMENT,AMZNMKTPLACE,10/10/2023,H59620231011SDFFHKQKF-1,4.35,TECHNICAL/ART HANDLING-MATERIALS,MISCELLANEOUS AND SPECIALTY RETAIL STORES,GPC
WALSALL COUNCIL,http://opendatacommunities.org/id/metropolitan-district-council/walsall ,31/12/2023,ECONOMY & ENVIRONMENT,AMZNMKTPLACE,10/10/2023,H59620231011SDFFHKQKF-2,55.93,TECHNICAL/ART HANDLING-PURCHASE OF FURNITURE & EQUIPM,MISCELLANEOUS AND SPECIALTY RETAIL STORES,GPC
WALSALL COUNCIL,http://opendatacommunities.org/id/metropolitan-district-council/walsall ,31/12/2023,ECONOMY & ENVIRONMENT,AMZNMKTPLACE,10/10/2023,H59620231011SDFFHKQKF-3,43.54,NAG - NEW ART GALLERY SHOP STO-MATERIALS TO STORES,MISCELLANEOUS AND SPECIALTY RETAIL STORES,GPC
WALSALL COUNCIL,http://opendatacommunities.org/id/metropolitan-district-council/walsall ,31/12/2023,RESOURCES AND TRANSFORMATION,ARTHUR BRETT CATER,10/10/2023,H59620231012AIZHDZSKI-1,75.53,CATERING - SCHOOLS-FOOD & DRINK SUPPLIES,MISCELLANEOUS FOOD STORES & CONVENIENCE STORES,GPC
WALSALL COUNCIL,http://opendatacommunities.org/id/metropolitan-district-council/walsall ,31/12/2023,ECONOMY & ENVIRONMENT,SIM-MAYOU HARDWARE,10/10/2023,H59620231012AKQEGBKPB-1,53.00,COMMUNITY LIAISON-MATERIALS,HARDWARE STORES,GPC
WALSALL COUNCIL,http://opendatacommunities.org/id/metropolitan-district-council/walsall ,31/12/2023,CHILDRENS SERVICES,AMZNMKTPLACE,10/10/2023,H59620231012ASJPDDKUZ-1,19.59,PINE VIEW-STATIONERY & GENERAL OFFICE SU,MISCELLANEOUS AND SPECIALTY RETAIL STORES,GPC
WALSALL COUNCIL,http://opendatacommunities.org/id/metropolitan-district-council/walsall ,31/12/2023,ECONOMY & ENVIRONMENT,AMZNMKTPLACE,10/10/2023,H59620231012BBQBXPEYB-1,9.99,WALSALL ARENA AND ARTS CENTRE-STATIONERY & GENERAL OFFICE SU,MISCELLANEOUS AND SPECIALTY RETAIL STORES,GPC
WALSALL COUNCIL,http://opendatacommunities.org/id/metropolitan-district-council/walsall ,31/12/2023,CHILDRENS SERVICES,WWW.SCREWFIX.COM,10/10/2023,H59620231012BVSMJTTGB-1,50.99,BUTTS PRIMARY SCHOOL-OPERATIONAL MAINTENANCE,LUMBER & BUILDING MATERIALS STORES,GPC
WALSALL COUNCIL,http://opendatacommunities.org/id/metropolitan-district-council/walsall ,31/12/2023,RESOURCES AND TRANSFORMATION,ARTHUR BRETT CATER,10/10/2023,H59620231012CCIDTLHWS-1,19.30,CATERING - SCHOOLS-FOOD & DRINK SUPPLIES,MISCELLANEOUS FOOD STORES & CONVENIENCE STORES,GPC
WALSALL COUNCIL,http://opendatacommunities.org/id/metropolitan-district-council/walsall ,31/12/2023,CHILDRENS SERVICES,HTTP://WWW.FORWARDPRODUC,10/10/2023,H59620231012CFUPQELKY-1,50.88,ADMINISTRATIVE SUPPLIES-MATERIALS,"STATIONERY, OFFICE SUPPLIES AND WRITING PAPER",GPC
WALSALL COUNCIL,http://opendatacommunities.org/id/metropolitan-district-council/walsall ,31/12/2023,CHILDRENS SERVICES,AMAZON.CO.UK*HT8KP8WH4,10/10/2023,H59620231012CIOHPDAMK-1,15.00,BUTTS PRIMARY SCHOOL-OPERATIONAL MAINTENANCE,OTHER DIRECT MARKETING-OTHER DIRECT MARKETERS,GPC
WALSALL COUNCIL,http://opendatacommunities.org/id/metropolitan-district-council/walsall ,31/12/2023,RESOURCES AND TRANSFORMATION,ARTHUR BRETT CATER,10/10/2023,H59620231012CMXVLJKYD-1,52.42,CATERING - SCHOOLS-FOOD & DRINK SUPPLIES,MISCELLANEOUS FOOD STORES & CONVENIENCE STORES,GPC
WALSALL COUNCIL,http://opendatacommunities.org/id/metropolitan-district-council/walsall ,31/12/2023,CHILDRENS SERVICES,ASDA GROCERIES ONLINE,10/10/2023,H59620231012COOHGXUJX-1,-0.85,FAMILY HUBS-FOOD & DRINK SUPPLIES,GROCERY STORES AND SUPERMARKETS,GPC
WALSALL COUNCIL,http://opendatacommunities.org/id/metropolitan-district-council/walsall ,31/12/2023,CHILDRENS SERVICES,AMZNMKTPLACE,10/10/2023,H59620231012CPUWIZFHR-1,6.99,LITERATURE-MATERIALS,MISCELLANEOUS AND SPECIALTY RETAIL STORES,GPC
WALSALL COUNCIL,http://opendatacommunities.org/id/metropolitan-district-council/walsall ,31/12/2023,ECONOMY & ENVIRONMENT,ZEELO LTD,10/10/2023,H59620231012CUSYGAPJO-1,7.00,RESTART-OTHER TRAVEL ALLOWANCES,DIGITAL GOODS - APPLICATIONS (EXCLUDES GAMES),GPC
WALSALL COUNCIL,http://opendatacommunities.org/id/metropolitan-district-council/walsall ,31/12/2023,RESOURCES AND TRANSFORMATION,NOBISCO LIMITED,10/10/2023,H59620231012DFRIDSUFF-1,71.71,CATERING - SCHOOLS-FOOD & DRINK SUPPLIES,OTHER INDUSTRIAL SUPPLIES,GPC
WALSALL COUNCIL,http://opendatacommunities.org/id/metropolitan-district-council/walsall ,31/12/2023,CHILDRENS SERVICES,AMZNMKTPLACE,10/10/2023,H59620231012DMELRCQDG-1,14.48,HILLARY PRIMARY SCHOOL-PURCHASE OF FURNITURE & EQUIPM,MISCELLANEOUS AND SPECIALTY RETAIL STORES,GPC
WALSALL COUNCIL,http://opendatacommunities.org/id/metropolitan-district-council/walsall ,31/12/2023,ECONOMY & ENVIRONMENT,AMZNMKTPLACE,10/10/2023,H59620231012DPTGCGGNJ-1,16.50,AREA PARTNERSHIPS-STATIONERY & GENERAL OFFICE SU,MISCELLANEOUS AND SPECIALTY RETAIL STORES,GPC
WALSALL COUNCIL,http://opendatacommunities.org/id/metropolitan-district-council/walsall ,31/12/2023,CHILDRENS SERVICES,ROYAL MAIL GROUP LTD,10/10/2023,H59620231012DWYPJJNEO-1,0.75,POOL HAYES PRIMARY SCHOOL-POSTAGES & COURIER SERVICES,POSTAL SERVICES - GOVERNMENT ONLY,GPC
WALSALL COUNCIL,http://opendatacommunities.org/id/metropolitan-district-council/walsall ,31/12/2023,CHILDRENS SERVICES,AMZNMKTPLACE,10/10/2023,H59620231012EDORDTJMV-1,59.05,ADMINISTRATIVE SUPPLIES-STATIONERY & GENERAL OFFICE SU,MISCELLANEOUS AND SPECIALTY RETAIL STORES,GPC
WALSALL COUNCIL,http://opendatacommunities.org/id/metropolitan-district-council/walsall ,31/12/2023,CHILDRENS SERVICES,WWW.E.ORG,10/10/2023,H59620231012ESSIIPJOC-1,30.00,TENANCY SERVICE-OTHER ENERGY COSTS,"UTILITIES - ELECTRIC, GAS, SANITARY & WATER",GPC
WALSALL COUNCIL,http://opendatacommunities.org/id/metropolitan-district-council/walsall ,31/12/2023,CHILDRENS SERVICES,SENSORY SUPER STARS,10/10/2023,H59620231012EVRCLVJST-1,650.00,VIRTUAL SCHOOL CENTRAL PUPIL P-STATIONERY & GENERAL OFFICE SU,"GAME, TOY, AND HOBBY SHOPS",GPC
WALSALL COUNCIL,http://opendatacommunities.org/id/metropolitan-district-council/walsall ,31/12/2023,CHILDRENS SERVICES,ABC CARS GROUP,10/10/2023,H59620231012FAHIOPXLE-1,30.00,POOL HAYES PRIMARY SCHOOL-TRANSPORT OTHER-ASSISTANCE TO ,TAXI SERVICES,GPC
WALSALL COUNCIL,http://opendatacommunities.org/id/metropolitan-district-council/walsall ,31/12/2023,CHILDRENS SERVICES,AMZNMKTPLACE,10/10/2023,H59620231012FLHOQPISL-1,74.19,BURSARY-MATERIALS,MISCELLANEOUS AND SPECIALTY RETAIL STORES,GPC
WALSALL COUNCIL,http://opendatacommunities.org/id/metropolitan-district-council/walsall ,31/12/2023,RESOURCES AND TRANSFORMATION,ARTHUR BRETT CATER,10/10/2023,H59620231012FYYPFGUDT-1,65.00,CATERING - SCHOOLS-FOOD & DRINK SUPPLIES,MISCELLANEOUS FOOD STORES & CONVENIENCE STORES,GPC
WALSALL COUNCIL,http://opendatacommunities.org/id/metropolitan-district-council/walsall ,31/12/2023,ADULT SOCIAL CARE,BARONS COURT HOTEL,10/10/2023,H59620231012GJFLIQVAL-1,665.00,ASC PARTNERSHIPS-BED & BREAKFAST PAYMENTS,"HOTELS, MOTELS, RESORTS",GPC
WALSALL COUNCIL,http://opendatacommunities.org/id/metropolitan-district-council/walsall ,31/12/2023,CHILDRENS SERVICES,AMZNMKTPLACE,10/10/2023,H59620231012GLEMJNJBA-1,55.89,E19-MATERIALS,MISCELLANEOUS AND SPECIALTY RETAIL STORES,GPC
WALSALL COUNCIL,http://opendatacommunities.org/id/metropolitan-district-council/walsall ,31/12/2023,CHILDRENS SERVICES,AMZNMKTPLACE,10/10/2023,H59620231012GSRKICAGR-1,11.51,EDGE OF CARE TEAM-STATIONERY & GENERAL OFFICE SU,MISCELLANEOUS AND SPECIALTY RETAIL STORES,GPC
WALSALL COUNCIL,http://opendatacommunities.org/id/metropolitan-district-council/walsall ,31/12/2023,CHILDRENS SERVICES,BULKWORKWEAR.CO.UK,10/10/2023,H59620231012HCQSIYNNM-1,6.35,LEIGHSWOOD PRIMARY SCHOOL-OPERATIONAL MAINTENANCE,MENS AND WOMENS CLOTHING STORES,GPC
WALSALL COUNCIL,http://opendatacommunities.org/id/metropolitan-district-council/walsall ,31/12/2023,CHILDRENS SERVICES,Q PARK ONLINE SALES UK,10/10/2023,H59620231012HIKPIQIWT-1,27.00,FAMILY SAFEGUARDING WEST LOCAL-SECTION 1/17CHILD CARE ACT 198,AUTOMOBILE PARKING LOTS AND GARAGES,GPC
WALSALL COUNCIL,http://opendatacommunities.org/id/metropolitan-district-council/walsall ,31/12/2023,RESOURCES AND TRANSFORMATION,TESCO STORES 6161,10/10/2023,H59620231012HKECVNTNS-1,159.42,TOWN HALL RESTAURANT BISTRO-FOOD & DRINK SUPPLIES,GROCERY STORES AND SUPERMARKETS,GPC
WALSALL COUNCIL,http://opendatacommunities.org/id/metropolitan-district-council/walsall ,31/12/2023,ECONOMY & ENVIRONMENT,ASDA SUPERSTORE,10/10/2023,H59620231012HMCVXKWRA-1,7.25,WALSALL ARENA AND ARTS CENTRE-FOOD & DRINK SUPPLIES,GROCERY STORES AND SUPERMARKETS,GPC
WALSALL COUNCIL,http://opendatacommunities.org/id/metropolitan-district-council/walsall ,31/12/2023,ECONOMY & ENVIRONMENT,ASDA SUPERSTORE,10/10/2023,H59620231012HMCVXKWRA-2,32.35,WALSALL ARENA AND ARTS CENTRE-FOOD & DRINK SUPPLIES,GROCERY STORES AND SUPERMARKETS,GPC
WALSALL COUNCIL,http://opendatacommunities.org/id/metropolitan-district-council/walsall ,31/12/2023,RESOURCES AND TRANSFORMATION,ARTHUR BRETT CATER,10/10/2023,H59620231012HPOYXSJEU-1,12.22,CATERING - SCHOOLS-FOOD & DRINK SUPPLIES,MISCELLANEOUS FOOD STORES & CONVENIENCE STORES,GPC
WALSALL COUNCIL,http://opendatacommunities.org/id/metropolitan-district-council/walsall ,31/12/2023,CHILDRENS SERVICES,ASDA GROCERIES ONLINE,10/10/2023,H59620231012HWEMTASQZ-1,6.22,DT-MATERIALS,GROCERY STORES AND SUPERMARKETS,GPC
WALSALL COUNCIL,http://opendatacommunities.org/id/metropolitan-district-council/walsall ,31/12/2023,CHILDRENS SERVICES,ASDA GROCERIES ONLINE,10/10/2023,H59620231012HWEMTASQZ-2,38.35,DT-MATERIALS,GROCERY STORES AND SUPERMARKETS,GPC
WALSALL COUNCIL,http://opendatacommunities.org/id/metropolitan-district-council/walsall ,31/12/2023,ECONOMY & ENVIRONMENT,BLOXWICH HARDWARE,10/10/2023,H59620231012IAQUGKFJI-1,3.50,COMMUNITY LIAISON-MATERIALS,HARDWARE STORES,GPC
WALSALL COUNCIL,http://opendatacommunities.org/id/metropolitan-district-council/walsall ,31/12/2023,RESOURCES AND TRANSFORMATION,ARTHUR BRETT CATER,10/10/2023,H59620231012IFQVPEPXO-1,42.84,CATERING - SCHOOLS-FOOD & DRINK SUPPLIES,MISCELLANEOUS FOOD STORES & CONVENIENCE STORES,GPC
WALSALL COUNCIL,http://opendatacommunities.org/id/metropolitan-district-council/walsall ,31/12/2023,CHILDRENS SERVICES,AMZNMKTPLACE,10/10/2023,H59620231012IIIJECKTN-1,10.19,OUTDOOR LEARNING-MATERIALS,MISCELLANEOUS AND SPECIALTY RETAIL STORES,GPC
WALSALL COUNCIL,http://opendatacommunities.org/id/metropolitan-district-council/walsall ,31/12/2023,CHILDRENS SERVICES,ASDA GROCERIES ONLINE,10/10/2023,H59620231012ILUZKZXKY-1,11.46,PARENTING TEAM-FOOD & DRINK SUPPLIES,GROCERY STORES AND SUPERMARKETS,GPC
WALSALL COUNCIL,http://opendatacommunities.org/id/metropolitan-district-council/walsall ,31/12/2023,CHILDRENS SERVICES,ASDA GROCERIES ONLINE,10/10/2023,H59620231012ILUZKZXKY-2,54.86,PARENTING TEAM-FOOD & DRINK SUPPLIES,GROCERY STORES AND SUPERMARKETS,GPC
WALSALL COUNCIL,http://opendatacommunities.org/id/metropolitan-district-council/walsall ,31/12/2023,RESOURCES AND TRANSFORMATION,ARTHUR BRETT CATER,10/10/2023,H59620231012IPXNOGEHJ-1,54.98,CATERING - SCHOOLS-FOOD & DRINK SUPPLIES,MISCELLANEOUS FOOD STORES & CONVENIENCE STORES,GPC
WALSALL COUNCIL,http://opendatacommunities.org/id/metropolitan-district-council/walsall ,31/12/2023,ECONOMY & ENVIRONMENT,TAYLOR NEWS,10/10/2023,H59620231012IQXKDWQML-1,17.90,STREETLY LIBRARY-NEWSPAPERS/PERIODICALS/MAGAZIN,GROCERY STORES AND SUPERMARKETS,GPC
WALSALL COUNCIL,http://opendatacommunities.org/id/metropolitan-district-council/walsall ,31/12/2023,CHILDRENS SERVICES,WWW.1508STAYS.CO.UK,10/10/2023,H59620231012IRPAFKYJG-1,980.00,YOUNG PERSONS HOMELESS SERVICE-HOUSING PREVENTION ALLOWANCES-,"HOTELS, MOTELS, RESORTS",GPC
WALSALL COUNCIL,http://opendatacommunities.org/id/metropolitan-district-council/walsall ,31/12/2023,RESOURCES AND TRANSFORMATION,ARTHUR BRETT CATER,10/10/2023,H59620231012ITWLFWIRO-1,111.53,CATERING - SCHOOLS-FOOD & DRINK SUPPLIES,MISCELLANEOUS FOOD STORES & CONVENIENCE STORES,GPC
WALSALL COUNCIL,http://opendatacommunities.org/id/metropolitan-district-council/walsall ,31/12/2023,CHILDRENS SERVICES,AMAZON* 205-0430288-22,10/10/2023,H59620231012JGANHBHVN-1,204.00,ICT-PURCHASE OF FURNITURE & EQUIPM,MISCELLANEOUS GENERAL MERCHANDISE,GPC
WALSALL COUNCIL,http://opendatacommunities.org/id/metropolitan-district-council/walsall ,31/12/2023,CHILDRENS SERVICES,ASDA GROCERIES ONLINE,10/10/2023,H59620231012JIWJMQVNT-1,9.90,FAMILY HUBS-FOOD & DRINK SUPPLIES,GROCERY STORES AND SUPERMARKETS,GPC
WALSALL COUNCIL,http://opendatacommunities.org/id/metropolitan-district-council/walsall ,31/12/2023,CHILDRENS SERVICES,ASDA GROCERIES ONLINE,10/10/2023,H59620231012JIWJMQVNT-2,27.20,FAMILY HUBS-FOOD & DRINK SUPPLIES,GROCERY STORES AND SUPERMARKETS,GPC
WALSALL COUNCIL,http://opendatacommunities.org/id/metropolitan-district-council/walsall ,31/12/2023,ECONOMY & ENVIRONMENT,TESCO STORES 6161,10/10/2023,H59620231012JKXUINIYX-1,1.70,LEATHER MUSEUM-FOOD & DRINK SUPPLIES,GROCERY STORES AND SUPERMARKETS,GPC
WALSALL COUNCIL,http://opendatacommunities.org/id/metropolitan-district-council/walsall ,31/12/2023,ECONOMY & ENVIRONMENT,TESCO STORES 6161,10/10/2023,H59620231012JKXUINIYX-2,3.65,LEATHER MUSEUM-FOOD & DRINK SUPPLIES,GROCERY STORES AND SUPERMARKETS,GPC
WALSALL COUNCIL,http://opendatacommunities.org/id/metropolitan-district-council/walsall ,31/12/2023,RESOURCES AND TRANSFORMATION,ARTHUR BRETT CATER,10/10/2023,H59620231012JOCMAJYLE-1,56.27,CATERING - SCHOOLS-FOOD & DRINK SUPPLIES,MISCELLANEOUS FOOD STORES & CONVENIENCE STORES,GPC
WALSALL COUNCIL,http://opendatacommunities.org/id/metropolitan-district-council/walsall ,31/12/2023,ECONOMY & ENVIRONMENT,ZEELO LTD,10/10/2023,H59620231012JYABSERNM-1,7.00,RESTART-OTHER TRAVEL ALLOWANCES,DIGITAL GOODS - APPLICATIONS (EXCLUDES GAMES),GPC
WALSALL COUNCIL,http://opendatacommunities.org/id/metropolitan-district-council/walsall ,31/12/2023,CHILDRENS SERVICES,LIFESTYLE EXPRESS 01,10/10/2023,H59620231012KDEAOWOMT-1,1.18,HOUSING YEI/ESF MATCH-MATERIALS,MISCELLANEOUS FOOD STORES & CONVENIENCE STORES,GPC
WALSALL COUNCIL,http://opendatacommunities.org/id/metropolitan-district-council/walsall ,31/12/2023,CHILDRENS SERVICES,AMZNMKTPLACE,10/10/2023,H59620231012KJFHPFIVE-1,174.67,ICT LEARNING RESOURCES-PURCHASE OF FURNITURE & EQUIPM,MISCELLANEOUS AND SPECIALTY RETAIL STORES,GPC
WALSALL COUNCIL,http://opendatacommunities.org/id/metropolitan-district-council/walsall ,31/12/2023,CHILDRENS SERVICES,AMZNMKTPLACE,10/10/2023,H59620231012KXKFUKSCM-1,117.11,GENERAL-MATERIALS,MISCELLANEOUS AND SPECIALTY RETAIL STORES,GPC
WALSALL COUNCIL,http://opendatacommunities.org/id/metropolitan-district-council/walsall ,31/12/2023,RESOURCES AND TRANSFORMATION,ARTHUR BRETT CATER,10/10/2023,H59620231012LDXIPWJBN-1,15.07,CATERING - SCHOOLS-FOOD & DRINK SUPPLIES,MISCELLANEOUS FOOD STORES & CONVENIENCE STORES,GPC
WALSALL COUNCIL,http://opendatacommunities.org/id/metropolitan-district-council/walsall ,31/12/2023,RESOURCES AND TRANSFORMATION,ARTHUR BRETT CATER,10/10/2023,H59620231012LEFDGBUOQ-1,1.58,CATERING - SCHOOLS-FOOD & DRINK SUPPLIES,MISCELLANEOUS FOOD STORES & CONVENIENCE STORES,GPC
WALSALL COUNCIL,http://opendatacommunities.org/id/metropolitan-district-council/walsall ,31/12/2023,ECONOMY & ENVIRONMENT,AMZNMKTPLACE,10/10/2023,H59620231012LEMSOJQNB-1,50.36,BLOXWICH ACTIVE LIVING CENTRE-MATERIALS,MISCELLANEOUS AND SPECIALTY RETAIL STORES,GPC
WALSALL COUNCIL,http://opendatacommunities.org/id/metropolitan-district-council/walsall ,31/12/2023,CHILDRENS SERVICES,ASDA GROCERIES ONLINE,10/10/2023,H59620231012LGWLQAHSV-1,-1.05,PARENTING TEAM-FOOD & DRINK SUPPLIES,GROCERY STORES AND SUPERMARKETS,GPC
WALSALL COUNCIL,http://opendatacommunities.org/id/metropolitan-district-council/walsall ,31/12/2023,CHILDRENS SERVICES,SENSORY SUPER STARS,10/10/2023,H59620231012LOPBFUUPJ-1,850.00,VIRTUAL SCHOOL CENTRAL PUPIL P-STATIONERY & GENERAL OFFICE SU,"GAME, TOY, AND HOBBY SHOPS",GPC
WALSALL COUNCIL,http://opendatacommunities.org/id/metropolitan-district-council/walsall ,31/12/2023,CHILDRENS SERVICES,THE ENTERTAINER,10/10/2023,H59620231012LQOWSXDUH-1,33.99,COMMUNITY FOCUSED EXTENDED SCH-MATERIALS,"GAME, TOY, AND HOBBY SHOPS",GPC
WALSALL COUNCIL,http://opendatacommunities.org/id/metropolitan-district-council/walsall ,31/12/2023,CHILDRENS SERVICES,IDENTITY PLUS,10/10/2023,H59620231012MJFEAHXRT-1,15.87,PSE-MATERIALS,MISCELLANEOUS GENERAL MERCHANDISE,GPC
WALSALL COUNCIL,http://opendatacommunities.org/id/metropolitan-district-council/walsall ,31/12/2023,CHILDRENS SERVICES,ALTON TOWERS,10/10/2023,H59620231012MRLIGGJNF-1,147.00,"43A HILTON ROAD, WILLENHALL-RESIDENTS PERSONAL EXPENSES-AL","THEATRICAL PRODUCERS, TIC",GPC
WALSALL COUNCIL,http://opendatacommunities.org/id/metropolitan-district-council/walsall ,31/12/2023,ECONOMY & ENVIRONMENT,VIKING OFFICE UK LIMIT,10/10/2023,H59620231012NEPNHOYCY-1,349.26,WALSALL GALA SWIMMING AND FITN-STATIONERY & GENERAL OFFICE SU,"STATIONERY, OFFICE SUPPLIES AND WRITING PAPER",GPC
WALSALL COUNCIL,http://opendatacommunities.org/id/metropolitan-district-council/walsall ,31/12/2023,CHILDRENS SERVICES,AMZNMKTPLACE,10/10/2023,H59620231012NIXFGLXRZ-1,2.94,LITERATURE-MATERIALS,MISCELLANEOUS AND SPECIALTY RETAIL STORES,GPC
WALSALL COUNCIL,http://opendatacommunities.org/id/metropolitan-district-council/walsall ,31/12/2023,ECONOMY & ENVIRONMENT,ZEELO LTD,10/10/2023,H59620231012NKFGZNCQA-1,7.00,RESTART-OTHER TRAVEL ALLOWANCES,DIGITAL GOODS - APPLICATIONS (EXCLUDES GAMES),GPC
WALSALL COUNCIL,http://opendatacommunities.org/id/metropolitan-district-council/walsall ,31/12/2023,CHILDRENS SERVICES,WM MORRISONS STORE PICK,10/10/2023,H59620231012NVBKYNDJN-1,15.78,SHORT HEATH FEDERATION-FOOD & DRINK SUPPLIES,GROCERY STORES AND SUPERMARKETS,GPC
WALSALL COUNCIL,http://opendatacommunities.org/id/metropolitan-district-council/walsall ,31/12/2023,CHILDRENS SERVICES,WM MORRISONS STORE PICK,10/10/2023,H59620231012NVBKYNDJN-2,26.91,SHORT HEATH FEDERATION-FOOD & DRINK SUPPLIES,GROCERY STORES AND SUPERMARKETS,GPC
WALSALL COUNCIL,http://opendatacommunities.org/id/metropolitan-district-council/walsall ,31/12/2023,RESOURCES AND TRANSFORMATION,ARTHUR BRETT CATER,10/10/2023,H59620231012OTNFBBIVA-1,32.96,CATERING - SCHOOLS-FOOD & DRINK SUPPLIES,MISCELLANEOUS FOOD STORES & CONVENIENCE STORES,GPC
WALSALL COUNCIL,http://opendatacommunities.org/id/metropolitan-district-council/walsall ,31/12/2023,ECONOMY & ENVIRONMENT,AMAZON.CO.UK*HT63W0Y34,10/10/2023,H59620231012PEPQVTLNO-1,28.68,EXHIBITION NO.3-MATERIALS,OTHER DIRECT MARKETING-OTHER DIRECT MARKETERS,GPC
WALSALL COUNCIL,http://opendatacommunities.org/id/metropolitan-district-council/walsall ,31/12/2023,RESOURCES AND TRANSFORMATION,ARTHUR BRETT CATER,10/10/2023,H59620231012PPWSBNKQQ-1,41.99,CATERING - SCHOOLS-FOOD & DRINK SUPPLIES,MISCELLANEOUS FOOD STORES & CONVENIENCE STORES,GPC
WALSALL COUNCIL,http://opendatacommunities.org/id/metropolitan-district-council/walsall ,31/12/2023,RESOURCES AND TRANSFORMATION,ARTHUR BRETT CATER,10/10/2023,H59620231012PRBERVTIT-1,29.69,CATERING - SCHOOLS-FOOD & DRINK SUPPLIES,MISCELLANEOUS FOOD STORES & CONVENIENCE STORES,GPC
WALSALL COUNCIL,http://opendatacommunities.org/id/metropolitan-district-council/walsall ,31/12/2023,CHILDRENS SERVICES,AMZNMKTPLACE,10/10/2023,H59620231012PVRREUUNZ-1,27.95,COMMUNITY FOCUSED EXTENDED SCH-MATERIALS,MISCELLANEOUS AND SPECIALTY RETAIL STORES,GPC
WALSALL COUNCIL,http://opendatacommunities.org/id/metropolitan-district-council/walsall ,31/12/2023,CHILDRENS SERVICES,AMZNMKTPLACE,10/10/2023,H59620231012PYLNJCJYU-1,16.93,EYFS - RESOURCES-MATERIALS,MISCELLANEOUS AND SPECIALTY RETAIL STORES,GPC
WALSALL COUNCIL,http://opendatacommunities.org/id/metropolitan-district-council/walsall ,31/12/2023,CHILDRENS SERVICES,AMZNMKTPLACE,10/10/2023,H59620231012QDGQPNWCC-1,16.47,EYFS - RESOURCES-MATERIALS,MISCELLANEOUS AND SPECIALTY RETAIL STORES,GPC
WALSALL COUNCIL,http://opendatacommunities.org/id/metropolitan-district-council/walsall ,31/12/2023,CHILDRENS SERVICES,TESCO STORES 5751,10/10/2023,H59620231012QKPMFAPYA-1,5.15,HSF - HOUSING SUPPORT FUND GRA-CARE LEAVERS MISC EXPENSES,GROCERY STORES AND SUPERMARKETS,GPC
WALSALL COUNCIL,http://opendatacommunities.org/id/metropolitan-district-council/walsall ,31/12/2023,CHILDRENS SERVICES,TRAINLINE,10/10/2023,H59620231012RJSNSEEBF-1,28.41,FAMILY SAFEGUARDING EAST LOCAL-SECTION 1/17CHILD CARE ACT 198,PASSENGER RAILWAYS,GPC
WALSALL COUNCIL,http://opendatacommunities.org/id/metropolitan-district-council/walsall ,31/12/2023,CHILDRENS SERVICES,FARMFOODS 607,10/10/2023,H59620231012RMQSYCHHX-1,14.29,YOUNG PERSONS HOMELESS SERVICE-FOOD & DRINK SUPPLIES,GROCERY STORES AND SUPERMARKETS,GPC
WALSALL COUNCIL,http://opendatacommunities.org/id/metropolitan-district-council/walsall ,31/12/2023,CHILDRENS SERVICES,TESCO STORES 6161,10/10/2023,H59620231012RQULSWSOM-1,10.00,ROUGH SLEEPING INITIATIVE GRAN-FOOD & DRINK SUPPLIES,GROCERY STORES AND SUPERMARKETS,GPC
WALSALL COUNCIL,http://opendatacommunities.org/id/metropolitan-district-council/walsall ,31/12/2023,CHILDRENS SERVICES,TESCO STORES 6161,10/10/2023,H59620231012RQULSWSOM-2,16.99,ROUGH SLEEPING INITIATIVE GRAN-FOOD & DRINK SUPPLIES,GROCERY STORES AND SUPERMARKETS,GPC
WALSALL COUNCIL,http://opendatacommunities.org/id/metropolitan-district-council/walsall ,31/12/2023,CHILDRENS SERVICES,AMZNMKTPLACE,10/10/2023,H59620231012RRSAGETTH-1,14.23,E19-MATERIALS,MISCELLANEOUS AND SPECIALTY RETAIL STORES,GPC
WALSALL COUNCIL,http://opendatacommunities.org/id/metropolitan-district-council/walsall ,31/12/2023,CHILDRENS SERVICES,AMAZON.CO.UK*HT9JM8YN4,10/10/2023,H59620231012RXEKTQPFD-1,3.98,ADMINISTRATIVE SUPPLIES-STATIONERY & GENERAL OFFICE SU,OTHER DIRECT MARKETING-OTHER DIRECT MARKETERS,GPC
WALSALL COUNCIL,http://opendatacommunities.org/id/metropolitan-district-council/walsall ,31/12/2023,RESOURCES AND TRANSFORMATION,NOBISCO LIMITED,10/10/2023,H59620231012SCSYNVTER-1,39.54,CATERING - SCHOOLS-FOOD & DRINK SUPPLIES,OTHER INDUSTRIAL SUPPLIES,GPC
WALSALL COUNCIL,http://opendatacommunities.org/id/metropolitan-district-council/walsall ,31/12/2023,CHILDRENS SERVICES,TESCO PFS 4188,10/10/2023,H59620231012SHYXHDSKE-1,110.50,E19-MATERIALS,SERVICE STATIONS,GPC
WALSALL COUNCIL,http://opendatacommunities.org/id/metropolitan-district-council/walsall ,31/12/2023,CHILDRENS SERVICES,AMZNMKTPLACE,10/10/2023,H59620231012SUBFMDPUX-1,64.52,E19-MATERIALS,MISCELLANEOUS AND SPECIALTY RETAIL STORES,GPC
WALSALL COUNCIL,http://opendatacommunities.org/id/metropolitan-district-council/walsall ,31/12/2023,ECONOMY & ENVIRONMENT,SP ECATERING,10/10/2023,H59620231012SYKCDSRKB-1,292.48,BLOXWICH ACTIVE LIVING CENTRE-FOOD & DRINK SUPPLIES,HOUSEHOLD APPLIANCE STORES,GPC
WALSALL COUNCIL,http://opendatacommunities.org/id/metropolitan-district-council/walsall ,31/12/2023,CHILDRENS SERVICES,AMZNMKTPLACE,10/10/2023,H59620231012THCKMFUWX-1,28.97,E19-MATERIALS,MISCELLANEOUS AND SPECIALTY RETAIL STORES,GPC
WALSALL COUNCIL,http://opendatacommunities.org/id/metropolitan-district-council/walsall ,31/12/2023,CHILDRENS SERVICES,ASDA GROCERIES ONLINE,10/10/2023,H59620231012TTYAKSMTU-1,-3.54,PARENTING TEAM-FOOD & DRINK SUPPLIES,GROCERY STORES AND SUPERMARKETS,GPC
WALSALL COUNCIL,http://opendatacommunities.org/id/metropolitan-district-council/walsall ,31/12/2023,RESOURCES AND TRANSFORMATION,ARTHUR BRETT CATER,10/10/2023,H59620231012TYEQOGCRT-1,94.59,CATERING - SCHOOLS-FOOD & DRINK SUPPLIES,MISCELLANEOUS FOOD STORES & CONVENIENCE STORES,GPC
WALSALL COUNCIL,http://opendatacommunities.org/id/metropolitan-district-council/walsall ,31/12/2023,CHILDRENS SERVICES,NW LEICESTER,10/10/2023,H59620231012TZBSINLQN-1,14.95,FAMILY PLACEMENTS-MATERIALS,OTHER RECREATION SERVICES,GPC
WALSALL COUNCIL,http://opendatacommunities.org/id/metropolitan-district-council/walsall ,31/12/2023,RESOURCES AND TRANSFORMATION,ARTHUR BRETT CATER,10/10/2023,H59620231012UBBUHNEXE-1,64.14,CATERING - SCHOOLS-FOOD & DRINK SUPPLIES,MISCELLANEOUS FOOD STORES & CONVENIENCE STORES,GPC
WALSALL COUNCIL,http://opendatacommunities.org/id/metropolitan-district-council/walsall ,31/12/2023,CHILDRENS SERVICES,AMZNMKTPLACE,10/10/2023,H59620231012UHRSVUWBS-1,10.66,E19-MATERIALS,MISCELLANEOUS AND SPECIALTY RETAIL STORES,GPC
WALSALL COUNCIL,http://opendatacommunities.org/id/metropolitan-district-council/walsall ,31/12/2023,RESOURCES AND TRANSFORMATION,WWW.BANNERUK.COM,10/10/2023,H59620231012UOMVEMFQK-1,17.54,HR ADMIN HUB-STATIONERY & GENERAL OFFICE SU,"STATIONERY, OFFICE SUPPLIES AND WRITING PAPER",GPC
WALSALL COUNCIL,http://opendatacommunities.org/id/metropolitan-district-council/walsall ,31/12/2023,RESOURCES AND TRANSFORMATION,ARTHUR BRETT CATER,10/10/2023,H59620231012VWBQAYQLN-1,40.78,TOWN HALL RESTAURANT BISTRO-FOOD & DRINK SUPPLIES,MISCELLANEOUS FOOD STORES & CONVENIENCE STORES,GPC
WALSALL COUNCIL,http://opendatacommunities.org/id/metropolitan-district-council/walsall ,31/12/2023,CHILDRENS SERVICES,SENSORY SUPER STARS,10/10/2023,H59620231012VWGPCZJDA-1,240.00,VIRTUAL SCHOOL CENTRAL PUPIL P-STATIONERY & GENERAL OFFICE SU,"GAME, TOY, AND HOBBY SHOPS",GPC
WALSALL COUNCIL,http://opendatacommunities.org/id/metropolitan-district-council/walsall ,31/12/2023,CHILDRENS SERVICES,TOOLSTATION UK,10/10/2023,H59620231012WNMCDIDVP-1,29.75,SALISBURY PRIMARY SCHOOL-OPERATIONAL MAINTENANCE,HARDWARE STORES,GPC
